{"text_format":"1","workbook":"xlsx","n_sheets":2,"sheets":["Contratos","Plan1"],"not_rendered":{"charts":0,"images":2,"macros":1,"external_links":0,"defined_names":2,"comments":0,"pivot_tables":0},"unopened":[],"bounds":{"document_bytes":16777216,"sheet_cells":100000,"rows_first":2000,"rows_last":500,"rows_between":2000,"halvings":0,"cell_chars":16384,"cell_head_chars":4096},"cells_cut":0,"cells_raw":0,"read":"whole","date_system":"1900"}

{"sheet":"Contratos","index":0,"n_rows":339,"n_cols":24,"rows_kept":339,"cut":false,"hidden":false,"merged":[[2,0,2,4],[2,5,2,7],[2,14,2,23],[1,5,1,6],[0,5,0,6],[0,7,1,7],[0,2,1,4],[0,0,1,1]]}
[null,null," PLANILHA DE CONTRATOS DE PRESTAÇÃO DE SERVIÇOS E AQUISIÇÕES DA FUNDAÇÃO HEMOMINAS  ",null,null,"CCD: 035.1"]
[null,null,null,null,null,"FPOP-G.GPO.CCO-01  VERSÃO 07 SETEMBRO/2025"]
[]
[null,null,null,null,null,null,null,null,null,null,null,null," "]
["Nº","CONTRATO PORTAL","NÚMERO SEI","CONTRATADO","OBJETO DO CONTRATO","COMODATO","APÓLICE/GARANTIA DA EXECUÇÃO ","DATA DE VIGÊNCIA INICIAL DO CONTRATO","DATA FINAL DA 1ª VIGÊNCIA","PRORROGÁVEL? SIM/NÃO","DATA INICIAL DO ÚLTIMO TERMO ADITIVO","DATA FINAL DO ÚLTIMO TERMO ADITIVO","DATA FINAL/ TOTAL DA CONTRATAÇÃO","MÊS DE REFERÊNCIA PARA EMISSÃO DO AVISO","ANO DE REFERÊNCIA PARA EMISSÃO DE AVISO","VALOR MENSAL ","VALOR ANUAL","VALOR TOTAL","SIGLA SETOR","RESPONSÁVEL TÉCNICO","FISCAL","FISCAL SUPLENTE","GESTOR ","GESTOR SUPLENTE"]
["9410.283/24",9410283,"2320.01.0012356/2023-68","A&M Solution Agencia Digital Ltda","Prestação de serviço de Manutenção e Suporte do Portal Hemominas (Site e Intranet).","Não",null,"2024-02-22","2025-02-21","Sim","2026-02-22","2027-02-21","2029-02-21","02","2027",23583.18,282998.15999999997,1414990.8,"I.GTC.ADS / I.GTC",null,"Fabrine Juliana Fabricio Costa","Mariana Cristina Santos","Iara Simões Xavier","Júlia Carolina Soares"]
[" 9293.818/21",9293818,"2320.01.0013616/2021-04","AACP  Serviço Ambiental Eireli","Prestação de Serviço de limpeza e tratamento de caixas de água e reservatórios (Lotes 02 e 04)","Não",null,"2021-10-16","2022-10-15","Sim","2025-10-16","2026-10-15","2026-10-15","10","2026",472.33,5668,"5.668,00 ","JFO.A.MAT / GOV.A.MAT /  I.GIF.MPR",null,"Victor Valente Campos/Deivandro Lessa","André Meireles Fontes/Bruno Sousa Macedo","Kathryna Fontana Rodrigues","Iara Simões Xavier"]
["9369.083/23",9369083,"2320.01.0016834/2022-27","AACP  Serviço Ambiental Eireli","Prestação de serviços de análise e monitoramento da qualidade da água nas edificações utilizadas pela Fundação Hemominas (Lotes 02 a 08).","Não",null,"2023-03-01","2024-02-29","Sim","2026-03-01","2027-02-28","2028-02-28","02","2027",{"$f":"Tabela1[[#This Row],[VALOR TOTAL]]/12","v":4043.9583333333335},48527.5,48527.5,"I.GIF.AQE",null,"Maria Luíza Pinheiro Leite","Jéssica Rodrigues Barbosa","Kathryna Fontana Rodrigues","Iara Simões Xavier"]
["9483.096/25",9483096,"2320.01.0004608/2025-29","AACP  Serviço Ambiental Ltda","Prestação de serviços de análise da qualidade da água da edificação do Hemocentro Regional de Uberaba da Fundação Hemominas.","Não",null,"2025-11-13","2026-11-12","Sim",null,null,"2035-11-12","11","2026",null,0,3840,"URA.GAD",null,"Maria Luíza Pinheiro","Leila Pereira","Júlia Carolina Soares","Victor Adler Oliveira"]
["9483.939/25",9483939,"2320.01.0016275/2025-76","AACP  Serviço Ambiental Ltda","Prestação de serviços de desinsetização e desratização (Lotes 06, 07, 14 e 16).","Não",null,"2025-11-17","2026-11-16","Sim",null,null,"2035-11-16","11","2026",{"$f":"Tabela1[[#This Row],[VALOR TOTAL]]/12","v":680.93999999999994},8171.28,8171.28,"DGI.NZL",null,"Marcelo de Aguiar Gomes","Márcia Regina Luis Victor Valente Campos              Denise do Socorro Guimarães           Marco Paulo Dias Canabrava","Kathryna Fontana Rodrigues","Iara Simões Xavier"]
["9471.169/25",9471169,"2320.01.0011848/2024-07","Abbott Laboratórios do Brasil Ltda","Aquisição de sistema analítico para pesquisa de antígeno para HBsAg e anticorpos: anti-HBc, anti-HCV, anti-HTLV I/II, anti-HIV 1+2 e subtipo O, Sífilis e Chagas, com equioamento em comodato.","Sim",null,"2025-07-15","2026-07-14","Sim",null,null,"2035-07-14","07","2026",{"$f":"Tabela1[[#This Row],[VALOR ANUAL]]/12","v":969533.33333333337},11634400,11634400,"T.GLA.CSO",null,"Sônia Mara Nunes da Silva","Leonardo Antônio Renna Batalha","Júlia Carolina Soares","Victor Adler Oliveira"]
["9472.605/25",9472605,"2320.01.0008849/2025-79","Abbott Laboratórios do Brasil Ltda","Sistema Analítico para Pesquisa de ANTI-TOXOPLASMOSE IGM, ANTI-TOXOPLASMOSE IGG, ANTI-CITOMEGALOVÍRUS IGM, ANTI-CITOMEGALOVÍRUS IGG e ANTI-HBS","Não",null,"2025-07-24","2026-01-23","Não","2026-01-24","2026-07-23","2026-01-23","07","2026",{"$f":"Tabela1[[#This Row],[VALOR TOTAL]]/6","v":3682.56},null,22095.360000000001,"T.GLA.CSO",null,"Sônia Mara Nunes da Silva","Leonardo Antônio Renna Batalha","Kathryna Fontana Rodrigues","Iara Simões Xavier"]
["9493.150/26",9493150,"2320.01.0010388/2025-42","ABC Empreendimentos Segurança e Incêndio ltda","Prestação de serviços de manutenção e limpeza de jardins e de corte e/ou poda de árvores, contemplando o replantio com fornecimento de plantas e gramas nas áreas vegetadas do Hemonúcleo de Divinópolis","Não",null,"2026-01-23","2027-01-22","Sim",null,null,"2036-01-22","01","2027",1719.44,20633.28,206332.79999999999,"DIV.GAD",null,"Nilba Valéria Pinheiro de Oliveira","Lidiane Barbosa Vilela","Iara Simões Xavier","Marcela Soares Ferreira"]
["9494.479/26",9494479,"2320.01.0013140/2025-40","ABHH - Associação Brasileira de Hematologia, Hemoterapia e Terapia Celular","Contratação dos serviços de Auditoria e Assessoramento do Programa de Acreditação AABB/ABHH no Sistema da Qualidade para Serviços de Banco de Sangue e Serviço de Transfusão (Hemocentro de Belo Horizonte) e Serviços de Terapia Celular (Cetebio).","Não",null,"2026-02-11","2028-08-10","Não",null,null,"2028-08-10","08","2028",5345.71,64148.47,160371.20000000001,"PRE.AAE",null,"Diogo Wanis Lara","Jussara Cristina Barbosa","Victor Adler Oliveira","Júlia Carolina Soares"]
["9388.538/23",9388538,"2320.01.0000097/2023-97","ACI Comércio Ltda - EPP","Prestação de serviço de manutenção, reparo, conservação e adaptação em equipamentos e instrumentos odontológicos,.","Não",null,"2023-06-17","2024-06-16","Sim","2025-06-17","2026-06-16","2028-06-16","06","2026",{"$f":"R15/12","v":1811.63},21739.56,21739.56,"GAD.JFO.A.COM",null,"Paulo Henrique Gomes Souza","Vitor Valente Campos","Victor Adler Oliveira","Júlia Carolina Soares"]
["9393.310/23",9393310,"2320.01.0006171/2023-29","ACTS do Brasil Ltda","Aquisição de Bolsas para congelamento de células progenitoras (lote 01).","Não",null,"2023-09-02","2028-09-01","Sim","2025-09-02","2026-09-01","2028-09-01","09","2026",null,1424483.52,1424483.52,"CETEBIO.G. EXECUTIVA",null,"Diogo Vidal Mota","Maurício Colombini Martins","Kathryna Fontana Rodrigues","Iara Simões Xavier"]
["9473.087/25",9473087,"2320.01.0017577/2024-39","ACTS do Brasil Ltda","Aquisição de insumos para criopreservação de células da medula óssea","Não",null,"2025-07-30","2026-07-29","Sim",null,null,"2035-07-29","07","2026",37890.18,454682.16,4546821.5999999996,"CETEBIO",null,"Maria Lúcia Soares de Moura","Jucélia Schittini da Silva Morais","Iara Simões Xavier","Marcela Soares Ferreira"]
["9486.860/25",9486860,"2320.01.0001606/2025-88","Adelvanio Francisco Lara - ME","Prestação de serviços de lanche para os doadores de sangue do Hemocentro Regional de Passos.","Não",null,"2025-12-09","2026-12-08","Sim",null,null,"2035-12-08","12","2026",9650,115800,1158000,"PAS.GAD",null,"Tânia Aparecida Piantino","Weberson Luiz Mariano","Iara Simões Xavier","Marcela Soares Ferreira"]
["3459/14",3459,"2320.01.0001306/2018-61","Administradora Metrópole - Administração e Corretagem de Imóveis Ltda","Locação de 01 (um) imóvel situado na Rua Grão Pará, nº 882 - Santa Efigênia, Belo Horizonte/MG, composto de hall de entrada, 02 (dois) pavimentos de garagem, pilotis e salas do 4º ao 8º andares, totalizando área de aproximadamente, 3.856,16 m².","Não",null,null,null,"Sim","2026-04-25","2026-12-31",null,"12","2026",{"$f":"R19/12","v":71086.21666666666},853034.6,853034.6,"DGI.NZL","Adilson Meireles Pacheco","Marcelo de Aguiar Gomes","Maria Beatriz Souza Melo Sarsur","Victor Adler Oliveira","Júlia Carolina Soares"]
["9389.826/23",9389826,"2320.01.0001219/2023-67","Agência de Integração Empresa Escola Ltda. AGIEL","Prestação de serviço de  gestão de estagiários para a Fundação Hemominas.","Não",null,"2023-07-14","2024-07-13","Sim","2025-07-14","2026-07-13","2028-07-13","07","2026",{"$f":"Tabela1[[#This Row],[VALOR ANUAL]]/12","v":281060.8},3372729.6,3372729.6,"G.GGP.TDE",null,"Manuela Mota Hauck","Andréa Maria Almeida Medrado","Júlia Carolina Soares","Victor Adler Oliveira"]
["9470.024/25",9470024,"2320.01.0008301/2025-34","Agenes S. da Silva Suprimentos de Informática - ME.","Compra de equipamentos técnicos (lotes 08 e 09).","Não",null,"2025-06-16","2026-06-15","Não",null,null,"2026-06-15","06","2026",3040,36480,36480,"DGI.ENC.CAT",null,"Asaph Calazans Mendes de Souza","Manoel Ricardo Caires Fernandes","Victor Adler Oliveira","Júlia Carolina Soares"]
["9490.295/25",9490295,"2320.01.0017594/2025-62","Agenes S. da Silva Suprimentos de Informática - ME.","Aquisição de insumos médicos hospitalares (Lote 06).","Não",null,"2025-12-15","2026-12-14","Sim",null,null,"2035-12-14","12","2026",{"$f":"Tabela1[[#This Row],[VALOR ANUAL]]/12","v":1545},18540,18540,"G.GLQ.ADM",null,"Mônica Vieira Gomes","Nilda Maria Campos Lucena","Júlia Carolina Soares","Victor Adler Oliveira"]
["9470.713/25",9470713,"2320.01.0009096/2025-06","Agropecuária Fazenda do Bento Ind. E Com. Ltda.","Compra de café torrado e moído e açúcar cristal (lote 01).","Não",null,"2025-06-25","2026-06-24","Não",null,null,"2026-06-24","06","2026",null,333760,333760,"DGI.NZL",null,"Marcelo de Aguiar Gomes","Nilza de Melo Pereira","Kathryna Fontana Rodrigues","Iara Simões Xavier"]
["9472.469/25",9472469,"2320.01.0010043/2024-48","AIMARA COMÉRCIO E REPRESENTAÇÕES LTDA","Aquisição de aquisição de frascos de hemocultura com equipamentos em regime de comodato","Sim",null,"2025-07-24","2026-07-23","Sim",null,null,"2035-07-23","07","2026",56574.17,678890,6788900.4000000004,"T.GCQ",null,"Luciana de Souza Madeira Ferreira Boy","Roberto Mauro Ferreira Silva","Iara Simões Xavier","Marcela Soares Ferreira"]
["9350.488/22",9350488,"2320.01.0009625/2022-88","Allegra Tecnologia Ltda - ME","Prestação de serviço de higienização e limpeza do sistema de climatização/difusores para insuflamento e retorno do ar climatizado ambiente.","Não",null,"2022-11-18","2023-11-17","Sim","2025-11-18","2026-11-17","2027-11-17","11","2026",1999.25,23991,23991,"DGI.ENC",null,"Thiago Euzébio dos Santos","João Silvestre Guimarães","Kathryna Fontana Rodrigues","Iara Simões Xavier"]
["9470.562/25",9470562,"2320.01.0008887/2025-23","Allegra Tecnologia Ltda","Contratação de servilos de monitoramento da qualidade do ar nas unidades da Fundação Hemominas em Uberlândia e Lagoa Santa (lotes 01 e 03).","Não",null,"2025-06-20","2026-06-19","Sim",null,null,"2035-06-19","06","2026",1785,21420,21420,"DGI.ENC",null,"João Silvestre Guimarães","Renatha Samantha Martins Blasco","Victor Adler Oliveira","Júlia Carolina Soares"]
["9501939/26",9501939,"2320.01.0000760/2026-35","Amazonas Comércio de Adesivos e Brindes Ltda - ME","Prestação de serviços de confecção de crachás personalizados.","Não",null,"2026-04-25","2027-04-24","Sim",null,null,"2036-04-24","04","2027",473.75,5685,5685,"G.GGP.PES.FREQUENCIA",null,"Sibéria Oliveira da Cruz","Tiago Paulo da Silva Jorge","Júlia Carolina Soares","Victor Adler Oliveira"]
["9493.404/2026",9493404,"2320.01.0017252/2025-81","Amazônia Indústria e Comércio Ltda.","Aquisição de Aquisição de Suco de Frutas Lote 01","Não",null,"2026-01-30","2027-01-29","Sim",null,null,"2036-01-29","01","2027",null,421200,421200,"T.GSA.SUP",null,"Lorena Prezotti Rodrigues","Maria José Souza Trancoso","Kathryna Fontana Rodrigues","Iara Simões Xavier"]
["9488.022/25",9488022,"2320.01.0017299/2025-73","Amazônia Indústria e Comércio Ltda.","Aquisiição de biscoito cookie.","Não",null,"2025-12-05","2026-12-04","Sim",null,null,"2035-12-04","12","2026",37854.17,454250,454250,"G.GLQ.ADM         T.GSA.SUP",null,"Lorena Prezotti Rodrigues","Juliana Pessoa Pinheiro de Azevedo","Victor Adler Oliveira","Júlia Carolina Soares"]
["9361.880/22",9361880,"2320.01.0009734/2022-55","Ambientalis Análises de Ambientes Ltda EPP - ","Prestação de serviço de análise da qualidade do ar proveniente dos sistemas de climatização do Hemocentro de Belo Horizonte.","Não",null,"2022-12-02","2023-12-01","Sim","2025-12-02","2026-12-01","2027-12-01","12","2026",490.96,5891.52,29457.599999999999,"DGI.ENC",null,"João Silvestre Guimarães","Renatha Samantha Martins Blasco","Iara Simões Xavier","Marcela Soares Ferreira"]
["9459.809/25",9459809,"2320.01.0008283/2024-38","Ambiente Ar Condicionado Ltda.","Manutenção dos equipamentos de ar condicionado do Hemocentro de Montes Claros.","Não",null,"2025-04-11","2030-04-10","Sim",null,null,"2035-04-10","04","2030",null,0,269290,"MOC.GAD",null,"Daniel Nascimento Salgado","Emanuelle Aparecida Bruzinga Machado","Victor Adler Oliveira","Júlia Carolina Soares"]
["9459.850/25",9459850,"2320.01.0015055/2025-36","American Tower do Brasil - Comunicação Multimídia Ltda.","Contratação de serviços de telecomunicações necessários à implantação, operação, manutenção e gerenciamento de rede IP Multiserviços, de serviços de valor adicionado e de serviço de trânsito e acesso à internet, além de fornecimento de informações para a administração pública (lote 07 e 09), visando atender os Órgãos e Entidades Anuentes.","Não","Sim","2025-05-19","2030-05-18","Sim",null,null,"2035-05-18","05","2030",34977.620000000003,419731.46,17093368.140000001,"I.GTC.ITS",null,"Daniel Eustáquio Coutinho","Fabrine Juliana Fabricio Costa / Emanuel Camilo de Oliveira","Victor Adler Oliveira","Júlia Carolina Soares"]
["9459.556/25",9459556,"2320.01.0008477/2024-38","Amplie Assessoria em Licitações Ltda.","Prestação de serviços de licença de software windows.","Não",null,"2025-04-08","2026-04-07","Não",null,null,"2026-04-07","04","2026",null,0,45000,"I.GTC.ITS",null,"Fabrine Juliana Fabricio Costa","Daniel Eustáquio Coutinho","Victor Adler Oliveira","Júlia Carolina Soares"]
["9393.609/23",9393609,"2320.01.0001032/2022-75","Apolo Refrigeração Ltda","Prestação de serviços de Manutenção preventiva e corretiva em equipamentos de ar condicionado, com fornecimento de peças para o Hemocentro Regional de Uberlândia da Fundação Hemominas.","Não ",null,"2023-09-30","2024-09-29","Sim","2025-09-30","2026-09-29","2028-09-29","09","2026",{"$f":"R34/12","v":15014.268333333333},180171.24,180171.22,"UDI.GAD",null,"Márcia Regina Luis","Renata Léa Silva Souza","Victor Adler Oliveira","Júlia Carolina Soares"]
["9321.239/22",9321239,"2320.01.0011069/2021-97","Apolo Refrigeração Ltda - ME","Prestação de serviço de manutenção de ar condicionado e limpeza da rede de dutos.","Não ",null,"2022-02-03","2023-02-02","Sim","2026-02-03","2027-02-02","2027-02-02","02","2027",{"$f":"Tabela1[[#This Row],[VALOR ANUAL]]/12","v":7178.420000000001},86141.040000000008,86141,"GAD.SLA",null,"Marco Paulo Dias Canabrava","Neide Aparecida dos Santos Reis Gonçalvez","Júlia Carolina Soares","Victor Adler Oliveira"]
["9400.368/23",9400368,"2320.01.0004846/2023-11","Argus Científica Ltda","Aquisição de reagente Ferritina com comodato.","Sim",null,"2023-11-23","2024-11-22","Sim","2025-11-23","2026-11-22","2028-11-22","11","2026",9525.83,114310,114310,"HBH.T.LHEM",null,"Beatriz Nogueira de Carvalho","João Henrique Fonseca de Moura","Victor Adler Oliveira","Júlia Carolina Soares"]
["9430.023/24",9430023,"2320.01.0015881/2023-50","Argus Científica Ltda"," Aquisição de sistema analítico completo, com equipamento em comodato e reagentes ferro sérico e capacidade ligadora de ferro.","Sim",null,"2024-06-24","2025-06-23","Sim","2025-06-24","2026-06-23","2034-06-23","06","2026","-",85280,85280,"HBH.T.LHEM",null,"Beatriz Nogueira de Carvalho","João Henrique Fonseca de Moura","Kathryna Fontana Rodrigues","Iara Simões Xavier"]
["9507.775/26",9507775,"2320.01.0004738/2025-11","Associação Brasileira de Histocompatibilidade e Imunogenética (ABHI)","Prestação de serviços de programa de controle externo de qualidade para laboratórios de histocompatibilidade.","Não",null,"2026-05-22","2027-05-21","Sim",null,null,"2036-05-21","04","2027",526.25,6315,6315,"T.GLA.HLA",null,"Milena Batista de Oliveira","Luciana Lara Viegas da Aparecida","Victor Adler Oliveira","Júlia Carolina Soares"]
["9496.684/26",9496684,"2320.01.0015615/2025-48","Associação Profisionalizante do Menor de Belo Horizonte - ASSPROM","Prestação de serviços de mão de obra de adolescentes trabalhadores.","Não",null,"2026-04-02","2027-04-01","Sim",null,null,"2036-04-01","04","2027",65518.45,786221.43,786221.43,"G.GGP.SACD",null,"Monique Camila Silva","Polliany Christina de Freitas Grope Aquino","Kathryna Fontana Rodrigues","Iara Simões Xavier"]
["9489.138/25",9489138,"2320.01.0006275/2025-28","Áudio Mister Mix Ltda.","Pretação de serviços de movimentação de dois analisadores PK 7300.","Não",null,"2025-12-12","2026-12-11","Não",null,null,"2026-12-11","12","2026",15500,31000,31000,"HBH.A.MPR",null,"Douglas Augusto Rodrigues Pereira","Felipe Garabini Antunes","Kathryna Fontana Rodrigues","Iara Simões Xavier"]
["9439.966/24",9439966,"2320.01.0014470/2024-23","Auto Serviço Santo Agostinho Ltda","Aquisição gêneros alimentícios para lanche diário do doador de sangue do Hemonúcleo de São João del Rei.","Não",null,"2024-10-08","2025-10-07","Sim","2025-10-08","2026-10-07","2034-10-07","10","2026",null,0,51497.68,"SJR.A.COM",null,"Adauto Rocha dos Santos","Tânia Mara da Silveira Santos","Victor Adler Oliveira","Júlia Carolina Soares"]
["9492.113/25",9492113,"2320.01.0005897/2025-49","B & F Lavagem Automotiva e Predial Ltda.","Prestação de serviços de higienização e limpeza de veículos.","Não",null,"2025-12-23","2026-12-22","Sim",null,null,"2035-12-22","12","2026",4680.25,56163,56163,"G.GLQ.PRT.TRANSPORTE",null,"Roger Cássio Neves de Aguiar","Anastas Falcão Quirino Chaves","Victor Adler Oliveira","Júlia Carolina Soares"]
["9437.652/24",9437652,"2320.01.0014994/2023-40","Baltazar Ribeiro Rodrigues 09314213650 - ME","Prestação de Serviço de manutenção preventiva e corretiva em aparelhos de ar condicionado, incluindo fornecimento de peças - Hemonúcleo de Patos de Minas da Fundação Hemominas.","Não",null,"2024-09-23","2025-09-22","Sim","2025-09-23","2026-09-22","2029-09-22","09","2026",null,0,49685.32,"PMI.GAD",null,"Nilza Canêdo de Magalhães","Heleno de Lima Marques","Victor Adler Oliveira","Júlia Carolina Soares"]
[" 9430.225/24",9430225,"2320.01.0018020/2023-12","Becton Dickinson Indústrias Cirúrgicas Ltda","Aquisição de Solução salina, kit contagem de células CD 34+, kit para citômetro de fluxo e kit calibração","Não",null,"2024-06-26","2025-06-25","Sim","2025-06-26","2026-06-25","2034-06-25","06","2026",{"$f":"Tabela1[[#This Row],[VALOR TOTAL]]/12","v":16388.853333333333},196666.23999999999,196666.23999999999,"CETEBIO",null,"Maria Lúcia Soares de Moura","Thiago Jocides Arruda Batista","Kathryna Fontana Rodrigues","Iara Simões Xavier"]
["9481.974/25",9481974,"2320.01.0015815/2025-80","Becton Dickinson Indústrias Cirúrgicas Ltda","Compra de anticorpos (lote 01).","Não",null,"2025-11-07","2026-11-06","Sim",null,null,"2035-11-06","11","2026",193.5,2322,23220,"CETEBIO",null,"Maria Lúcia Soares de Moura","Maurício Colombini Martins","Iara Simões Xavier","Marcela Soares Ferreira"]
["9280.256/21",9280256,"2320.01.0014726/2019-13","BIO-RAD Laboratórios Brasil Ltda","Aquisição de sistema analítico para realização dos testes imunohematológicos do receptor e paciente, com equipamentos em comodato.","Sim",null,"2021-06-02","2022-06-01","Sim","2025-06-02","2026-06-01","2026-06-01","06","2026",165677.44,1988129.3,1988129.3,"T.GLA.CIH","Luciana Cayres Schmidt                         Patrícia Savini","Luciana Cayres Schmidt",null,"Victor Adler Oliveira","Júlia Carolina Soares"]
["9454.460/25",9454460,"2320.01.0003868/2025-27","BIO-RAD Laboratórios Brasil Ltda","Aquisição de reagentes para testes imunohematológicos (lotes 02 e 03).","Não",null,"2025-03-13","2026-03-12","Sim","2026-03-13","2027-03-12","2035-03-12","03","2027",null,35657.279999999999,35657.279999999999,"T.GLA.CIH",null,"Luciana Cayres Schmidt","Fabrizzio de Oliveira Dias","Kathryna Fontana Rodrigues","Iara Simões Xavier"]
["9471.996/25",9471996,"2320.01.0010384/2025-53","BIO-RAD Laboratórios Brasil Ltda","Aquisição de conjunto analítico para realização de testes imunohematológicos, com equipamento em comodato.","Sim",null,"2025-07-29","2026-07-28","Sim",null,null,"2035-07-28","07","2026",{"$f":"Tabela1[[#This Row],[VALOR TOTAL]]/12","v":487659.16666666669},5851910,5851910,"T.GLA.CIH",null,"Sabrina Vieira Espíndola","Nauhara Vieira de Castro Barroso","Kathryna Fontana Rodrigues","Iara Simões Xavier"]
["9394.630/23",9394630,"2320.01.0013744/2023-34","BIO-RAD Laboratórios Brasil Ltda","Aquisição de reagentes para imunohematologia (Lotes 01, 02 e 03).","Sim",null,"2023-09-30","2024-09-29","Sim","2025-09-30","2026-09-29","2028-09-29","09","2026",91390.1,1096681.2,5483406,"T.GLA.CIH",null,"Luciana Cayres Schmidt","Carolina Andrade","Iara Simões Xavier","Marcela Soares Ferreira"]
["9468.364/25",9468364,"2320.01.0000050/2025-02","BIO-RAD Laboratórios Brasil Ltda","Aquisição de reagentes para realização de testes imunohematológicos (lotes 01 e 06).","Não",null,"2025-05-21","2026-05-20","Sim",null,null,"2035-05-20","05","2026",null,0,73190.36,"T.GLA.CIH",null,"Luciana Cayres Schmidt","Fabrizzio de Oliveira Dias","Victor Adler Oliveira","Júlia Carolina Soares"]
["9483.072/25",9483072,"2320.01.0016094/2025-16","Biocell Biotecnologia Ltda","Aquisição de reagentes para testes imunohematológicos (Lote 06).","Não",null,"2025-11-12","2026-11-11","Sim",null,null,"2035-11-11","11","2026",null,1550,1550,"T.GLA.CIH",null,"Luciana Cayres Schmidt","Ariane Ribeiro da Silva","Kathryna Fontana Rodrigues","Iara Simões Xavier"]
["9502.051/26",9502051,"2320.01.0005942/2026-92","Biocell Biotecnologia Ltda","Aquisição de reagentes necessário para tipificação HLA (média/alta resolução) de amostras de Doadores e Receptores de Medula Óssea e órgãos sólidos de todo o Estado de Minas Gerais. (Loe 01).","Não",null,"2026-04-23","2027-04-22","Não",null,null,"2027-04-22","04","2027",null,269.38,269.38,"T.GLA.HLA",null,"Milena Batista de Oliveira","Ricardo Alves de Cristo","Iara Simões Xavier","Kathryna Fontana Rodrigues"]
["9470.571/25",9470571,"2320.01.0008902/2025-06","Biocontrol Ltda.","Contratação de serviços de monitoramento da qualidade do ar nas unidades da Fundação Hemominas em Uberada e Governador Valadares (lotes 02 e 05).","Não",null,"2025-06-20","2026-06-19","Sim",null,null,"2035-06-19","06","2026",1942.5,23310,23310,"DGI.ENC",null,"João Silvestre Guimarães","Renatha Samantha Martins Blasco","Victor Adler Oliveira","Júlia Carolina Soares"]
["9480.463/25",9480463,"2320.01.0010263/2025-22","Biohealth Comércio e Importação de Equipamentos e Produtos Médicos Ltda","Aquisição de cânula uso laboratório","Não",null,"2025-10-14","2026-10-13","Sim",null,null,"2035-10-13","10","2026",null,26748,26748,"CETEBIO",null,"Maria Lúcia Soares de Moura","Jucélia Schittini da Silva Morais","Kathryna Fontana Rodrigues","Iara Simões Xavier"]
["9412.683/24",9412683,"2320.01.0011232/2023-55","Biologística Soluções em Logística e Serviços Ltda","Prestação de serviço de transporte de material biológico de origem humana ou animal, por via aérea e rodoviária.","Não",null,"2024-03-01","2025-02-28","Sim","2026-03-01","2027-02-28","2029-02-28","02","2027",{"$f":"R55/12","v":426157.34333333332},5113888.12,5113888.12,"G.GLQ",null,"Gisele de Fátima Melo","Rosangela Vital de Almeida","Victor Adler Oliveira","Júlia Carolina Soares"]
["9319.188/22",9319188,"2320.01.0000684/2022-62","Biomédica Equipamentos e Suprimentos Hospitalares Ltda","Aquisição de reagentes para agregação plaquetária (ADP, lote 03, item 01).","Não",null,"2022-01-25","2023-01-24","Sim","2026-01-25","2027-01-24","2027-01-24","01","2027",773.33,9280,46399.8,"HBH.T.LHEM",null,"Beatriz Nogueira de Carvalho","João Henrique Fonseca de Moura","Iara Simões Xavier","Marcela Soares Ferreira"]
["9397.823/23",9397823,"2320.01.0003862/2023-98","Biomédica Equipamentos e Suprimentos Hospitalares Ltda","Prestação de serviço de Manutenção Preventiva, Corretiva e Calibração do Agregômetro Plaquetas Chronolog 700.","Não",null,"2023-11-01","2024-10-31","Sim","2025-11-01","2026-10-31","2028-10-31","10","2026",{"$f":"R57/12","v":6343.75},76125,76125,"DGI.ENC",null,"Felipe Garabini Antunes","Eduardo da Silva Oliveira","Kathryna Fontana Rodrigues","Iara Simões Xavier"]
["9389.604/23",9389604,"2320.01.0016138/2021-04/2021-97","Biometrix Diagnóstica Ltda.","Aquisição de Sistema analítico completo para realização de tipificação de HLA por metodologia de sequenciamento de nova geração – NGS.","Sim",null,"2023-07-04","2024-07-03","Sim","2025-07-04","2026-07-03","2028-07-03","07","2026",{"$f":"Tabela1[[#This Row],[VALOR ANUAL]]/12","v":687781.12666666659},8253373.5199999996,8253373.5199999996,"T.GLA.HLA",null,"Felipe Carlos Brito de Souza","Luciana Lara Viegas da Aparecida","Júlia Carolina Soares","Victor Adler Oliveira"]
["9392.802/23",9392802,"2320.01.0012180/2023-67","Biometrix Diagnóstica Ltda.","Aquisição de Insumos e reagentes necessário para tipificação HLA (média/alta resolução) de amostras de Doadores e Receptores de Medula Óssea (lotes 03 e 04).","Não",null,"2023-08-25","2024-08-24","Sim","2025-08-25","2026-08-24","2028-08-24","08","2026","-",null,34341.699999999997,"T.GLA.HLA",null,"Felipe Carlos Brito de Souza","Luciana Lara Viegas da Aparecida","Victor Adler Oliveira","Júlia Carolina Soares"]
["9504.055/26",9504055,"2320.01.0010297/2025-74","Bioprolab Laboratório de Controle de Qualidade Ltda","Prestação de serviços de monitoramento da qualidade do ar das áreas climatizadas do Hemocentro de Montes Claros.","Não",null,"2026-04-29","2027-04-28","Sim",null,null,"2036-04-28","04","2027",null,14820,14820,"MOC.GAD",null,"Daniel Nascimento Salgado","Nátaly Mariana Silva","Kathryna Fontana Rodrigues","Iara Simões Xavier"]
["9445.649/24",9445649,"2320.01.0010119/2024-33","Biosave - Diagnóstica Ltda - EPP.","Aquisição de antígeno de VDRL","Não",null,"2024-12-16","2025-12-15","Sim","2025-12-16","2026-12-15","2034-12-15","12","2026",null,1575,1575,"T.GLA.CSO",null,"Sônia Mara Nunes da Silva","Leonardo Antônio Renna Batalha","Kathryna Fontana Rodrigues","Iara Simões Xavier"]
["9459.553/25",9459553,"2320.01.0005167/2025-68","Biosave - Diagnóstica Ltda - EPP.","Aquisição de tubos e ponteiras (Lote 03).","Não",null,"2025-04-04","2026-04-03","Sim","2026-04-04","2027-04-03","2035-04-03","04","2027",null,40770,40770,"T.GLA",null,"João Paulo dos Santos Barbosa","Nilda Maria Campos Lucena","Victor Adler Oliveira","Júlia Carolina Soares"]
["9447.087/24",9447087,"2320.01.0004984/2024-65","BMA Comércio de Produtos Aromáticos e Locação de Equipamentos Eletroeletrônicos Ltda","Prestação de Serviço de purificação, desinfecção e aromatização de banheiros (com equipamentos em comodato), para o Hemocentro de Belo Horizonte da Fundação Hemominas.","Sim",null,"2024-12-27","2025-12-26","Sim","2025-12-27","2026-12-26","2034-12-26","12","2026",{"$f":"Tabela1[[#This Row],[VALOR TOTAL]]/12","v":2470},29640,29640,"HBH.A.SGS",null,"Hamilton Silva",null,"Kathryna Fontana Rodrigues","Iara Simões Xavier"]
["9388.815/23",9388815,"2320.01.0004662/2022-35","BR Life LCC representada pela empresa Biometrix Diagnóstica Ltda.","Aquisição de kits reagentes de histocompatibilidade, com cessão de equipamentos em comodato.","Sim",null,"2023-06-20","2024-06-19","Sim","2025-06-20","2026-06-19","2028-06-19","06","2026",202349,2428189.7400000002,12140940,"T.GLA.HLA",null,"Felipe Carlos Brito de Souza","Nathália Gomide Cruz","Iara Simões Xavier","Marcela Soares Ferreira"]
["9459.853/25",9459853,"2320.01.0015058/2025-52","BRASIL TECPAR SERVIÇOS DE TELECOMUNICAÇÕES S.A","Contratação de serviços de telecomunicações necessários à implantação, operação, manutenção e gerenciamento de rede IP Multiserviços, de serviços de valor adicionado e de serviço de trânsito e acesso à internet, além de fornecimento de informações para a administração pública (lote 12), visando atender os Órgãos e Entidades Anuentes.","Não","Sim","2025-05-19","2030-05-18","Sim",null,null,"2035-05-18","05","2030",{"$f":"Tabela1[[#This Row],[VALOR ANUAL]]/12","v":746533.65},{"$f":"Tabela1[[#This Row],[VALOR TOTAL]]/5","v":8958403.8000000007},44792019,"I.GTC.ITS",null,"Daniel Eustáquio Coutinho","Fabrine Juliana Fabricio Costa / Emanuel Camilo de Oliveira","Kathryna Fontana Rodrigues","Iara Simões Xavier"]
["9434.090/24",9434090,"2320.01.0002049/2024-61","Brasoftware Informática Ltda."," Subscrições de licenças do software Adobe Creative Cloud for Teams Complete","Não",null,"2024-08-05","2025-08-04","Sim","2025-08-05","2026-08-04","2034-08-04","08","2026",{"$f":"R66/12","v":4194.8916666666664},50338.680000000008,50338.7,"I.GTC.ADS",null," Renato Vianna do Valle Júnior","Luciene Aparecida Nogueira Queiroz","Victor Adler Oliveira","Júlia Carolina Soares"]
["9486.895/25",9486895,"2320.01.0014479/2025-68","Brasoftware Informática Ltda.","Compra Central - Licenças Microsoft","Não","Sim","2025-12-10","2028-12-09","Sim",null,null,"2035-12-09","12","2028",null,12714778,12714778,"I.GTC.ITS",null,"Daniel Eustáquio Coutinho","Fabrine JuliaFabricio Costa","Júlia Carolina Soares","Victor Adler Oliveira"]
["9332.206/22",9332206,"2320.01.0011584/2021-63","Bravo Ar Service Comércio Máquinas e Equipamentos Ltda","Prestação de serviço de manutenção preventiva e corretiva em aparelho de ar condicionado do Hemocentro Regional de Uberaba, da Fundação Hemominas.","Não",null,"2022-04-29","2023-04-28","Sim","2026-04-29","2027-04-28","2027-04-28","04","2027",{"$f":"Tabela1[[#This Row],[VALOR ANUAL]]/12","v":9025.8541666666661},108310.25,108310.25,"URA.GAD",null,"Leila Pereira","Lúcia de Fátima Oliveira","Júlia Carolina Soares","Victor Adler Oliveira"]
["9440.837/24",9440837,"2320.01.0004045/2024-04","C & D indústria e Comércio de Alimentos Ltda - EPP","Aquisição de produtos e insumos que compõem o lanche diário do Doador Voluntário de Sangue e para a Semana Nacional do Doador de Sangue, aquisição de adoçantes para servidores e doadores, contratação da prestação de fornecimento de gêneros alimentícios e coffee break para a comemoração ao Dia do Paciente, em Montes Claros.","Não",null,"2024-10-25","2025-10-24","Sim","2025-10-25","2026-10-24","2034-10-24","10","2026",null,156677.56,152677.56,"MOC.GAD",null,"Daniel Nascimento Salgado","Rodney Araújo Viana","Victor Adler Oliveira","Júlia Carolina Soares"]
["9374.623/23",9374623,"2320.01.0012728/2022-18","C M Pingo Ar Condicionado","Prestação de serviço de manutenção preventiva e corretiva em aparelhos de ar condicionado para o Hemonúcleo de Divinópolis da Fundação Hemominas.","Não",null,"2023-03-03","2024-03-02","Sim","2026-03-03","2027-03-02","2028-03-02","03","2027",{"$f":"Tabela1[[#This Row],[VALOR ANUAL]]/12","v":4346.1000000000004},52153.200000000004,54377.66,"DIV.GAD",null,"Nilba Valéria Pinheiro de Oliveira","Nayara Suélem Silva","Júlia Carolina Soares","Victor Adler Oliveira"]
["9482.009/25",9482009,"2320.01.0009587/2025-38","CAB Tecnologia e Sistemas Comércio Ltda.","Prestação de serviços de outsourcing de impressão.","Não",null,"2025-11-07","2026-11-06","Não",null,null,"2026-11-06","11","2026",105192.75,1262313,1262313,"I.GTC.ITS",null,"Daniel Eustáquio Coutinho","Fabrine Juliana Fabricio Costa","Victor Adler Oliveira","Júlia Carolina Soares"]
["9316.151/21",9316151,"2320.01.0013685/2020-84","Caldas Extintores e Equipamentos Contra Incêndio Eireli","Prestação de serviço de manutenção dos sistemas de prevenção e combate a incêndio e pânico das Unidades da Fundação Hemominas - Uberlândia (lote 07).","Não",null,"2022-01-07","2023-01-06","Sim","2026-01-07","2027-01-06","2027-01-06","01","2027",{"$f":"R72/12","v":815.00333333333344},9780.0400000000009,9780.0400000000009,"UDI.A.COM",null,"Renata Léa Silva Souza","Márcia Regina Luis","Kathryna Fontana Rodrigues","Iara Simões Xavier"]
["9501.806/26",9501806,"2320.01.0012267/2024-43","Carlos Eduardo Silva & MS Ltda.","Aquisição de gás carbônico: tipo medicinal e tipo industrial.","Sim",null,"2026-04-24","2027-04-23","Sim",null,null,"2036-04-23","04","2027",6231.5,74778,74778,"CETEBIO",null,"Diogo Vital Mota","Maurício Colombini Martins","Júlia Carolina Soares","Victor Adler Oliveira"]
["9396.909/23",9396909,"2320.01.0005396/2023-02","CEI - Comércio, Exportação e Importação de Materiais Médicos Ltda.","Prestação de serviço de locação de equipamentos de redução de patógenos (Lote 02)","Não",null,"2023-11-10","2024-11-09","Sim","2025-11-10","2026-11-09","2027-11-09","11           ","2026",{"$f":"R74/12","v":33000},396000,396000,"T.GCQ / DGI.ENC",null,"Adilson Meireles Pacheco","Felipe Garabini\nAntunes","Kathryna Fontana Rodrigues","Iara Simões Xavier"]
["9438.029/24",9438029,"2320.01.0014026/2024-80","CEI - Comércio Exportação e Importação de Materiais Médicos Ltda.","Aquisição de filtros para remoção de leucócitos em concentrado de plaquetas (Lote 03).","Não",null,"2024-10-07","2025-10-06","Sim","2025-10-07","2026-10-06","2034-10-06","10","2026",{"$f":"Tabela1[[#This Row],[VALOR ANUAL]]/12","v":2706.6666666666665},32480,32480,"T.GCQ",null,"Roberto Mauro Ferreira Silva",null,"Júlia Carolina Soares","Victor Adler Oliveira"]
["9440.672/24",9440672,"2320.01.0007173/2024-35","CEI - Comércio, Exportação e Importação de Materiais Médicos Ltda.","Aquisição de dispositivo estéril para transferência de componentes sanguíneos - Polling Set.","Não",null,"2024-10-21","2025-10-20","Sim","2025-10-21","2026-10-20","2034-10-20","10","2026",98666.67,1184000,592000,"T.GCQ",null,"Ana Paula de Morais","Gabriela Coelho de Rezende","Victor Adler Oliveira","Júlia Carolina Soares"]
["9459.868/25",9459868,"2320.01.0013884/2024-34","CEI - Comércio, Exportação e Importação de Materiais Médicos Ltda.","Aquisição de dispositivo estéril para transferência e coleta de amostras de concentrados de plaquetas (CP) em sistema fechado.","Não",null,"2025-04-14","2026-04-13","Sim","2026-04-14","2027-04-13","2035-04-13","04","2027",56250,675000,675000,"T.GCQ",null,"Luciana de Souza Madeira Ferreira Boy","Ana Paula de Morais","Victor Adler Oliveira","Júlia Carolina Soares"]
["9505.719/26",9505719,"2320.01.0009981/2025-70","CEI - Comércio, Exportação e Importação de Materiais Médicos Ltda.","Aquisição de filtros para remoção de leucócitos em concentrado de plaquetas.","Não",null,"2026-05-14","2027-05-13","Não",null,null,"2027-05-13","05","2027",null,170880,170880,"T.GCQ",null,"Roberto Mauro Ferreira Silva","Alexander Lúcio de Sá Araújo","Júlia Carolina Soares","Victor Adler Oliveira"]
["9372.092/23",9372092,"2320.01.0016836/2022-70","Celasa Análises Ltda - ME","Prestação de serviços de análise e monitoramento da qualidade da água nas edificações utilizadas pela Fundação Hemominas (Lote 01).","Não",null,"2023-03-16","2024-03-15","Sim","2026-03-16","2027-03-15","2028-03-15","03","2027",{"$f":"Tabela1[[#This Row],[VALOR TOTAL]]/12","v":1626.7883333333332},19521.46,19521.46,"I.GIF.AQE",null,"Jéssica Rodrigues Barbosa","Leila Guedes Alvim","Kathryna Fontana Rodrigues","Iara Simões Xavier"]
["9434.240/24",9434240,"2320.01.0001605/2024-21","Celasa Análises Ltda - ME","Prestação de serviços de coleta e análise do efluente oriundo do Hemocentro Regional de Juiz de Fora.","Não",null,"2024-08-06","2025-08-05","Sim","2025-08-06","2026-08-05","2034-08-05","08","2026",665.36500000000001,7984.4400000000005,7984.38,"GAD.JFO",null,"Victor Valente Campos","Fernando dos Santos Henriques","Victor Adler Oliveira","Júlia Carolina Soares"]
["9473.316/25",9473316,"2320.01.0013928/2024-10","Celasa Análises Ltda.","Contratação de sesrviços de monitoramento microbiológico ambiental dos ambientes controlados (sala limpa e cabines de segurança biológica) do CETEBIO.","Não",null,"2025-08-06","2026-08-05","Sim",null,null,"2035-08-05","08","2026",{"$f":"Tabela1[[#This Row],[VALOR TOTAL]]/12","v":9552},114624,114624,"CETEBIO",null,"Maria Lúcia Soares de Moura","Jucélia Schittini da Silva Morais","Kathryna Fontana Rodrigues","Iara Simões Xavier"]
["9492.001/25",9492001,"2320.01.0005681/2025-61","Celasa Análises Ltda.","Prestação de serviços de monitoramento da qualidade do ar das áreas climatizadas do Hemocentro Regional de Juiz de Fora,","Não",null,"2025-12-23","2026-12-22","Sim",null,null,"2035-12-22","12","2026",null,0,10576.8,"JFO.A.MEQ",null,"Victor Valente Campos","Fernando dos Santos Henriques","Júlia Carolina Soares","Victor Adler Oliveira"]
["9484.054/25",9484054,"2320.01.0016050/2025-40","Cellco Biotec do Brasil Ltda.","Aquisição de reagentes para testes imunohematológicos (Lotes 09, 10, 15 e 16).","Não",null,"2025-11-17","2026-11-16","Sim",null,null,"2035-11-16","11","2026",null,4600,4660,"T.GLA.CIH",null,"Luciana Cayres Schmidt","Ariane Ribeiro da Silva","Kathryna Fontana Rodrigues","Iara Simões Xavier"]
[" 9434.231/24 ",9434231,"2320.01.0007141/2024-26","CEMIG Distribuição S/A"," o estabelecimento das condições, procedimentos, direitos e obrigações das PARTES que regularão a conexão das instalações da unidade de consumo do ACESSANTE ao SISTEMA DE DISTRIBUIÇÃO\noperado pela CEMIG D e o uso desse SISTEMA DE DISTRIBUIÇÃO pelo ACESSANTE em sua unidade inscrita no CNPJ/MF nº 26.388.330/0001-90, Inscrição Estadual nº 062779821-0031, na Alameda Ezequiel Dias nº 321, Bairro Centro, Município de\nBelo Horizonte, Minas Gerais, na tensão contratada de 220 V, em rede subterrânea","Não",null,"2024-08-06",null,null,"2025-08-06","2026-08-05","2025-08-05","08","2026",{"$f":"Tabela1[[#This Row],[VALOR ANUAL]]/12","v":217025.6875},2604308.25,2604308.25,"HBH.A.MPR",null,"Douglas Augusto Rodrigues Pereira","Paula Maria Leão Mendes Roenick","Júlia Carolina Soares","Victor Adler Oliveira"]
[" 9434.213/24 ",9434213,"2320.01.0004285/2024-23","CEMIG Distribuição S/A","o estabelecimento das condições, procedimentos,\ndireitos e obrigações das PARTES que regularão a conexão das instalações da unidade de consumo do ACESSANTE ao SISTEMA DE DISTRIBUIÇÃO operado pela CEMIG D e o uso desse SISTEMA DE DISTRIBUIÇÃO pelo ACESSANTE em sua unidade inscrita no CNPJ/MF nº 26.388.330/0001-90, Inscrição Estadual nº 0627798210031, na Av Levino De Souza 1845 CO, Bairro Umuarama, Município de UBERLANDIA, Estado de Minas Gerais, na tensão contratada de 13,8 kV","Não",null,"2024-08-06",null,null,"2025-08-06","2026-08-05","2034-08-05","08","2026",{"$f":"Tabela1[[#This Row],[VALOR TOTAL]]/12","v":5261.9866666666667},63143.839999999997,63143.839999999997,"UDI.A.COM",null,"Márcia Regina Luis","Renata Léa Silva Souza","Kathryna Fontana Rodrigues","Iara Simões Xavier"]
["9441.722/24",9441722,"2320.01.0009885/2024-46","CEMIG Distribuição S/A","o estabelecimento das condições, procedimentos,\ndireitos e obrigações das PARTES que regularão a conexão das instalações da unidade de consumo do ACESSANTE ao Sistema de Distribuição operado pela CEMIG D e o uso desse Sistema de Distribuição pelo ACESSANTE em sua\nunidade inscrita no CNPJ/MF nº 26.388.330/0001-90, Inscrição Estadual nº\n0627798210031, na RUA GOIABEIRAS, 779, Bairro INDUSTRIAL, situada no Município de LAGOA SANTA, Estado de Minas Gerais, na tensão contratada de 13,8 kV.","Não",null,"2024-12-04",null,null,null,"INDETERMINADA",null,null,null,39781.35,514516.15,514516.15,"CETEBIO",null,"Maria Lúcia Soares de Moura",null,"Kathryna Fontana Rodrigues","Iara Simões Xavier"]
["9443.388/24",9443388,"2320.01.0009009/2024-30","CEMIG Distribuição S/A","o estabelecimento das condições, procedimentos,\ndireitos e obrigações das PARTES que regularão a conexão das instalações da unidade de consumo do ACESSANTE ao Sistema de Distribuição operado pela CEMIG D e o uso desse Sistema de Distribuição pelo ACESSANTE em sua\nunidade inscrita no CNPJ/MF nº 26.388.330/0002-70, na RUA URBINO VIANA, 640 HP, Bairro CIDADE SANTA MARIA, situada no Município de MONTES CLAROS, Estado de Minas Gerais, na tensão contratada de 13,8 kV.","NÃO",null,"2024-12-04",null,null,null,"INDETERMINADA",null,null,null,27217.91,326614.92,326614.92,"MOC.A.COM",null,"Gasparina Meurelle Santos Chaves",null,"Iara Simões Xavier","Marcela Soares Ferreira"]
["9440.024/24",9440024,"2320.01.0009521/2024-77","CEMIG Distribuição S/A","o estabelecimento das condições, procedimentos,\ndireitos e obrigações das PARTES que regularão a conexão das instalações da unidade de consumo do ACESSANTE ao Sistema de Distribuição operado pela CEMIG D e o uso desse Sistema de Distribuição pelo ACESSANTE em \nunidade inscrita no CNPJ/MF nº 26.388.330/0004-32, na AV DOS ANDRADAS , 266, Bairro CENTRO, situada no Município de JUIZ DE FORA, Estado de Minas Gerais, na tensão contratada de 22 kV.","Não",null,"2024-12-04",null,null,null,"INDETERMINADA",null,null,null,26744.27,320931.24,349139.4,"JFO.A.MEQ",null,"Victor Valente Campos","Fernando dos Santos Henriques","Victor Adler Oliveira","Júlia Carolina Soares"]
["9442.145/24",9442145,"2320.01.0008465/2024-71","CEMIG Distribuição S/A","o estabelecimento das condições, procedimentos,\ndireitos e obrigações das PARTES que regularão a conexão das instalações da unidade de consumo do ACESSANTE ao Sistema de Distribuição operado pela CEMIG D e o uso desse Sistema de Distribuição pelo ACESSANTE em sua\nunidade inscrita no CNPJ/MF nº 26.388.330/0003-51, na RUA RUI BARBOSA 149 HP, Bairro CENTRO, situada no Município de GOVERNADOR VALADARES, Estado de Minas Gerais, na tensão contratada de 13,8 kV.","Não",null,"2024-12-04",null,null,null,"INDETERMINADA",null,null,null,23404.09,280849.08,302699.2,"GOV.GAD",null,"Bruno Sousa Macedo","Deivandro Lessa","Victor Adler Oliveira","Júlia Carolina Soares"]
["9483.915/25",9483915,"2320.01.0011596/2025-18","CENTERLAB - Central de Artigos Para Laboratórios","Compra de reagente dosagem de proteína.","Não",null,"2025-11-13","2026-11-12","Não",null,null,"2026-11-12","11","2026",{"$f":"Tabela1[[#This Row],[VALOR TOTAL]]/12","v":240.75},2889,2889,"T.GCQ",null,"Roberto Mauro Ferreira Silva","Luciana de Souza Madeira Ferreira Boy","Kathryna Fontana Rodrigues","Iara Simões Xavier"]
["9396.908/23",9396908,"2320.01.0005396/2023-02","CERUS Corporation e Medical Technologies Innovators, Inc representadas pela empresa CEI Comércio Exportação Importação de Material Médico Ltda.","Aquisição de kits descartáveis de reagentes para redução de patógenos (Lote 01)","Não",null,"2023-11-09","2024-11-08","Sim","2025-11-09","2026-11-08","2027-11-08","11        ","2026",{"$f":"Tabela1[[#This Row],[VALOR TOTAL]]/12","v":751500},9018000,9018000,"T.GCQ",null,"Flávia Naves Givisiez","Gabriela Coelho de Rezende","Kathryna Fontana Rodrigues","Iara Simões Xavier"]
["9470.315/25",9470315,"2320.01.0007667/2025-80","Cetus Construtora Ltda.","Serviços comuns de engenharia (manutenção predial) Lote 04.","Não","Sim","2025-06-11","2026-06-10","Sim",null,null,"2030-06-10","06","2026",{"$f":"Tabela1[[#This Row],[VALOR ANUAL]]/12","v":81748.637499999997},980983.65,980983.65,"I.GIF.MPR",null,"Douglas Augusto Rodrigues Pereira","Neylor Assunção Mesquit","Júlia Carolina Soares","Victor Adler Oliveira"]
["9402.584/23",9402584," 2320.01.0016919/2023-57","Claro S/A"," contratação de serviço de telefonia fixa comutada - Link E1 - Regiões 01, 03, 06 e 09, local, fixo-fixo, fixo móvel, DDR, instalação ou transferência, e serviço de telefonia fixa comutada - LDN (Longa Distância Nacional, fixo-fixo, fixo móvel, lotes 01, 03, 06, 09 e 14","Não",null,"2023-12-27","2024-02-26","Sim","2025-12-27","2026-12-26","2028-12-26","12","2026",{"$f":"R93/12","v":9343.1133333333328},112117.36,112117.36,"I.GTC.ITS",null,"Daniel Eustáquio Coutinho","Fabrine Juliana Fabricio Costa","Kathryna Fontana Rodrigues","Iara Simões Xavier"]
["9459.845/25",9459845,"2320.01.0014885/2025-67","Claro S/A","Contratação de serviços de telecomunicações necessários à implantação, operação, manutenção e gerenciamento de Rede IP Multiserviços, de serviços de valor adicionado e de serviço de trânsito e acesso à internet, além de fornecimento de informações para a administração pública (lote 01), visando atender os Órgãos e Entidades Anuentes.","Não","Sim","2025-05-19","2030-05-18","Sim",null,null,"2035-05-18","05","2030",56505.08,678060.96,3390304.8,"I.GTC.ITS",null,"Daniel Eustáquio Coutinho","Fabrine Juliana Fabricio Costa / Emanuel Camilo de Oliveira","Iara Simões Xavier","Marcela Soares Ferreira"]
["9478.744/25",9478744,"2320.01.0013151/2025-34","CMS Científica do Brasil Ltda.","Aquisição de insumos para limpeza de sala limpa ou ambiente controlado ISSO 5 e 7, Lote 01.","Não",null,"2025-09-19","2026-09-18","Sim",null,null,"2035-09-18","09","2026",{"$f":"Tabela1[[#This Row],[VALOR ANUAL]]/12","v":5000},60000,60000,"CETEBIO",null,"Maria Lúcia Soares de Moura","Jucélia Schittini da Silva Morais","Júlia Carolina Soares","Victor Adler Oliveira"]
[" 9344.153/22 ",9344153,"2320.01.0001510/2022-70","Companhia de Saneamento de Minas Gerais - COPASA MG","Prestação de serviço de Recebimento e Tratamento dos efluentes líquidos domésticos e não domésticos - Programa Precend - Copasa MG (Alameda Ezequiel Dias, 321, Bairro Santa Efigênia, Belo Horizonte/MG).","Não",null,"2022-08-23","2027-08-22","Sim",null,null,"2032-08-22","08","2027",105.55,1266.5999999999999,1266.5999999999999,"HBH.A.MPR",null,"Douglas Augusto Rodrigues Pereira","Jéssica Rodrigues Barbosa","Victor Adler Oliveira","Júlia Carolina Soares"]
["9488.034/25",9488034,"2320.01.0006027/2025-31","Concrete Engenharia e Serviços Ltda.","Prestação de seviços de engenharia/arrquitetura para realizar reforma do prédio do Hemocentro de Uberlândia.","Não",null,"2025-12-10","2026-12-09","Não",null,null,"2026-12-09","12","2026",{"$f":"Tabela1[[#This Row],[VALOR TOTAL]]/12","v":37625.311666666668},451503.74,451503.74,"I.GIF.AQE",null,"Silvana Rodrigues dos Santos Rocha","Luciano Magalhães Chaves","Kathryna Fontana Rodrigues","Iara Simões Xavier"]
["9346.082/22",9346082,"2320.01.0005915/2022-57","Consórcio Empreendedor Shopping Estação BH","Locação de imóvel, sala SEB4002B, do Shopping Estação BH, situado na Av. Cristiano Machado, 11.833, Vila Clóris, Belo Horizonte/MG.","Não",null,"2022-11-15","2027-11-14","Não",null,null,"2027-11-14","11","2027",{"$f":"R98/12","v":336390.74},808253.23,4036688.88,"GAD.HBH / HBH.GTE",null,"Paula Maria Leão Mendes Roenick","Laiz Helena Brasil Marzano","Kathryna Fontana Rodrigues","Iara Simões Xavier"]
["9452.416/25",9452416,"2320.01.0014277/2023-96","Construir Engenharia Ltda.","Prestação de serviços de reforma do prédio da Fundação Hemominas situado na Avenida Brasil, em Belo Horizonte/MG.","Não",null,"2025-02-26","2026-02-25","Não","2026-02-26","2026-06-25","2026-06-25","06","2026",null,0,1295089.3799999999,"I.GIF.AQE",null,"Silvana Rodrigues dos Santos Rocha","Eline Magalhães Leite","Victor Adler Oliveira","Júlia Carolina Soares"]
["9460.420/25",9460420,"2320.01.0010012/2024-12","Contagem I Incorporação SPE Ltda.","Locação do imóvel situado à Rua Simão Antônio, n° 149 - Bairro Cincão, Contagem-MG, CEP 32371-620 - Log Contagem I. Número de registro so imóvel 113138.","Não",null,"2025-04-01","2026-03-31","Sim","2026-04-01","2027-03-31","2035-03-31","03","2027",111718.46,1340621.52,1340621.52,"G.GLQ.PTM",null,"Vagner Luiz da Silva","Moisés Patrocínio da Silva","Victor Adler Oliveira","Júlia Carolina Soares"]
["9445.122/24",9445122,"2320.01.0012813/2022-51","Contego Consultoria Ltda","Prestação de Serviço técnico especializado, consultoria e assessoria para adequação, implantação e manutenção da conformidade da Fundação Hemominas (Hemorrede e Administração Central), frente aos requisitos da Lei Geral de Proteção de Dados - LGPD, Lei 13.079 de 14 de agosto de 2018 e alterações posteriores, a ser realizado pela contratada, consistindo na elaboração, desenvolvimento, execução, implementação e implantação do projeto/programa de adequação e conformidade à LGPD, com vistas à criação do programa de governança em privacidade e proteção de dados. ","Não",null,"2024-12-04","2026-08-03","Sim",null,null,"2029-12-03","08","2026",null,0,143000,"PRE.LGPD",null,"Kátia Cardoso Coelho","Maressa Motta Teixeira","Victor Adler Oliveira","Júlia Carolina Soares"]
["9292.254/21",9292254,"2320.01.0009164/2021-25","Control Lab Controle de Qualidade Para Laboratórios Ltda."," Prestação de Serviços para fornecimento de programa de controle externo da qualidade (testes de proficiência) em hemocomponentes","Não",null,"2021-10-09","2022-10-08","Sim","2025-10-09","2026-10-08","2026-10-08","10","2026",6221.18,74654.16,373270.8,"T.GCQ",null,"Roberto Mauro Ferreira Silva","Gabriela Coelho de Rezende","Iara Simões Xavier","Marcela Soares Ferreira"]
["9391.558/23",9391558,"2320.01.0006266/2023-83","Control Lab Controle de Qualidade Para Laboratórios Ltda.","Aquisição de kit para Citômetro de Fluxo.","Não",null,"2023-08-31","2024-08-30","Sim","2025-08-31","2026-08-30","2028-08-30","08","2026","-",{"$error":"#VALUE!"},29617.32,"CETEBIO",null,"Maria Lúcia Soares de Moura","Thiago Jocides Arruda Batista","Victor Adler Oliveira","Júlia Carolina Soares"]
["9410.114/24",9410114,"2320.01.0013723/2023-19","Control Lab Controle de Qualidade Para Laboratórios Ltda.","Prestação de serviços de Programa de Controle Externo de Qualidade, lotes 4, 5 e 6.","Não",null,"2024-02-16","2023-02-15","Sim","2026-02-16","2027-02-15","2029-02-15","02","2027",{"$f":"R104/12","v":831.78000000000009},9981.36,9981.36,"T.GLA / T.GLA.HLA",null,"Fernando Valadares Basques","Beatriz Nogueira de Carvalho","Kathryna Fontana Rodrigues","Iara Simões Xavier"]
["9450.578/25",9450578,"2320.01.0001974/2024-49","Control Lab Controle de Qualidade Para Laboratórios Ltda.","Prestação de serviços de ensaio e proficiência para controle externo.","Não",null,"2025-03-25","2026-03-24","Sim","2026-03-25","2027-03-24","2035-03-24","03","2027",null,0,105888.79,"T.GLA",null,"Fernando Valadares Basques","Milena Batista de Oliveira","Victor Adler Oliveira","Júlia Carolina Soares"]
["9289.870/21",9289870,"2320.01.0004323/2021-73","Controle Analítico Análises Técnicas Ltda","Prestação de serviço de análise e monitoramento da qualidade da água de uso reagente usada nos diversos procedimentos e equipamentos dos laboratórios localizados no Hemocentro de Belo Horizonte (HBH) e CETEBIO.","Não",null,"2021-08-31","2022-08-30","Sim","2025-08-31","2026-08-30","2026-08-30","08","2026",{"$f":"Tabela1[[#This Row],[VALOR ANUAL]]/12","v":6802.95},81635.399999999994,81635.399999999994,"DGI.ENC",null,"Felipe Garabini Antunes","Eduardo da Silva Oliveira","Júlia Carolina Soares","Victor Adler Oliveira"]
["9481.159/25",9481159,"2320.01.0009365/2024-21","Cristina Panificações Ltda.","Prestação de serviços de lanches para o doador de sangue de Patos de Minas.","Não",null,"2025-10-22","2026-10-21","Sim",null,null,"2035-10-21","10","2026",10332.5,123990,123990,"PMI.GAD",null,"Nilza Canêdo de Magalhães","Heleno de Lima Marques","Victor Adler Oliveira","Júlia Carolina Soares"]
["9478.849/25",9478849,"2320.01.0010109/2025-09","Crossing Comércio e Serviços de Tecnologia Ltda","Compra de solução de videoconferência para salas médias (entre 6 e 12 pessoas).","Não",null,"2025-09-18","2026-09-17","Não",null,null,"2026-09-17","09","2026",null,247250,247250,"I.GTC",null,"Daniel Eustáquio Coutinho","Izadalvo Ricardo de Oliveira","Kathryna Fontana Rodrigues","Iara Simões Xavier"]
["9436.710/24",943671,"2320.01.0015829/2023-96","CS BRASIL FROTAS S.A","contratação de serviços de Locação de veículos automotores novos para transporte de pessoas e pequenas cargas, sem condutor, sem fornecimento de combustível, com quilometragem livre, com seguro total sem franquia, e com manutenção preventiva e corretiva, em atendimento às demandas dos órgãos e entidades do Poder Executivo do Estado de Minas Gerais e suas unidades, em todo território estadual, para a prestação de serviços públicos permanentes ou de longa duração.","Não",null,"2024-08-24","2027-08-23","Sim","-",null,"2029-08-23","08","2027",{"$f":"Tabela1[[#This Row],[VALOR ANUAL]]/12","v":88358.255000000005},{"$f":"Tabela1[[#This Row],[VALOR TOTAL]]/5","v":1060299.06},5301495.3,"G.GLQ.PRT.TRANSPORTE",null,"Pablo Ruas dos Santos","Anastas Falcão Quirino Chaves","Júlia Carolina Soares","Victor Adler Oliveira"]
["9484.285/25",9484285,"2320.01.0016379/2025-81","D Gusto Pães e Rotisseria Ltda ME","Fornecimento de gêneros alimentícios para o doador de sangue de Uberândia (Lotes 03 e 04).","Não",null,"2025-11-21","2026-11-20","Não",null,null,"2026-11-20","11","2026",null,42085,42085,"UDI.GAD",null,"Patrícia Santos de Almeida Fernandes","Márcia Regina Luis","Kathryna Fontana Rodrigues","Iara Simões Xavier"]
["9346.666/22",9346666,"2320.01.0007924/2022-37","D.I. Comércio de Peças e Serviços para Geradores Eireli - ME","Prestação de serviço de manutenção preventiva e corretiva em grupo moto gerador, com fornecimento de peças.","Não",null,"2022-11-26","2023-11-25","Sim","2025-11-26","2026-11-25","2027-11-25","11","2026",{"$f":"R111/12","v":19657.663333333334},235891.91999999998,235891.96,"DGI.ENC",null,"Wesley Rodrigues Tomaz","Thiago Euzébio dos Santos","Victor Adler Oliveira","Júlia Carolina Soares"]
["9430.232/24",9430232,"2320.01.0010097/2023-48","D.I. COMÉRCIO DE PEÇAS E SERVIÇOS PARA GERADORES EIRELI - ME.","Prestação de Serviço de locação de equipamentos de geração e distribuição de energia.","Não",null,"2024-06-25","2028-06-24","Sim",null,null,"2034-06-24","06","2028",{"$f":"R112/48","v":4199.99},50399.88,201599.52,"DGI.ENC",null,"Renata Samantha Martins Blasco","Adilson Meireles Pacheco","Victor Adler Oliveira","Júlia Carolina Soares"]
["9454.453/25",9454453,"2320.01.0003856/2025-60","Danilo Aparecido Borela EPP","Aquisição de nitrogênio líquido (Lote 01).","Não",null,"2025-03-13","2026-03-12","Sim","2026-03-13","2027-03-12","2035-03-12","03","2027",1015.7,12188.4,121884,"T.GLA.CIH",null,"Luciana Cayres Schmidt","Fabrizzio de Oliveira Dias","Iara Simões Xavier","Marcela Soares Ferreira"]
["9437.724/24",9437724,"2320.01.0005968/2024-75","Datacop Serviços de Digitalização e Gestão da Informação Ltda.","Prestação de Serviço de digitalização, indexação, visualização e gerenciamento de documentos digitais.","Não",null,"2024-09-23","2025-09-22","Sim","2025-09-23","2026-09-22","2029-09-22","09","2026",{"$f":"Tabela1[[#This Row],[VALOR TOTAL]]/12","v":1565.8233333333335},18789.88,18789.88,"T.GLA.CIH",null,"Luciana Cayres Schmidt","Felipe Carlos Brito de Souza","Kathryna Fontana Rodrigues","Iara Simões Xavier"]
["9346.205/22",9346205,"2320.01.0006344/2022-17","Datafilme Sistemas de Imagem e Informação - Eireli","Prestação de serviço de coleta, transporte, indexação, armazenagem, conservação, movimentação e gerenciamento informatizado de caixas-arquivo, contendo documentos, e de mídias micrografias originais obedecendo às normas de segurança e preservação.","Não",null,"2022-11-08","2023-11-07","Sim","2025-11-08","2026-11-07","2027-11-07","11","2026",{"$f":"R115/12","v":14763.980000000001},177167.76,177167.76,"G.GPO.NAC",null,"Maria Isabel Castilho Campos","Valéria Christina Pinto da Silva Penna","Kathryna Fontana Rodrigues","Iara Simões Xavier"]
["9442.236/24",9442236,"2320.01.0000765/2024-03","Datamed Ltda.","Prestação de serviço de manutenção em centrífugas refrigeradas.","Não",null,"20/11/2024","2025-11-19","Sim","2025-11-20","2026-11-19","2034-11-19","11","2026",{"$f":"Tabela1[[#This Row],[VALOR ANUAL]]/12","v":117578.96583333334},1410947.59,1410947.59,"DGI.ENC",null,"Marcelo Furtado dos Santos","Felipe Garabini Antunes","Júlia Carolina Soares","Victor Adler Oliveira"]
["9476.440/25",9476440,"2320.01.0012229/2025-96","David de Paula Martins","Contratação de serviços de manutenção, reforma, reparo e adaptação em móveis e acessórios hospitalares (Lote 05).","Não",null,"2025-08-29","2026-08-28","Sim",null,null,"2035-08-28","08","2026",{"$f":"Tabela1[[#This Row],[VALOR TOTAL]]/12","v":7751.333333333333},93016,93016,"DGI.ENC",null,"Felipe Garabini Antunes","Eduardo da Silva Oliveira","Kathryna Fontana Rodrigues","Iara Simões Xavier"]
["9486.894/25",9486894,"2320.01.0010100/2025-58","DCA Manutenção de Elevadores Ltda. - ME","Prestação de serviços de manutenção preventiva e corretiva em elevador do Hemocentro Regional de Montes Claros.","Não",null,"2025-12-09","2026-12-08","Sim",null,null,"2035-12-08","12","2026",{"$f":"Tabela1[[#This Row],[VALOR ANUAL]]/12","v":2871.1666666666665},34454,34454,"MOC.GAD",null,"Daniel Nascimento Salgado","Emanuelle Aparecida Bruzinga Machado","Júlia Carolina Soares","Victor Adler Oliveira"]
["9489.279/25",9489279,"2320.01.0017583/2025-68","DCB Distribuidora Cirúrgica Ltda.","Aquisição de insumos médicos hospitalares (Lote 05).","Não",null,"2025-12-16","2026-12-15","Sim",null,null,"2035-12-15","12","2026",1604.17,19250,192500.4,"G.GLQ.ADM",null,"Mônica Vieira Gomes","Nilda Maria Campos Lucena","Iara Simões Xavier","Marcela Soares Ferreira"]
["9483.937/25",9483937,"2320.01.0016259/2025-23","Dedetizadora Itabirito Ltda.","Prestação de serviços de desinsetização e desratização (Lotes 02, 03, 10, 13 e 15).","Não",null,"2025-11-18","2026-11-17","Sim",null,null,"2035-11-17","11","2026",332.83,3993.96,39939.599999999999,"DGI.NZL",null,"Marcelo de Aguiar Gomes","Alessandra Cristina Menezes Frattezi Santos                   Nilba Valéria Pinheiro de Oliveira             João dos Reis Pagliuso           Marcelo Fabri Leandro              Adauto Rocha dos Santos","Iara Simões Xavier","Marcela Soares Ferreira"]
["9389.383/23",9389383,"2320.01.0003371/2023-66","Dhuan Comissária de Despachos Aduaneiros Ltda.","Prestação de serviço de Logística Internacional, despachos aduaneiros e desembaraços alfandegários.","Não",null,"2023-06-27","2024-06-26","Sim","2025-06-27","2026-06-26","2027-06-26","06","2026",10872.2,130466.36,130466.36,"G.GLQ",null,"Gisele de Fátima Melo","Jefferson Ferreira Sardinha Ribeiro","Victor Adler Oliveira","Júlia Carolina Soares"]
["9401.406/23",9401406,"2320.01.0010255/2023-50","Dhuan Comissária de Despachos Aduaneiros Ltda.","Prestação de serviços de logística, despachos aduaneiros e desembaraços alfandegários.","Não",null,"2023-12-01","2024-11-30","Sim","2025-12-01","2026-11-30","2028-11-30","11","2026",{"$f":"R122/12","v":26307.096666666665},315685.15999999997,315685.15999999997,"G.GLQ",null,"Andreza Santos Faria","Adriana Jussara Lima Rocha","Kathryna Fontana Rodrigues","Iara Simões Xavier"]
["9453.451/25",9453451,"2320.01.0009879/2024-14","DINÂMICA DISTRIBUIÇÃO LTDA EPP.","Aquisição de dispositivos de infusão e agulha múltipla para coleta a vácuo.","Não",null,"2025-03-20","2026-03-19","Sim","2026-03-20","2027-03-19","2035-03-19","03","2027",1080,12960,129600,"G.GLQ.ADM / HBH.T.LHEM",null,"Mônica Vieira Gomes",null,"Iara Simões Xavier","Marcela Soares Ferreira"]
["9459.067/25",9459067,"2320.01.0005163/2025-79","DINÂMICA DISTRIBUIÇÃO LTDA EPP.","Aquisição de tubos e ponteiras (Lotes 02 e 04).","Não",null,"2025-04-04","2026-04-03","Sim","2026-04-04","2027-04-03","2035-04-03","04","2027",515.25,6183,6183,"T.GLA",null,"João Paulo dos Santos Barbosa","Nilda Maria Campos Lucena","Júlia Carolina Soares","Victor Adler Oliveira"]
["9471.774/25",9471774,"2320.01.0004586/2024-44","Dinâmica Distribuição Ltda.","Aquisição de insumos plásticos necessários à tipificação HLA (média/alta resolução), prova cruzada (XM-CDC) e painel de reatividade de anticorpos (PRA) de amostras de doadores e receptodres de médula óssea e órgãos sólidos.","Não",null,"2025-07-11","2026-07-10","Não",null,null,"2026-07-10","07","2026",{"$f":"Tabela1[[#This Row],[VALOR TOTAL]]/12","v":3925.0083333333332},47100.1,47100.1,"T.GLA.HLA",null,"Milena Batista de Oliveira","Luciana Lara Viegas da Aparecida","Kathryna Fontana Rodrigues","Iara Simões Xavier"]
["9470.126/25",9470126,"2320.01.0001823/2025-49","Distribuidora de Águas Minerais BH Ltda.","Aquisição de água mineral em garrafão retornável, com bebedouro refrigerado em comodato.","Sim",null,"2025-06-06","2026-06-05","Sim",null,null,"2035-06-05","06","2026",{"$f":"Tabela1[[#This Row],[VALOR TOTAL]]/12","v":12658.75},151905,151905,"DGI.NZL",null,"Marcelo de Aguiar Gomes","Nilza de Melo Pereira","Kathryna Fontana Rodrigues","Iara Simões Xavier"]
["9392.808/23",9392808,"2320.01.0012183/2023-83","Distribuidora Mendonça e Miranda Ltda.","Aquisição de Insumos e reagentes necessário para tipificação HLA (média/alta resolução) de amostras de Doadores e Receptores de Medula Óssea (lote 01).","Não",null,"2023-08-25","2024-08-24","Sim","2025-08-25","2026-08-24","2028-08-24","08","2026","-",{"$error":"#VALUE!"},16065.5,"T.GLA.HLA",null,"Felipe Carlos Brito de Souza","Luciana Lara Viegas da Aparecida","Júlia Carolina Soares","Victor Adler Oliveira"]
["9470.489/25",9470489,"2320.01.0008805/2025-06","Distribuidora Mendonça e Miranda Ltda.","Aquisição de tubos para coleta de sangue a vácuo, tubos de vidro para laboratório e tampa uso laboratório (lote 04).","Nã0",null,"2025-06-16","2026-06-15","Sim",null,null,"2035-06-15","06","2026",8883,106596,106596,"T.GLA",null,"João Paulo dos Santos Barbosa",null,"Victor Adler Oliveira","Júlia Carolina Soares"]
["9481.461/25",9481461,"2320.01.0001175/2025-85","Distribuidora Mendonça e Miranda Ltda.","Aquisição de tampa uso laboratório (Lote 02).","Não",null,"2025-10-29","2026-10-28","Sim",null,null,"2035-10-28","10","2026",{"$f":"Tabela1[[#This Row],[VALOR ANUAL]]/12","v":1199.4666666666667},14393.6,14393.6,"G.GLQ.ADM / T.GLA",null,"João Paulo dos Santos Barbosa","Nilda Maria Campos Lucena","Júlia Carolina Soares","Victor Adler Oliveira"]
["9482.020/25",9482020,"2320.01.0015891/2025-65","Distribuidora Mendonça e Miranda Ltda.","Aquisição de reagentes para testes imunohematológicos (Lotes 02 e 05).","Não",null,"2025-11-07","2026-11-06","Sim",null,null,"2035-11-06","11","2026",null,0,30072,"T.GLA.CIH",null,"Luciana Cayres Schmidt","Ariane Ribeiro da Silva","Júlia Carolina Soares","Victor Adler Oliveira"]
["9481.854/25",9481854,"2320.01.0008907/2025-65","Distribuidora Mendonça e Miranda Ltda.","Aquisição de lanceta descartável.","Não",null,"2025-11-07","2026-11-06","Sim",null,null,"2035-11-06","11","2026",4696.3599999999997,56356.3,56356.3,"G.GLQ.ADM",null,"Mônica Vieira Gomes","Ronaldo Machado Silva","Victor Adler Oliveira","Júlia Carolina Soares"]
["9505.669/26",9505669,"2320.01.0006948/20226-90","Distribuidora Mendonça e Miranda Ltda.","Aquisição de insumos plásticos (lotes 03, 05 e 08).","Não",null,"2026-05-07","2027-05-06","Não",null,null,"2027-05-06","05","2027",5583.33,66999.960000000006,66999.960000000006,"T.GLA.HLA",null,"Milena Batista de Oliveira","Marleide Mendes Dias","Júlia Carolina Soares","Victor Adler Oliveira"]
["9382.504/23",9382504,"2320.01.0008859/2022-12","DRX Serviços Técnicos em Computadores, Máquinas e Equipamentos Ltda - ME"," Prestação de serviços de manutenção preventiva semestral e corretiva ilimitada, incluindo todo e qualquer tipo de mão de obra, com fornecimento de peças, necessários ao perfeito funcionamento e conservação em 02 (dois) Citômetros de Fluxo BD modelo FacsCalibur, instalados no prédio do CETEBIO.","Não",null,"2023-04-18","2024-04-17","Sim","2026-04-18","2027-04-17","2028-04-17","04","2027",{"$f":"R133/12","v":34853.286666666667},418239.44,418239.44,"CETEBIO  DGI.ENC",null,"Antônio Ferreira de Oliveira Filho","Maria Lúcia Soares de Moura","Kathryna Fontana Rodrigues","Iara Simões Xavier"]
["9478.828/25",9478828,"2320.01.0013228/2025-89","Eco Plast Comércio Ltda.","Aquisição de insumos para limpeza de sala limpa ou ambiente controlado ISSO 5 e 7, Lote 03.","Não",null,"2025-09-19","2026-09-18","Sim",null,null,"2035-09-18","09","2026",452.2,5426.4,54264,"CETEBIO",null,"Maria Lúcia Soares de Moura","Jucélia Schittini da Silva Morais","Iara Simões Xavier","Marcela Soares Ferreira"]
["9459.025/25",9459025,"2320.01.0005209/2025-98","Eletrind Eletricidade Industrial Ltda.","Instalação de sistema de proteção contra descargas atmosféricas (Lote 04).","Não",null,"2025-04-04","2027-04-03","Não",null,null,"2027-04-03","04","2027",null,0,718421.06,"I.GIF.AQE",null,"Luiz Carlos Moreira","Jéssica Rodrigues Barbosa","Júlia Carolina Soares","Victor Adler Oliveira"]
["9405.875/23",9405875,"2320.01.0007535/2023-61","Elevadores Módulo -  LTDA","Prestação de Serviço de Serviços de manutenção de elevadores da Fundação Hemominas (lotes 01 e 02) ","Não",null,"2023-12-22","2024-12-21","Sim","2025-12-22","2026-12-21","2028-12-21","12","2026",{"$f":"Tabela1[[#This Row],[VALOR TOTAL]]/12","v":13045},156540,156540,"DGI.ENC                       HBH.A.MPR",null,"João Silvestre Guimarães","Thiago Jocides Arruda Batista","Kathryna Fontana Rodrigues","Iara Simões Xavier"]
["9274.028/21",9274028,"2320.01.0016010/2020-68","Empresa Brasileira de Correios e Telégrafos","Contratação de produtos e serviços por meio de Pacote de Serviços dos Correios.","Não",null,"2021-03-19","2022-03-18","Sim","2025-03-19","2026-03-18","2026-03-18","03","2026",{"$f":"Tabela1[[#This Row],[VALOR ANUAL]]/12","v":76041.67},912500.04,912500,"G.GLQ.PRT. PROTOCOLO",null,null,null,"Júlia Carolina Soares","Victor Adler Oliveira"]
["9486.623/25",9486623,"2320.01.0011734/2025-75","Energisa Minas Rio - Distribuidora de Energia S.A.","Prestação de serviços de fornecimento de energia elétrica para o Hemonúcleo de Manhuaçu.","Não",null,"2025-12-03",null,null,null,null,"INDETERMINADA",null,null,null,131027.9,131027.9,"GAD.MÇU",null,"Maria José Moreira","Gulliver Fabrício Vieira Rocha","Kathryna Fontana Rodrigues","Iara Simões Xavier"]
["9470.211/25",9470211,"2320.01.0008578/2025-24","Esfera Master Comercial Ltda","Compra de equipamentos técnicos (lote 04).","Não",null,"2025-06-13","2026-06-12","Não",null,"","2026-06-12","06","2026",null,41890,41890,"DGI.ENC.CAT",null,"Asaph Calazans Mendes de Souza","Manoel Ricardo Caires Fernandes","Kathryna Fontana Rodrigues","Iara Simões Xavier"]
["9342.132/22",9342132,"2320.01.0002490/2022-91","Esmarty Especialista em Manutenção de Elevadores Ltda.","Prestação de serviço de manutenção preventiva e corretiva em elevador e plataforma elevatória no Hemocentro Regional de Governador Valadares da Fundação Hemominas.","Não",null,"2022-07-01","2023-06-30","Sim","2025-07-01","2026-06-30","2027-06-30","06","2026",2708.59,32503.08,162515.4,"GOV.A.COM / GOV.A.MAT",null,"Deivandro Lessa ","Bruno Sousa Macedo","Iara Simões Xavier","Marcela Soares Ferreira"]
["9440.192/24",9440192,"2320.01.0004970/2024-55","Esmarty Especialista em Manutenção de Elevadores Ltda.","Prestação de Serviço operação e manutenção corretiva e preventiva em elevador convencional, com fornecimento de peças, da Unidade CETEBIO - Hemominas.","Não",null,"2024-10-14","2025-10-13","Sim","2025-10-14","2026-10-13","2034-10-13","10","2026",null,0,76795.69,"DGI.ENC",null,"João Silvestre Guimarães","Maria Lúcia Soares de Moura","Júlia Carolina Soares","Victor Adler Oliveira"]
["9478.223/25",9478223,"2320.01.0017597/2024-81","Esmarty Especialista em Manutenção de Elevadores Ltda.","Prestação de serviços de manutenção preventiva mensal e corretivas, incluindo toda e qualquer tipo de mão de obra, com fornecimento de peças, necessário ao perfeito funcionamento e conservação do elevador acessível da marca COBER instalado no Hemocentro Regional de Uberlândia.","Não",null,"2025-09-09","2026-09-08","Sim",null,null,"2035-09-08","09","2026",{"$f":"Tabela1[[#This Row],[VALOR TOTAL]]/12","v":1332.3333333333333},15988,15988,"DGI.ENC",null,"Renata Léa Silva Souza","Márcia Regina Luis","Kathryna Fontana Rodrigues","Iara Simões Xavier"]
["9472.589/25",9472589,"2320.01.0005930/2025-31","Expresso Batista Lopes Distribuidora Ltda","Compra de água mineral","Não",null,"2025-07-25","2026-07-24","Sim",null,null,"2035-07-24","07","2026",{"$f":"7030.4/12","v":585.86666666666667},7030.4,7030.4,"SJR.GAD / SJR.A.COM",null,"Adauto Rocha dos Santos","Tânia Mara da Silveira Santos","Júlia Carolina Soares","Victor Adler Oliveira"]
["9317.724/21",9317724,"2320.01.0013283/2021-71","Expresso Minas Frios Ltda","Prestação de serviço de transporte rodoviário de carga entre as Unidades da Fundação Hemominas, incluindo frete e serviços de carga e descarga de materiais de consumo diversos, bens permanentes, equipamentos e medicamentos.","Não",null,"2021-12-24","2022-12-23","Sim","2025-12-24","2026-12-23","2026-12-23","12","2026",{"$f":"R144/12","v":84635.590833333335},1015627.08,1015627.09,"G.GLQ.ALX",null,"Moisés Patrocínio da Silva","Vagner Luiz da Silva","Júlia Carolina Soares","Victor Adler Oliveira"]
["9508.309/26",9508309,"2320.01.0007624/2026-74","Facetech Equipamentos Ltda.","Serviço de instalação e configuração de equipamentos para solução integrada de controle de acesso e de ponto.","Não",null,"2026-05-25","2026-11-24","Não",null,null,"2026-11-24","11","2026",5998,35988,35988,"DGI.ENC",null,"Wagner Felipe Patrício Maia","Renatha Samantha Martins Blasco","Victor Adler Oliveira","Júlia Carolina Soares"]
["9439.795/24",9439795,"2320.01.0013243/2023-78","Felipe Alvarenga Comércio e Serviços de Engenharia Ltda.","Prestação de serviços de manutenção preventiva, corretiva, com fornecimento de peças, e instalação de equipamentos de ar condicionado da Unidade de Coleta de Poços de Caldas, do Hemonúcleo de Passos e do Hemocentro Regional de Pouso Alegre da Fundação Hemominas.","Não",null,"2024-10-01","2025-09-30","Sim","2025-10-01","2026-09-30","2034-09-30","09","2026",{"$f":"Tabela1[[#This Row],[VALOR TOTAL]]/12","v":14995.307500000001},179943.69,179943.69,"DGI.ENC ",null,"Thiago Euzébio dos Santos","João Silvestre Guimarães","Kathryna Fontana Rodrigues","Iara Simões Xavier"]
["9468.714/25",9468714,"2320.01.0015676/2024-53","F.F. Controle e Certificação Ltda.","Prestação de serviços de certificação da sala limpa (sala de procedimentos e antecâmara) ISSO Classe 7 do Banco de Tecidos.","Não",null,"2025-06-03","2026-06-02","Sim",null,null,"2035-06-02","06","2026",620.75,7449,74490,"DGI.ENC",null,"Antônio Ferreira de Oliveira Filho","Maria Lúcia Soares de Moura","Iara Simões Xavier","Marcela Soares Ferreira"]
["9503.552/26",9503552,"2320.01.0010311/2025-84","FGF Comércio e Serviços de Esterilização em Óxido de Etileno Ltda","Prestação de serviço de processamento esterilização e reesterilização de materiais médico-hospitalares do CETEBIO, sem dedicação exclusiva de mão de obra.","Não",null,"2026-04-25","2027-04-24","Sim",null,null,"2036-04-24","04","2027",14471.45,173657.43,173657.43,"CETEBIO",null,"Diogo Vital Mota","Maurício Colombini Martins","Iara Simões Xavier","Kathryna Fontana Rodrigues"]
["9440.832/24",9440832,"2320.01.0005452/2024-39","Fran Luy Padaria e Confeitaria Ltda.","Aquisição de gêneros alimentícios para o Lanche Complementar do Doador (Lote 1) e Fornecimento de lanches preparados para o Lanche Capacitação Externa (Lote 2).","Não",null,"2024-10-25","24/02/2025 (LOTE 01) 24/02/2025 (LOTE 02) ","Sim           (Lote 01)    Não          (Lote 02) ","2025-10-25","2026-10-24","24/10/2034      (Lote 01)       24/02/2025      (Lote 02) ","10 ","2026",null,0,231814,"JFO.GAD",null,"Valcilea Campos Damasceno","André Meireles Fontes","Júlia Carolina Soares","Victor Adler Oliveira"]
["9291.832/21",9291832,"2320.01.0015039/2020-95","Fresenius Hemocare Brasil Ltda.","Aquisição de bolsas de sangue.","Não",null,"2021-09-22","2022-09-21","Sim","2025-09-22","2026-09-21","2026-09-21","09","2026",{"$f":"Tabela1[[#This Row],[VALOR TOTAL]]/12","v":2003316.25},24039795,24039795,"T.GCQ",null,"Adilson Meireles Pacheco","Felipe Garabini\nAntunes","Kathryna Fontana Rodrigues","Iara Simões Xavier"]
["9437.075/24",9437075,"2320.01.0011827/2024-89","Fresenius Hemocare Brasil Ltda.","Aquisição de bolsa de transferência quádrupla pediátrica com com volume maior ou igual a 150 ml (Lote 01","Não",null,"2024-08-30","2027-08-29","Sim",null,null,"2030-08-29","08","2027",{"$f":"Tabela1[[#This Row],[VALOR ANUAL]]/12","v":14550},{"$f":"Tabela1[[#This Row],[VALOR TOTAL]]/3","v":174600},523800,"T.GLA.CIH",null,"Ana Paula de Morais","Roberto Mauro Ferreira Silva","Júlia Carolina Soares","Victor Adler Oliveira"]
["9454.469/25",9454469,"2320.01.0003869/2025-97","Fresenius Hemocare Brasil Ltda.","Aquisição de reagentes para testes imunohematológicos (Lote 04).","Não",null,"2025-03-11","2026-03-10","Sim","2026-03-11","2027-03-10","2035-03-10","03","2027",5466.79,65601.429999999993,65601.429999999993,"T.GLA.CIH",null,"Luciana Cayres Schmidt","Fabrizzio de Oliveira Dias","Victor Adler Oliveira","Júlia Carolina Soares"]
["9470.546/25",9470546,"2320.01.0008855/2025-14","Fresenius Hemocare Brasil Ltda.","Compra de equipamentos técnicos (lote 02).","Não",null,"2025-06-20","2026-06-19","Não",null,null,"2026-06-19","06","2026",null,131700,131700,"DGI.ENC.CAT",null,"Asaph Calazans Mendes de Souza","Manoel Ricardo Caires Fernandes","Kathryna Fontana Rodrigues","Iara Simões Xavier"]
["9472.931/25",9472931,"2320.01.0002885/2025-87","Fresenius Hemocare Brasil Ltda."," Compra de solução aditiva para plaquetas","Não",null,"2025-07-28","2026-07-27","Sim",null,null,"2035-07-27","07","2026",124645.83,1495749.96,14957499.6,"T.GCQ",null,"Roberto Mauro Ferrreira Silva","Gabriela Coelho de Rezende","Iara Simões Xavier","Marcela Soares Ferreira"]
["9480.390/25",9480390,"2320.01.0011983/2025-45","Fresenius Hemocare Brasil Ltda.","Locação de equipamentos de hemoterapia, com prestação de serviços de manutenção, preventiva, corretiva e calibração (Lote 01 e Lote 02).","Não",null,"2025-10-09","2026-10-08","Não",null,null,"2026-10-08","10","2026",{"$f":"Tabela1[[#This Row],[VALOR TOTAL]]/12","v":327573.64999999997},3930883.8,3930883.8,"DGI.ENC",null,"Izabela Batista Neiva","Adilson Meireles Pacheco","Kathryna Fontana Rodrigues","Iara Simões Xavier"]
["9480.937/25",9480937,"2320.01.0013158/2025-39","Fresenius Hemocare Brasil Ltda.","Compra de reagente para realiação de testes imunohematológicos para triagem de doadores.","Não",null,"2025-10-18","2026-06-17","Sim",null,null,"2026-10-17","06","2026",2976,35712,23808,"T.GLA.CIH",null,"Luciana Cayres Schmidt","Fabrizzio de Oliveira Dias","Victor Adler Oliveira","Júlia Carolina Soares"]
["9483.051/25",9483051,"2320.01.0016081/2025-76","Fresenius Hemocare Brasil Ltda.","Aquisição de reagentes para testes imunohematologicos (Lote 01).","Não",null,"2025-11-12","2026-11-11","Sim",null,null,"2035-11-11","11","2026",null,38580,38580,"T.GLA.CIH",null,"Luciana Cayres Schmidt","Ariane Ribeiro da Silva","Júlia Carolina Soares","Victor Adler Oliveira"]
["9501.527/26",9501527,"2320.01.0018010/2024-85","Fresenius Hemocare Brasil Ltda.","Aquisição de kit para dosagem de hemoglobina, com aluguel de equipamento, controle de qualidade e calibradores (se necessário) para os equipamentos.","Não",null,"2026-04-10","2027-04-09","Sim",null,null,"2036-04-09","04","2027",90840,1090080,1090080,"T.GLA",null,"Marilene Pereira Silva Castanheira","João Paulo dos Santos Barbosa","Kathryna Fontana Rodrigues","Iara Simões Xavier"]
["9379.422/23",9379422,"2320.01.0017711/2022-16","Fujicom Comércio de Materiais Hospitalares e Importação Ltda.","Aquisição de lâminas de cobre e/ou elemento selante por radiofrequência (item 01).","Não",null,"2023-03-29","2024-03-28","Sim","2026-03-29","2027-03-28","2028-03-28","03","2027",185859.37,2230312.5,2230312.5,"T.GCQ",null,"Roberto Mauro Ferreira Silva","Gabriela Coelho de Rezende","Iara Simões Xavier","Marcela Soares Ferreira"]
["9379.423/23",9379423,"2320.01.0017711/2022-16","Fujicom Comércio de Materiais Hospitalares e Importação Ltda.","Locação de equipamentos, item 02.","Não",null,"2023-03-29","2024-03-28","Sim","2026-03-29","2027-03-28","2027-03-28","03","2027",{"$f":"R160/12","v":4261.21},51134.52,51134.52,"DGI.ENC",null,"Adilson Meireles Pacheco","Felipe Garabini\nAntunes","Kathryna Fontana Rodrigues","Iara Simões Xavier"]
["9452.471/25",9452471,"2320.01.0010300/2024-93","Fundação Ezequiel Dias","Prestação de serviços laboratoriais de análises microbiológicas.","Não",null,"2025-03-20","2026-03-19","Sim","2026-03-20","2027-03-19","2035-03-19","03","2027",{"$f":"Tabela1[[#This Row],[VALOR ANUAL]]/12","v":15227.735000000001},182732.82,182732.82,"CETEBIO",null,"Maria Lúcia Soares de Moura","Jucélia Schittini da Silva Morais","Júlia Carolina Soares","Victor Adler Oliveira"]
["9484.348/25",9484348,"2320.01.0016399/2025-26","Gabriela Oliveira Ribeiro Caldas ME","Prestação de serviços de desinsetização e desratização (Loe 11).","Não",null,"2025-11-27","2026-11-26","Sim",null,null,"2035-11-26","11","2026",{"$f":"Tabela1[[#This Row],[VALOR ANUAL]]/12","v":112.18666666666667},1346.24,1346.24,"DGI.NZL",null,"Marcelo de Aguiar Gomes","Raphael Bastos Florentino","Júlia Carolina Soares","Victor Adler Oliveira"]
["9292.057/21",9292057,"2320.01.0005607/2021-34","GARRASEG SOLUÇÕES EM SEGURANÇA ELETRÔNICA LTDA.","Prestação de serviço de manutenção do Sistema de Vigilância Eletrônica na Unidade da Fundação Hemominas em Uberaba.","Não",null,"2021-11-13","2022-11-12","Sim","2025-11-13","2026-11-12","2026-11-12","11","2026",{"$f":"R163/12","v":1227.5516666666667},14730.62,14730.62,"URA.GAD",null,"Leila Pereira","Lúcia de Fátima Oliveira","Kathryna Fontana Rodrigues","Iara Simões Xavier"]
["9502.049/26",9502049,"2320.01.0005937/2026-33","Geraes Diagnóstica Ltda.","Aquisição de reagentes necessário para tipificação HLA (média/alta resolução) de amostras de Doadores e Receptores de Medula Óssea e órgãos sólidos de todo o Estado de Minas Gerais. (Loe 04).","Não",null,"2026-04-24","2027-04-23","Não",null,null,"2027-04-23","04","2027",470,5640,5640,"T.GLA.HLA",null,"Milena Batista de Oliveira","Ricardo Alves de Cristo","Victor Adler Oliveira","Júlia Carolina Soares"]
["9437.936/24",9437936,"2320.01.0009301/2023-06","Gesmaq Comércio e Serviços Ltda","Prestação de Serviço de manutenção preventiva mensal e corretivas, incluindo todo e qualquer tipo de mão de obra, com fornecimento de peças e materiais, necessários ao perfeito funcionamento de 03 (três) empilhadeiras, incluindo os carregadores de bateria, alocados no Almoxarifado Central.","Não",null,"2024-10-01","2029-09-30","Sim",null,null,"2034-09-30","09","2029","-",{"$error":"#VALUE!"},240000,"DGI.ENC",null,"João Silvestre Guimarães","Wesley Rodrigues Tomaz","Júlia Carolina Soares","Victor Adler Oliveira"]
["9326.779/22",9326779,"2320.01.0013145/2021-14","GHS Indústria e Serviços Ltda.","Contratação de empresa para realização de ensaios do efluente não doméstico gerado no Hemocentro de Belo Horizonte.","Não",null,"2022-03-26","2023-03-25","Sim","2026-03-26","2027-03-25","2027-03-25","03","2027",null,21727.86,null,"HBH.A.MPR",null,"Douglas Augusto Rodrigues Pereira","Paula Maria Leão Mendes Roenick","Iara Simões Xavier","Marcela Soares Ferreira"]
["9451.321/25",9451321,"2320.01.0016816/2024-22","Globalsec Tecnologia da Informação Ltda.","Prestação de Serviços de certificação digital para pessoa jurídica.","Não",null,"2025-02-18","2030-02-17","Sim",null,null,"2035-02-17","02","2030",{"$f":"Tabela1[[#This Row],[VALOR ANUAL]]/12","v":3282.8333333333335},{"$f":"Tabela1[[#This Row],[VALOR TOTAL]]/5","v":39394},196970,"I.GTC.ITS",null,"Izadalvo Ricardo de Oliveira","Fabrine Juliana Fabricio Costa","Kathryna Fontana Rodrigues","Iara Simões Xavier"]
["9396.509/23",9396509,"2320.01.0000857/2023-44","Globalthings Tecnologia Ltda.","Prestação de Serviço de FORNECIMENTO DE LICENÇA, PRESTAÇÃO DE SERVIÇOS DE MIGRAÇÃO DE BANCO DE DADOS, DE MANUTENÇÃO DE SISTEMAS DE INFORMAÇÃO E DE CONSULTORIA PARA CUSTOMIZAÇÃO DE SISTEMA DE INFORMAÇÃO","Não",null,"2023-10-12","2027-10-11","Não",null,null,"2027-10-11","10","2027",{"$f":"Tabela1[[#This Row],[VALOR ANUAL]]/12","v":3366.8847916666668},{"$f":"Tabela1[[#This Row],[VALOR TOTAL]]/4","v":40402.6175},161610.47,"DGI.ENC",null,"Felipe Garabini Antunes","Marcelo Furtado dos Santos","Júlia Carolina Soares","Victor Adler Oliveira"]
["9402.114/23",9402114,"2320.01.0016799/2023-96","Greiner Bio-One Brasil Produtos Médicos Hospitalares Ltda.","Aquisição de tubo para coleta de sangue a vácuo, Lotes 04, 05, 06 e 07.","Não",null,"2023-12-20","2024-12-19","Sim","2025-12-20","2026-12-19","19/12/2028      (Lote 04).","12","2026",1156.8900000000001,13882.66,13882.66,"T.GLA",null,"Andreia Alvares Tângari                                          Beatriz Nogueira de Carvalho","Felipe Carlos Brito de Souza","Victor Adler Oliveira","Júlia Carolina Soares"]
["9470.488/25",9470488,"2320.01.0008804/2025-33","Greiner Bio-One Brasil Produtos Médicos Hospitalares Ltda.","Aquisição de tubos para coleta de sangue a vácuo, tubos de vidro para laboratório e tampa uso laboratório (lotes 01 e 02).).","Não",null,"2025-06-16","2026-06-15","Sim",null,null,"2035-06-15","06","2026",null,503400,503400,"T.GLA",null,"João Paulo dos Santos Barbosa",null,"Kathryna Fontana Rodrigues","Iara Simões Xavier"]
["9454.471/25",9454471,"2320.01.0003873/2025-86","Grifols Brasil Ltda.","Aquisição de reagentes para testes imunohematológicos (Lote 11).","Não",null,"2025-03-11","2026-03-10","Sim","2026-03-11","2027-03-10","2035-03-10","03","2027",64065.36,768784.32,7687843.2000000002,"T.GLA.CIH",null,"Luciana Cayres Schmidt","Fabrizzio de Oliveira Dias","Iara Simões Xavier","Marcela Soares Ferreira"]
["9468.363/25",9468363,"2320.01.0007286/2025-85","Grifols Brasil Ltda.","Aquisição de conjunto analítico para realização de testes imunohematológicos, com equipamento em comodato","Sim",null,"2025-05-28","2026-05-27","Sim","2026-05-28","2027-05-27","2035-05-27","05","2027",{"$f":"Tabela1[[#This Row],[VALOR TOTAL]]/12","v":133785},1605420,1605420,"T.GLA.CSI",null,"Sabrina Vieira Espíndola","Nauhara Vieira de Castro Barroso","Kathryna Fontana Rodrigues","Iara Simões Xavier"]
["9481.268/25",9481268,"2320.01.0005864/2025-67","GX Assessoria e Consultoria de Licitações Ltda","Aquisição de suco de 1 L (lote 05).","Não",null,"2025-10-23","2026-10-22","Sim",null,null,"2035-10-22","10","2026",{"$f":"Tabela1[[#This Row],[VALOR TOTAL]]/12","v":32475},389700,389700,"T.GSA / T.GSA.SUP",null,"Lorena Prezotti Rodrigues","Juliana Pessoa Pinheiro de Azevedo","Kathryna Fontana Rodrigues","Iara Simões Xavier"]
["9457.502/25",9457502,"2320.01.0011004/2024-97","IBUR Negócios e Serviços Ltda.","Prestação de Serviços de Manutenção Preventiva semestral, Qualificação do Equipamento - Mapeamento de Dose anual do Irradiador IBL 437C e Calibração/Irradiação anual do Dosímetro Thero Fisher Scientific - RadEye.","Não",null,"2025-03-26","2026-03-25","Sim","2026-03-26","2027-03-25","2035-03-25","03","2027",5223.09,62677.09,62677.09,"DGI.ENC",null,"Eduardo da Silva Oliveira","Felipe Garabini Antunes","Victor Adler Oliveira","Júlia Carolina Soares"]
["9509.793/26",9509793,"2320.01.0007658/2026-29","Indústria e Comércio Colchões Orthovida Ltda.","Aquisição de mobiliário administrativo (lote 18).","Não",null,"2026-05-21","2027-05-20","Não",null,null,"2027-05-20","05","2027",null,6175.2,6175.2,"G.GLQ.PTM",null,"Vagner Luiz da Silva","Ricardo Rocha Moreira Júnior","Kathryna Fontana Rodrigues","Iara Simões Xavier"]
["9404.130/23",9404130,"2320.01.0017149/2023-55","Infocore Soluções Tecnológicas Ltda.","Prestação de serviço de Manutenção preventiva anual e corretiva das subestações de energia elétrica - Cetebio da Fundação Hemominas, LOTE 01.","Não",null,"2023-12-14","2024-12-13","Sim","2025-12-14","2026-12-13","2028-12-13","12","2026",{"$f":"R176/12","v":4983.1891666666661},59798.27,59798.27,"I.GIF.MPR",null,"Forlan Bragança Lemos","Leila Guedes Alvim","Kathryna Fontana Rodrigues","Iara Simões Xavier"]
["9383.296/23",9383296,"2320.01.0000472/2022-63","Infordinâmica Tecnologia Ltda.","Prestação de serviço de suporte técnico a ambiente operacional de servidores e ambiente de banco de dados - atendimento 24x7.","Não",null,"2023-04-28","2026-04-27","Sim","2026-04-28","2027-04-27","2028-04-27","04","2027",60276.67,723320.04,723320.04,"I.GTC.ITS",null,"Fabrine Juliana Fabricio Costa","Daniel Eustáquio Coutinho","Iara Simões Xavier","Marcela Soares Ferreira"]
["9345.457/22",9345457,"2320.01.0006706/2022-40","Infra do Brasil Comércio e Serviços Eireli","Prestação de serviço de suporte técnico ao ambiente virtual de aprendizado.","Não",null,"2022-09-13","2023-09-12","Sim","2025-09-13","2026-09-12","2027-09-12","09","2026",2417.12,29005.439999999999,29005.439999999999,"I.GTC.ADS",null,"Adriana Lúcia dos Santos","Fabrine Juliana Fabricio Costa","Júlia Carolina Soares","Victor Adler Oliveira"]
["9456.457/25",9456457,"2320.01.0001373/2025-74","Instituto Zuriel Capacitação e  Publicações Ltda.","Prestação de serviços de publicidade dos avisos de licitação, bem como matérias de interesse da DPGF e gabinete, sem dedicação exclusiva de mão de obra.","Não",null,"2025-03-20","2026-03-19","Sim","2026-03-20","2027-03-19","2035-03-19","03","2027",null,0,17068.3,"G.GLQ.COM",null,"Rafael Ribeiro Lopes","Andrea Aparecida Ferreira","Júlia Carolina Soares","Victor Adler Oliveira"]
["9417.596/24",9417596,"2320.01.0001341/2024-68","Interact Solutions Ltda","Prestação de Serviço de subscrição de licença de software de planejamento estratégico - Interact Strategic Adviser, condições estabelecidas no Termo de Referência.","Não",null,"2024-03-28","2025-03-27","Sim","2026-03-28","2027-03-27","2029-03-27","03","2027",{"$f":"Tabela1[[#This Row],[VALOR TOTAL]]/12","v":29708.653333333335},356503.84,356503.84,"PRE.AAE","Diogo Wanis Lara","Diogo Wanis Lara","Fernanda Zampronio Carvalho","Kathryna Fontana Rodrigues","Iara Simões Xavier"]
["9470.484/25",9470484,"2320.01.0008742/2025-58","Instrutherm Instrumentos de Medição Ltda.","Compra de equipamentos técnicos (lote 10).","Não",null,"2025-06-20","2026-06-19","Não",null,null,"2026-06-19","06","2026",{"$f":"Tabela1[[#This Row],[VALOR ANUAL]]/12","v":11800},141600,141600,"DGI.ENC.CAT",null,"Asaph Calazans Mendes de Souza","Manoel Ricardo Caires Fernandes","Júlia Carolina Soares","Victor Adler Oliveira"]
["9459.026/25",9459026,"2320.01.0005213/2025-87","J & N Soluções Elétricas Ltda.","Instalação de sistema de proteção contra descargas atmosféricas.","Não",null,"2025-04-04","2027-04-03","Não",null,null,"2027-04-03","04","2027",null,0,880908.73,"I.GIF.AQE",null,"Márcia Mourão Moreira","Guilherme Ferreira Alves Júnior","Júlia Carolina Soares","Victor Adler Oliveira"]
["9383.322/23",9383322,"2320.01.0004741/2022-36","JMBM Engenharia Elétricas & Climatização Ltda","Prestação de serviço de manutenção preventiva e corretiva de equipamentos de ar-condicionado no Hemonúcleo de Manhuaçu.","Não",null,"2023-04-19","2024-04-18","Sim","2026-04-19","2027-04-18","2028-04-18","04","2027",{"$f":"R183/12","v":3749.9325000000003},44999.159999999996,44999.19,"MÇU.GAD",null,"Gulliver Fabricio Vieira Rocha","Maria José Moreira","Júlia Carolina Soares","Victor Adler Oliveira"]
["9447.573/2025",9447573,"2320.01.0008366/2024-28","JMBM Engenharia Elétricas & Climatização Ltda","Prestação de serviços de manutenção dos equipamentos de ar condicionado do Hemonúcleo de Ponte Nova,","Não",null,"2025-01-10","2030-01-09","Sim",null,null,"2035-01-09","01","2030",null,null,111890,"PNO/GAD",null,"Luciana Marinho Monteiro Cerqueira","Marcelo Fabri Leandro","Júlia Carolina Soares","Victor Adler Oliveira"]
["9376.887/23",9376887,"2320.01.0011426/2022-58","JMBM Engenharia Elétricas & Climatização Ltda.","Prestação de serviço de manutenção preventiva e corretiva de equipamentos de ar-condicionado para o Hemonúcleo de Diamantina da Fundação Hemominas.","Não",null,"2023-03-14","2024-03-13","Sim","2026-03-14","2027-03-13","2028-03-13","03","2027",{"$f":"R185/12","v":2490},29880,29880,"DIA.GAD",null,"Amanda Franciele Dias de Oliveira","Alessandra Cristina Menezes Fratezzi Santos","Júlia Carolina Soares","Victor Adler Oliveira"]
["9484.136/25",9484136,"2320.01.0016302/2025-26","João Victor Ferreira Santos","Aquisição de gêneros alimentícios para o doador de sangue de Uberlândia (Lote 02).","Não",null,"2025-11-17","2026-11-16","Sim",null,null,"2035-11-16","11","2026",{"$f":"Tabela1[[#This Row],[VALOR TOTAL]]/12","v":13322.4},159868.79999999999,159868.79999999999,"UDI.GAD",null,"Patrícia Santos de Almeida Fernandes","Márcia Regina Luis","Kathryna Fontana Rodrigues","Iara Simões Xavier"]
["9494.509/25",9494509,"2320.01.0015633/2025-47","JP Cirúrgica Ltda.","Compra de pipetas e tubos","Não",null,"2026-02-11","2027-02-10","Sim",null,null,"2036-02-10","02","2027",457.5,5490,5490,"G.GLQ.ADM / T.GLA",null,"João Paulo dos Santos Barbosa","Nilda Maria Campos Lucena","Victor Adler Oliveira","Júlia Carolina Soares"]
["9497.081/26",9497081,"2320.01.0014671/2025-25","JP Cirúrgica Ltda.","Compra de soro anti-D IgG.","Não",null,"2026-03-06","2027-03-05","Sim",null,null,"2036-03-05","03","2027",null,4200,4200,"T.GCQ",null,"Eduarda Bolina Santos",null,"Victor Adler Oliveira","Júlia Carolina Soares"]
["9437.077/24",9437077,"2320.01.0011833/2024-24","JP INDÚSTRIA FARMACÊUTICA S.A","Aquisição de bolsade transferência com volume de 300 a 500 ml (Lote 02)","Não",null,"2024-08-29","2027-08-28","Sim",null,null,"2030-08-28","08","2027",{"$f":"R189/12","v":33600},134400,403200,"T.GCQ ",null,"Ana Paula de Morais","Roberto Mauro Ferreira Silva","Kathryna Fontana Rodrigues","Iara Simões Xavier"]
["9505.094/26",9505094,"2320.01.0006961/2026-30","Kasvi Importação e Distribuição de Produtos Para Laboratórios Ltda.","Aquisição de insumos plásticos (Lotes 01 e 04).","Não",null,"2026-05-07","2027-05-06","Não",null,null,"2027-05-06","05","2027",645,7740,7740,null,null,"Milena Batista de Oliveira","Marleide Mendes Dias","Iara Simões Xavier","Kathryna Fontana Rodrigues"]
["9493.215/2026",9493215,"2320.01.0012716/2025-42","LAB SHOPPING DIAGNÓSTICA LTDA.","Compra de reagentes e prestação de serviços de manutenção corretiva com fornecimento de peças, preventiva e calibração dos contadores hematológicos ABX Micros 60 da Fundação Hemominas - Unidades: JFO, MOC, GOV. UDI, URA e Belo Horizonte.","Não",null,"2026-02-03","2027-02-02","Sim",null,null,"2036-02-02","02","2027",{"$f":"Tabela1[[#This Row],[VALOR ANUAL]]/12","v":23933.666666666668},287204,287204,"T.GCQ / DGI.ENC",null,"Roberto Mauro Ferreira Silva","Alexander Lúcio de Sá Araújo","Júlia Carolina Soares","Victor Adler Oliveira"]
["9453.452/25",9453452,"2320.01.0005754/2023-36","Laboratórios Ecolyzer Ltda.","Prestação de serviço especializado de exame em embalagens de materiais biológicos.","Não",null,"2025-02-28","2026-02-27","Sim","2026-02-28","2027-02-27","2035-02-27","02","2027",{"$f":"Tabela1[[#This Row],[VALOR TOTAL]]/12","v":965.43},11585.16,11585.16,"CETEBIO",null,"Jucélia Schittini da Silva Morais","Maria Lúcia Soares de Moura","Kathryna Fontana Rodrigues","Iara Simões Xavier"]
[9508039,9508039,"2320.01.0007579/2026-28","Lafitti Mobili Ltda.","Aquisição de mobiliário administrativo (lotes 09, 05 e 17).","Não",null,"2026-05-14","2027-05-13","Não",null,null,"2027-05-13","05","2027",null,121162.86,121162.86,"G.GLQ.PTM",null,"Vagner Luiz da Silva","Ricardo Rocha Moreira Júnior","Júlia Carolina Soares","Victor Adler Oliveira"]
["9481.926/25",9481926,"2320.01.0015817/2025-26","LBF Comércio e Serviços Ltda","Compra de anticorpos (lotes 02 e 03).","Não",null,"2025-11-07","2026-11-06","Sim",null,null,"2035-11-06","11","2026",309.25,3711,3711,"CETEBIO",null,"Maria Lúcia Soares de Moura","Maurício Colombini Martins","Victor Adler Oliveira","Júlia Carolina Soares"]
["9483.043/25",9483043,"2320.01.0016087/2025-11","Life Technologies Brasil Comércio e Indústria de Produtos para Biotecnologia Ltda.","Aquisição de reagentes para testes imunohematológicos (Lotes 11,12 e 13).","Não",null,"2025-11-19","2026-11-18","Sim",null,null,"2035-11-18","11","2026",938.09,11257.08,112570.8,"T.GLA.CIH",null,"Luciana Cayres Schmidt","Ariane Ribeiro da Silva","Iara Simões Xavier","Marcela Soares Ferreira"]
["9472.975/25",9472975,"2320.01.0001826/2025-65","Limpeza & Brilho Ltda. - EPP.","Aquisição de materiais, equipamentos e acessórios de limpeza (DESINFETANTE - TIPO: HOSPITALAR)","Não",null,"2025-07-29","2026-07-28","Não",null,null,"2026-07-28","07","2026",{"$f":"Tabela1[[#This Row],[VALOR TOTAL]]/12","v":483.5},5802,5802,null,null,"Marcelo de Aguiar Gomes","Nilza de Melo Pereira","Kathryna Fontana Rodrigues","Iara Simões Xavier"]
["9445.764/24",9445764,"2320.01.0009742/2024-27","Líver Administradora e Corretora de Imóveis Ltda","Locação do imóvel comercial situado à Rua Darcy Botelho de Castro, nº 240, Bairro Esplanada, Ponte Nova, MG, com área total aproximada de 64,67 m2","Não",null,"2024-12-12","2025-12-11","Sim","2025-12-12","2026-12-11","2034-12-11","12","2026",967.66,11611.92,116119.2,"PNO.GAD",null,"Luciana Marinho Monteiro Cerqueira","Marcelo Fabri Leandro","Iara Simões Xavier","Marcela Soares Ferreira"]
["9371.053/23",9371053,"2320.01.0004640/2022-47","LMC Medição e Controle Eireli - ME","Prestação  de serviços especializados de calibração de equipamentos e instrumentos de precisão. ","Não",null,"2023-01-25","2024-01-24","Sim","2026-01-25","2027-01-24","2028-01-24","01","2027",{"$f":"R198/12","v":36157.356666666667},433888.28,433888.28,"DGI.ENC",null,"Felipe Garabini Antunes","Marcelo Furtado dos Santos","Kathryna Fontana Rodrigues","Iara Simões Xavier"]
["9440.564/25",9440564,"2320.01.0008078/2024-44","LMC Medição e Controle Ltda.","Prestação de serviços de qualificação térmica e calibração de equipamentos de refrigeração.","Não",null,"2024-10-16","2025-10-15","Sim","2025-10-16","2026-10-15","2034-10-15","10","2026",{"$f":"Tabela1[[#This Row],[VALOR ANUAL]]/12","v":37665.9375},451991.25,451991.25,"DGI.ENC",null,"Felipe Silva Teixeira","Marcelo Furtado dos Santos","Júlia Carolina Soares","Victor Adler Oliveira"]
["9493.179/26",9493179,"2320.01.0001178/2026-98","Logicron Serviços Ltda.","Prestação de serviços instalação de novos equipamentos de ar-condicionado tipo Split (LOTE 2) na Unidade de Juiz de Fora.","Não",null,"2026-01-30","2027-01-29","Sim",null,null,"2036-01-29","01","2027",483.33,5799.99,5799.99,"JFO.GAD",null,"Victor Valente Campos","Marcia Cristina de Almeida","Victor Adler Oliveira","Júlia Carolina Soares"]
["9459.903/25",9459903,"2320.01.0005918/202564","Ludwig Biotecnologia Ltda - EPP","Aquisição de reagentes para o laboratório de histocompatibilidade lotes 05 (solução tampão) e 06 (agarose).","Não",null,"2025-04-17","2026-04-16","Não",null,null,"2026-04-16","04","2026",null,0,8200,"T.GLA.HLA",null,"Milena Batista de Oliveira","Luciana Lara Viegas da Aparecida","Júlia Carolina Soares","Victor Adler Oliveira"]
["9428.207/24 ",9428207,"2320.01.0004590/2024-33","M.I MONTREAL INFORMÁTICA S.A","Prestação de Serviço de Desenvolvimento e manutenção de sistemas por alocação de perfis profissionais.","Não","Sim","2024-06-04","2025-06-03","Sim","2025-06-04","2026-06-03","2029-06-03","06","2026",{"$f":"Tabela1[[#This Row],[VALOR TOTAL]]/12","v":137022.27833333335},1644267.34,1644267.34,"I.GTC.ADS",null,"Adriana Lúcia dos Santos","Juan Pablo Figueiredo Silva","Kathryna Fontana Rodrigues","Iara Simões Xavier"]
["9483.073/25",9483073,"2320.01.0016092/2025-70","MA Sandoval LTDA","Aquisição de reagentes para testes imunohematológicos (Lotes 03 e 04),","Não",null,"2025-11-12","2026-11-11","Sim",null,null,"2035-11-11","11","2026",4119,49428,49428,"T.GLA.CIH",null,"Luciana Cayres Schmidt","Ariane Ribeiro da Silva","Victor Adler Oliveira","Júlia Carolina Soares"]
["9493.222/26",9493222,"2320.01.0016394/2025-64","MA Sandoval LTDA","Compra de insumos para criopreservação de células da medula óssea: bolsa de transferência 600ml / meio de cultura metilcelulose.","Não",null,"2026-02-04","2027-02-03","Sim",null,null,"2036-02-03","02","2027",{"$f":"Tabela1[[#This Row],[VALOR TOTAL]]/12","v":606.375},7276.5,7276.5,"CETEBIO",null,"Maria Lúcia Soares de Moura","Maurício Colombini Martins","Kathryna Fontana Rodrigues","Iara Simões Xavier"]
["9442.810/14",9442810,"2320.01.0016399/2024-29","Macopharma do Brasil Importação, Exportação e Comércio Ltda.","Aquisição de filtros para remoção de leucócitos em concentrado de plaquetas (Lote 01).","Não",null,"2024-11-28","2025-11-27","Sim","2025-11-28","2026-11-27","2034-11-27","11","2026",157500,1890000,18900000,"T.GCQ",null,"Roberto Mauro Ferreira Silva","Ana Paula de Morais","Iara Simões Xavier","Marcela Soares Ferreira"]
["9447.450/2024",9447450," 2320.01.0010194/2024-45","Manoel Eufrasio de Carvalho","locação do imóvel situado à Rua Comendador José Garcia, nº 825 - Centro, Pouso Alegre/MG,","Não",null,"2024-12-31","2025-12-30","Sim","2025-12-31","2026-12-30","2034-12-30","12","2026",24666.97,296003.58,"R$ 151387.92","PAL.GAD",null,"Denise do Socorro Guimarães","Elias Carnichelli Cordeiro","Victor Adler Oliveira","Júlia Carolina Soares"]
["9396.481/23",9396481,"2320.01.0006806/2023-53","Mantiqueira Elevadores Ltda - EPP.","Prestação de Serviço de Modernização dos elevadores do Hemocentro Regional de Juiz de Fora e manutenção preventiva e corretiva dos equipamentos.","Não",null,"2023-10-11","2024-10-10","Sim","2025-10-11","2026-10-10","2028-10-10","10","2026",{"$f":"Tabela1[[#This Row],[VALOR TOTAL]]/12","v":4387.9008333333331},52654.81,52654.81,"JFO.GAD",null,"Victor Valente Campos","Andrea Magalhães Nicolato","Kathryna Fontana Rodrigues","Iara Simões Xavier"]
["9434.179/24",9434179,"2320.01.0002991/2024-41","MAPDATA TECNOLOGIA, INFORMÁTICA E COMÉRCIO LTDA","Prestação de Serviço de aquisição de SUBSCRIÇÃO DE LICENÇA DO SOFTWARE AUTODESK AUTOCAD LT","Não",null,"2024-07-31","2025-07-30","sim","2025-07-31","2026-07-30","2034-07-30","07","2026",{"$f":"Tabela1[[#This Row],[VALOR ANUAL]]/12","v":3218.8166666666671},38625.800000000003,38625.800000000003,"I.GTC.ADS",null,"Izadalvo Ricardo de Oliveira","Daniel Eustáquio Coutinho","Júlia Carolina Soares","Victor Adler Oliveira"]
["9470.481/25",9470481,"2320.01.0008824/2025-75","Marília de Dirceu Indústria e Comércio de Alimentos","Prestação de serviços de fornecimento de lanches/coffee break (Lote 02).","Não",null,"2025-06-20","2026-06-19","Sim",null,null,"2035-06-19","06","2026",{"$f":"Tabela1[[#This Row],[VALOR ANUAL]]/12","v":1832.4833333333333},21989.8,21989.8,"G.GGP.TDE",null,"Manuela Mota Hauck","Andréa Maria Almeida Medrado","Júlia Carolina Soares","Victor Adler Oliveira"]
["9493.151/2026",9493151,"2320.01.0008039/2024-30","MASTER ENGENHARIA E TECNOLOGIA LTDA.","Prestação de serviços de manutenção preventiva e corretiva em aparelhos de ar condicionado, com fornecimento de peças, para as unidades CETEBIO Lote 01 e HBH Lote 02","Não",null,"2026-01-30","2027-01-29","Sim",null,null,"2036-01-29","01","2027",null,0,1000000,"CETEBIO",null,"Thiago Euzébio dos Santos","Wesley Rodrigues Tomaz","Júlia Carolina Soares","Victor Adler Oliveira"]
["9494.484/26",9494484,"2320.01.0002298/2026-25","Master Engenharia e Tecnologia Ltda.","Prestação de seviços de manutenção preventiva e corretiva em aparelho de ar condicionado, com fornecimento de peças, para as Unidades ADC Av. Brasil, ADC Rua Grão Pará, BET, HJK e EST (Lote 03).","Não",null,"2026-02-10","2027-02-09","Sim",null,null,"2036-02-09","02","2027",null,0,500000,"DGI.ENC",null,"Thiago Euzébio dos Santos","Wesley Rodrigues Tomaz","Marcela Soares Ferreira","Iara Simões Xavier"]
["9445.743/24",9445743,"2320.01.0017275/2024-45","Mastermed Comercial Ltda","Aquisição de equipo (Lote 01).","Não",null,"2024-12-12","2025-12-11","Sim","2025-12-12","2026-12-11","2034-12-11","12","2026",null,51000,51000,"G.GLQ.ADM",null,"Mônica Vieira Gomes","Nilda Maria Campos Lucena","Iara Simões Xavier","Kathryna Fontana Rodrigues"]
["9275.448/21",9275448,"2320.01.0013054/2020-49","Maxis Informática Ltda","Prestação de serviço de manutenção preventiva e reparos em equipamentos da Solução Integrada de Controle de Ponto e Acesso.","Não",null,"2021-04-16","2022-04-15","Sim","2025-04-16","2026-04-15","2026-04-15","04","2026",2020.79,24249.439999999999,24249.439999999999,"G.GGP.PES    G.GGP. PES.FREQUENCIA","Tiago Paulo da Silva Jorge","Sibéria Oliveira da Cruz","Andrea Magalhães Nicolato","Victor Adler Oliveira","Júlia Carolina Soares"]
["9390.348/23",9390348,"2320.01.0001291/2023-63","Maxis Informática Ltda.","Prestação de serviço de manutenção e reparo em equipamentos para controle de acesso.","Não",null,"2023-07-26","2024-07-25","Sim","2025-07-26","2026-07-25","2028-07-25","07","2026",{"$f":"R214/12","v":6351.32},76215.839999999997,76215.839999999997,"HBH.A.MPR",null,"Douglas Augusto Rodrigues Pereira","Paula Maria Leão Mendes Roenick","Kathryna Fontana Rodrigues","Iara Simões Xavier"]
["9315.675/21",9315675,"2320.01.0008427/2021-39","MCPACK Equipamentos Industriais Ltda","Prestação de serviços de manutenção de sistema de abastecimento de nitrogênio líquido (N2L) marca MCPACK. (lote 1).","Não",null,"2021-12-15","2022-12-14","Sim","2025-12-15","2026-12-14","2026-12-14","12","2026",38662.659166666665,463951.91,463951.91,"CETEBIO",null,"Maria Lúcia Soares de Moura","Antônio Ferreira de Oliveira Filho","Iara Simões Xavier","Kathryna Fontana Rodrigues"]
["9445.745/24",9445745,"2320.01.0017285/2024-66","Medevices Produtos Médicos e Hospitalares Ltda.","Aquisição de lençol descartável","Não",null,"2024-12-16","2025-12-15","Sim","2025-12-16","2026-12-15","2034-12-15","12","2026",{"$f":"Tabela1[[#This Row],[VALOR ANUAL]]/12","v":4487.5},53850,53850,"G.GLQ.ADM",null,"Mônica Vieira Gomes","Nilda Maria Campos Lucena","Júlia Carolina Soares","Victor Adler Oliveira"]
["9447.300/2024",9447300,"2320.01.0002043/2024-29","MEDICAL SAVE LOCAÇÃO DE AMBULÂNCIAS LTDA - ME - COTEP","Contratação dos serviços de remoção de pacientes adultos e pediátricos (exceto neonatologia) atendidos, doadores atendidos e servidores do Hemocentro de Belo Horizonte","Não",null,"2024-12-28","2025-12-27","Sim","2025-12-28","2026-12-27","2034-12-27","12","2026",1301.6600000000001,15619.92,"126.720.00","HBH.T.AMB.MULT",null,"Denise Soares Zouain","Eduarda A. Maciel Wakabayashi","Victor Adler Oliveira","Júlia Carolina Soares"]
["9468.664/25",9468664,"2320.01.0011109/2024-75","MEDMIX BIOENGENHARIA LTDA","Prestação de serviços de manutenção preventiva/calibração anual para aparelhos fisioterápicos ( Hemocentros de Belo Horizonte e de Uberlândia).","Não",null,"2025-06-09","2026-06-08","Sim",null,null,"2035-06-08","06","2026",{"$f":"Tabela1[[#This Row],[VALOR TOTAL]]/12","v":3955.8250000000003},47469.9,47469.9,"DGI.ENC",null,"Eduardo da Silva Oliveira","Felipe Garabini Antunes","Kathryna Fontana Rodrigues","Iara Simões Xavier"]
["9292.814/21",9292814,"2320.01.0008066/2021-86","Mega Construtora, Soluções Científicas e Locação Ltda.","Prestação de serviço de manutenção preventiva anual e corretivas necessárias, em um sistema de captura de imagens (Transiluminador), modelo LTB, marca LOCCUS.","Não",null,"2021-09-22","2022-09-21","Sim","2025-09-22","2026-09-21","2026-09-21","09","2026",887.13166666666666,10645.56,10645.58,"DGI.ENC",null,"Felipe Garabini Antunes","Eduardo da Silva Oliveira","Júlia Carolina Soares","Victor Adler Oliveira"]
["9290.324/21",9290324,"2320.01.0015746/2020-18","Mega Construtora, Soluções Científicas e Locação Ltda.","Prestação de serviço de manutenção preventiva mensal e corretiva, quando necessário, dos equipamentos e acessórios do consultório Odontológico, instalados no Hemocentro de Uberlândia.","Não",null,"2021-08-26","2022-08-25","Sim","2025-08-26","2026-08-25","2026-08-25","08","2026",3522.27,42267.27,42267.27,"UDI.GAD",null,"Márcia Regina Luis","Renata Léa Silva Souza","Victor Adler Oliveira","Júlia Carolina Soares"]
["9401.946/23",9401946,"2320.01.0006394/2023-22","Mega Soluções Científicas e Locação Eireli","Locação de 03 (três) containers/câmaras refrigeradas com 40 pés de comprimento, cortina plástica em uma das portas, incluindo instalação, calibração anual, manutenção preventiva mensal e manutenção corretivas ilimitadas.","Não",null,"2023-12-01","2027-11-30","Não",null,null,"2027-11-30","11","2027",25200,75600,302400,"DGI.ENC",null,"Izabela Batista Neiva","Eduardo da Silva Oliveira","Iara Simões Xavier","Kathryna Fontana Rodrigues"]
[950569826,9505698,"2320.01.0007247/2026-68","Meta X Indústria e Comércio Ltda.","Aquisição de mobiliário administrativo (lote 07).","Não",null,"2026-05-07","2027-05-06","Não",null,null,"2027-05-06","05","2027",19288.46,231461.55,231461.55,"GGLQ.PTM",null,"Vagner Luiz da Silva","Ricardo Rocha Moreira Júnior","Iara Simões Xavier","Kathryna Fontana Rodrigues"]
["9376.899/23",9376899,"2320.01.0000203/2023-48","Método Telecomunicações e Comércio Ltda.","Contratação de Empresa especializada na prestação de serviços sob demanda de manutenção preventiva e corretiva em Centrais Telefônicas, aparelhos analógicos e digitais contemplando trocas e fornecimento de peças, além da locação e manutenção de PABX IP Virtualizado, equipamentos de interface para sistemas de telefonia IP (Gateway), terminais telefônicos com tecnologia IP, com configuração e transferência de conhecimento, conforme condições, quantidades e exigências estabelecidas no Edital e seus anexos.","Não","Sim","2023-03-18","2025-03-17","Sim","2025-03-18","2027-03-17","2027-03-17","03","2027",107748.22499999999,1292978.7,1292978.7,"I.GTC.ITS",null,"Daniel Eustáquio Coutinho","Fabrine Juliana Fabricio Costa","Iara Simões Xavier","Kathryna Fontana Rodrigues"]
["9287.509/21",9287509,"2320.01.0010371/2021-28","MGS - Minas Gerais Administração e Serviços S/A","Prestação de serviços terceirizados que ocorrerá por preenchimento de postos de serviços do seguimento de limpeza, asseio e conservação, controle de entrada e saída de bens e pessoas, apoio administrativo, operacional e técnico, visando a atender a continuidade do fluxo dos trabalhos executados no âmbito das atividades meio dos órgãos e entidades anuentes do Estado de Minas Gerais.","Não",null,null,null,null,"2021-08-01","2026-07-31",null,"07","2026",3688124.43,44257493.159999996,221287465.80000001,"G.GGP            G.GGP.MGS",null,"Jane Pinto Gomes",null,"Iara Simões Xavier","Marcela Soares Ferreira"]
["9402.639/23",9402639,"2320.01.0004844/2023-65","Microhard Informática Ltda.","Aquisição de Licenças de uso de Endpoints.","Não","Sim","2023-12-20","2024-12-19","Sim","2025-12-20","2026-12-19","2027-12-19","12","2026",{"$f":"Tabela1[[#This Row],[VALOR TOTAL]]/12","v":7931.5250000000005},95178.3,95178.3,"I.GTC.ITS",null,"Fabrine Juliana Fabricio Costa","Daniel Eustáquio Coutinho","Kathryna Fontana Rodrigues","Iara Simões Xavier"]
["9345.744/22",9345744,"2320.01.0006349/2022-76","Minascitro Alimentos Ltda","Prestação de serviço de fornecimento de refresco adoçado pronto para beber, com equipamento em comodato.","Sim",null,"2022-09-20","2023-09-19","Sim","2025-09-20","2026-09-19","2027-09-19","09","2026",{"$f":"Tabela1[[#This Row],[VALOR TOTAL]]/12","v":3265.6},39187.199999999997,39187.199999999997,"HBH.A.SGS.COP",null,"Hamilton Silva","Paula Maria Leão Mendes Roenick","Kathryna Fontana Rodrigues","Iara Simões Xavier"]
["9370.905/22",9370905,"2320.01.0011554/2022-94","Minascitro Alimentos Ltda","Prestação de serviço de fornecimento de refresco adoçado, pronto para beber, com equipamento em comodato.","Sim",null,"2022-12-23","2023-12-22","Sim","2025-12-23","2026-12-22","2027-12-22","12","2026",{"$f":"R227/12","v":2252.7999999999997},27033.600000000002,27033.599999999999,"GAD.MOC.A.COM                 MOC.A.SGS.COP",null,"Daniel Nascimento Salgado","Rodney Araújo Viana","Júlia Carolina Soares","Victor Adler Oliveira"]
["9493.095/25",9493095,"2320.01.0012298/2024-79","Minascitro Alimentos Ltda","Prestação de serviços de fornecimento de refresco pronto para beber, com comodato do equipamento, aos doadores de sangue do Hemocentro de Montes Claros.","Sim",null,"2026-01-09","2027-01-08","Não",null,null,"2027-01-08","01","2027",{"$f":"Tabela1[[#This Row],[VALOR ANUAL]]/12","v":4111.520833333333},49338.25,49338.25,"MOC.GAD",null,"Daniel Nascimento Salgado","Emanuelle Aparecida Bruzinga Machado","Júlia Carolina Soares","Victor Adler Oliveira"]
["9373.577/23",9373577,"2320.01.0003105/2023-70","Mobius Life Science Indústria e Comércio de Produtos para Laboratório Ltda.","Aquisição de kit de extração de DNA genômico (Lote 01).","Não",null,"2023-03-02","2024-03-01","Sim","2026-03-02","2027-03-01","2028-03-01","03","2027",3410.8,40929.599999999999,40929.599999999999,"T.GLA.HLA",null,"Felipe Carlos Brito de Souza","Nathália Gomide Cruz","Victor Adler Oliveira","Júlia Carolina Soares"]
["9391.532/23",9391532,"2320.01.0012179/2023-94","Mobius Life Science Indústria e Comércio de Produtos para Laboratório Ltda.","Aquisição de Insumos e reagentes necessário para tipificação HLA (média/alta resolução) de amostras de Doadores e Receptores de Medula Óssea (lote 09).","Não",null,"2023-08-25","2024-08-24","Sim","2025-08-25","2026-08-24","2028-08-24","08","2026",null,46875,46875,"T.GLA.HLA",null,"Felipe Carlos Brito de Souza","Luciana Lara Viegas da Aparecida","Iara Simões Xavier","Kathryna Fontana Rodrigues"]
["9392.816/23",9392816,"2320.01.0012182/2023-13","Molecular Biotecnologia Ltda","Aquisição de Insumos e reagentes necessário para tipificação HLA (média/alta resolução) de amostras de Doadores e Receptores de Medula Óssea (lote 02).","Não",null,"2023-08-25","2024-08-24","Sim","2025-08-25","2026-08-24","2028-08-24","08","2026",247.3,2967.6,14838,"T.GLA.HLA",null,"Felipe Carlos Brito de Souza","Luciana Lara Viegas da Aparecida","Iara Simões Xavier","Marcela Soares Ferreira"]
["9428.263/24",9428263,"2320.01.0014037/2023-77","MP BIOMEDICALS DO BRASIL LTDA","Aquisição de Kit Western Blot.","Sim",null,"2024-06-05","2025-06-04","Sim","2025-06-05","2026-06-04","                    04/06/2034","06","2026",{"$f":"Tabela1[[#This Row],[VALOR TOTAL]]/12","v":4815},57780,57780,"T.GLA.CSO",null,"Sônia Mara Nunes da Silva","Leonardo Antônio Renna Batalha","Kathryna Fontana Rodrigues","Iara Simões Xavier"]
["9286.419/21",9286419,"2320.01.0001186/2021-91","MS Serviços de Manutenção Ltda","Prestação de serviço de manutenção preventiva e corretiva de câmaras frias e de congelamento do Hemocentro Regional de Montes Claros.","Não",null,"2021-08-14","2022-08-13","Sim","2025-08-14","2026-08-13","2026-08-13","08","2026",8262.01,99144.09,99144.09,"GAD.MOC.A.MEQ      MOC.A.COM","Daniel Nascimento Salgado","Daniel Nascimento Salgado","Jordana Veríssimo Mesquita","Victor Adler Oliveira","Júlia Carolina Soares"]
["9287.972/21",9287972,"2320.01.0010250/2021-94","MS Serviços de Manutenção Ltda","Prestação de serviço de manutenção preventiva e corretiva, e higienização do sistema de ar condicionado do CETEBIO - Lagoa Santa (Lote 02).","Não",null,"2021-08-04","2022-08-03","Sim","2025-08-04","2026-08-03","2026-08-03","08","2026",{"$f":"R234/12","v":2106.5549999999998},25278.66,25278.66,"CETEBIO","Maria Lúcia Soares de Moura","Maria Lúcia Soares de Moura","Antônio Ferreira de Oliveira Filho","Iara Simões Xavier","Kathryna Fontana Rodrigues"]
["9290.383/21",9290383,"2320.01.0003889/2021-54","MS Serviços de Manutenção Ltda","Prestação de serviço de manutenção preventiva e corretiva para as 07 (sete) Câmaras Frigoríficas do Hemocentro de Belo Horizonte/Almoxarifado Central.","Não",null,"2021-09-18","2022-09-17","Sim","2025-09-18","2026-09-17","2026-09-17","09","2026",23198.19,278378.28000000003,1391891.4,"DGI.ENC",null,"Marcelo Furtado dos Santos","Felipe Garabini Antunes","Iara Simões Xavier","Marcela Soares Ferreira"]
["9327.397/22",9327397,"2320.01.0017114/2021-36","MS Serviços de Manutenção Ltda","Prestação de serviço de manutenção de ar portátil, ACJ e SPLIT, manutenção de Sistema de Ar Condicionado Central e reparo de Compressor Bitzer 4H25 e limpeza de dutos do Hemocentro Regional de Governador Valadares da Fundação Hemominas.","Não",null,"2022-04-14","2023-04-13","Sim","2026-04-14","2027-04-13","2027-04-13","04","2027",15969.789166666667,191637.47,191637.47,"GOV.A.COM           GOV.A.MAT",null,"Deivandro Lessa ","Bruno Sousa Macedo","Kathryna Fontana Rodrigues","Iara Simões Xavier"]
["9400.453/23",9400453,"2320.01.0003713/2022-50","MS Serviços de Manutenção Ltda","Prestação de serviços de montagem, instalação, manutenção preventiva semestral, incluindo qualificação, e manutenção corretiva ilimitada de 02 Cabines de Fluxo Laminar Modulado TROX FMU Tamanho 23.","Não",null,"2023-11-24","2024-11-23","Sim","2025-11-24","2026-11-23","2028-11-23","11","2026",7555.980833333334,90671.76,90671.77,"CETEBIO",null,"Antônio Ferreira de Oliveira Filho","Maria Lúcia Soares de Moura","Júlia Carolina Soares","Victor Adler Oliveira"]
["9439.957/24",9439957,"2320.01.0007067/2024-84","MS Serviços de Manutenção Ltda","Prestação de Serviço de locação de container refrigerado.","Não",null,"2024-10-08","2029-10-07","Sim",null,null,"2034-10-07","10","2029",{"$f":"Tabela1[[#This Row],[VALOR ANUAL]]/12","v":3000},{"$f":"Tabela1[[#This Row],[VALOR TOTAL]]/5","v":36000},180000,"DGI.ENC",null,"Izabela Batista Neiva","DGI.ENC","Júlia Carolina Soares","Victor Adler Oliveira"]
["9459.568/25",9459568,"2320.01.0011857/2023-58","MS Serviços de Manutenção Ltda","Prestação de serviços de manutenção preventiva e corretiva de climatizador evaporativo industrial, com fornecimento de peças (Lote 01).","Não",null,"2025-04-08","2026-04-07","Sim","2026-04-08","2027-04-07","2035-04-07","04","2027",5919.49,71033.88,71033.88,"DGI.ENC",null,"João Silvestre Guimarães","Thiago Euzébio dos Santos","Victor Adler Oliveira","Júlia Carolina Soares"]
["9493.120/26",9493120," 2320.01.0005700/2025-33","MS Serviços de Manutenção Ltda","Prestação de serviços de manutenção preventiva e corretiva ilimitada em capelas de fluxo laminar, com fornecimento de peças de reposição previstas e não previstas,","Não",null,"2026-01-14","2027-01-13","Sim",null,null,"2036-01-13","´01","2027",{"$f":"Tabela1[[#This Row],[VALOR TOTAL]]/12","v":7416.666666666667},89000,89000,"DGI.ENC",null,"Felipe Garabini Antunes","Eduardo da Silva Oliveira","Kathryna Fontana Rodrigues","Iara Simões Xavier"]
["9471.182/25",9471182,"2320.01.0006324/2025-63","MTD - Assessoria e Sistemas de Informática Ltda","Prestação de serviços de licença. Manutenção e suporte em software para gestão de custos.","Não",null,"2025-06-30","2026-06-29","Sim",null,null,"2035-06-29","06","2026",8750,105000,105000,"I.GFC.CTS",null,"Eliane Freitas de Carvalho","Carla Carvalho Martins","Victor Adler Oliveira","Júlia Carolina Soares"]
["9405.865/23",9405865,"2320.01.0012769/2023-72","MV Sistemas Ltda","Prestação de Serviço de suporte e manutenção do Sistema MV SOUL e PEP.","Não",null,"2023-12-21","2024-12-20","Sim","2025-12-21","2026-12-20","2028-12-20","12","2026",{"$f":"R242/12","v":158643.68},1903724.16,1903724.16,"I.GTC.ADS      T.AENF",null,"Adriana Lúcia dos Santos","Renato Vianna do Valle Junior","Iara Simões Xavier","Kathryna Fontana Rodrigues"]
["9319.185/22",9319185,"2320.01.0000683/2022-89","NL Comércio Exterior Ltda","Aquisição de reagentes para agregação plaquetária (lote 01, item 01: Colágeno e lote 02, item 01: Ristocetina).","Não",null,"2022-01-26","2023-01-25","Sim","2026-01-26","2027-01-25","2027-01-25","01","2027",17202.5,206430,1032150,"HBH.T.LHEM",null,"Beatriz Nogueira de Carvalho","João Henrique Fonseca de Moura","Iara Simões Xavier","Marcela Soares Ferreira"]
["9501.807/26",9501807,"2320.01.0001509/2026-85","Nova Analítica Importação e Exportação Ltda.","Compra de Meio de Cultura Metilcelulose.","Não",null,"2026-04-13","2027-04-12","Sim",null,null,"2036-04-12","04","2027",1953.83,23446,23446,"CETEBIO",null,"Diogo Vital Mota","Maurício Colombini Martins","Iara Simões Xavier","Kathryna Fontana Rodrigues"]
["9437.346/2024",9437346,"2320.01.0011991/2024-26","Novo Milênio Produtos e Serviços Ltda","Aquisição de lanche de doador Lotes, 01, 02, 04, 05, 06, 07 e 08.","Não",null,"2024-09-10","2025-09-09","Sim","2025-09-10","2026-09-09","2029-09-09","09","2026",{"$f":"Tabela1[[#This Row],[VALOR ANUAL]]/12","v":134665},1615980,1615980,"T.GSA / T.GSA.SUP",null,"Lorena Prezotti Rodrigues","Juliana Pessoa Pinheiro de Azevedo","Júlia Carolina Soares","Victor Adler Oliveira"]
["9470.701/25",9470701,"2320.01.0009047/2025-68","Novo Milênio Produtos e Serviços Ltda","Compra de café torrado e moído e açúcar cristal.","Não",null,"2025-06-25","2026-06-24","Não",null,null,"2026-06-24","06","2026",{"$f":"Tabela1[[#This Row],[VALOR ANUAL]]/12","v":6400},76800,76800,"DGI.NZL",null,"Marcelo de Aguiar Gomes","Nilza de Melo Pereira","Júlia Carolina Soares","Victor Adler Oliveira"]
["9276.469/21",9276469,"2320.01.0003775/2021-28","NP Tecnologia e Gestão de Dados Ltda","Prestação de serviço de acesso à ferramenta de pesquisa e comparação de preços praticados pela Administração Pública.","Não",null,"2021-04-29","2022-04-28","Sim","2025-04-29","2026-04-28","2026-04-28","04","2026",777.38,9328.58,9328.58,"G.GLQ.COM","Rafael Ribeiro Lopes","Rafael Ribeiro Lopes",null,"Victor Adler Oliveira","Júlia Carolina Soares"]
["9459.027/25",9459027,"2320.01.0005215/2025-33","NP Construções e Serviços Elétricos Ltda-ME","Instalação de sistema de proteção contra descargas atmosféricas (Lote 01).","Não",null,"2025-04-08","2027-04-07","Não",null,null,"2027-04-07","04","2027",36458.33,437500,875000,"I.GIF.AQE",null,"Guilherme Ferreira Alves Júnior","Márcia Mourão Moreira","Victor Adler Oliveira","Júlia Carolina Soares"]
["9478.113/25",9478113,"2320.01.0012317/2024-51","Nucleom Serviços em Proteção Radiológica Ltda.","Prestação de serviços de Física Médica.","Não",null,"2025-09-04","2026-09-03","Sim",null,null,"2035-09-03","09","2026",null,25080,25080,"HBH.T.HMC",null,"Alessandro Moreira Ferreira","Thayane Aparecida Ribeiro","Iara Simões Xavier","Kathryna Fontana Rodrigues"]
["9402.585/23",9402585,"2320.01.0016924/2023-19","OI S.A - Em recuperação judicial","Contratação de serviço de telefonia fixa comutada, linha individual, região 12, local, fixo-fixo, fixo móvel, DDR Instalação ou transferência serviços de telefonia fixa comutada - Link E-1, Região 10 - local, fixo-fixo, fixo móvel, DDR, Instalação ou transferência, e serviço de telefonia fixa comutada, linha individual, região 13, local, fixo-fixo, fixo móvel, DDR Instalação ou transferência, lotes  10, 12 e 13.","Sim",null,"2023-12-20","2024-12-19","Sim","2025-12-20","2026-12-19","2028-12-19","12","2026",12623.26,151479.12,757395.6,"I.GTC.ITS",null,"Daniel Eustáquio Coutinho","Fabrine Juliana Fabricio Costa","Iara Simões Xavier","Marcela Soares Ferreira"]
["9261.684/20",9261684,"2320.01.0013763/2020-15","Oi S.A. - \"Em Recuperação Judicial\" - (Incorporação da Oi Móvel S.A. - \"em Recuperação Judicial\")","Contratação de serviços de telecomunicações, necessários à operação, manutenção e gerenciamento de Rede IP Multisserviços bem como serviço de Trânsito e Acesso à Internet nas Unidades da Fundação Hemominas no Estado de Minas Gerais - Lote 01","Não",null,"2020-05-28","2025-05-27",null,"2025-05-28","2026-05-27",null,"05","2026",10649.24,127790.84,528143.57999999996,"I.GTC.ITS","Fabrine Juliana Fabrício Costa","Fabrine Juliana Fabricio Costa",null,"Victor Adler Oliveira","Júlia Carolina Soares"]
["9261.686/20",9261686,"2320.01.0013765/2020-58","Oi S.A. - \"Em Recuperação Judicial\" - (Incorporação da Oi Móvel S.A. - \"em Recuperação Judicial\")","Contratação de serviços de telecomunicações necessários à implantação, operação, manutenção e gerenciamento de Rede IP Multisserviços abrangendo os Municípios do Estado de Minas Gerais, Lote 05.","Não",null,"2020-05-28","2025-05-27",null,"2025-05-28","2026-05-27",null,"05","2026",15618.03,187416.38,798109.52,"I.GTC.ITS","Fabrine Juliana Fabrício Costa","Fabrine Juliana Fabricio Costa",null,"Júlia Carolina Soares","Victor Adler Oliveira"]
["9261.687/20",9261687,"2320.01.0013766/2020-31","Oi S.A. - \"Em Recuperação Judicial\" - (Incorporação da Oi Móvel S.A. - \"em Recuperação Judicial\")","Contratação de serviços de telecomunicações necessários à implantação, operação, manutenção e gerenciamento de Rede IP Multisserviços abrangendo os Municípios do Estado de Minas Gerais - Lote 06.","Não",null,"2020-05-28","2025-05-27",null,"2025-05-28","2026-05-27",null,"05","2026",1107.93,13295.16,54119.1,"I.GTC.ITS","Fabrine Juliana Fabrício Costa","Fabrine Juliana Fabricio Costa",null,"Victor Adler Oliveira","Júlia Carolina Soares"]
["9261.688/20",9261688,"2320.01.0013767/2020-04","Oi S.A. - \"Em Recuperação Judicial\" - (Incorporação da Oi Móvel S.A. - \"em Recuperação Judicial\")","Contratação de serviços de telecomunicações necessários à implantação, operação, manutenção e gerenciamento de Rede IP Multisserviços abrangendo os Municípios de Minas Gerais - Lote 07.","Não",null,"2020-05-28","2025-05-27",null,"2025-05-28","2026-05-27",null,"05","2026",{"$f":"R254/12","v":51858.541666666664},null,622302.5,"I.GTC.ITS","Fabrine Juliana Fabrício Costa","Fabrine Juliana Fabricio Costa",null,"Iara Simões Xavier","Kathryna Fontana Rodrigues"]
["9261.689/20",9261689,"2320.01.0013768/2020-74","Oi S.A. - \"Em Recuperação Judicial\" - (Incorporação da Oi Móvel S.A. - \"em Recuperação Judicial\")","Contratação de serviços de telecomunicações necessários à implantação, operação, manutenção e gerenciamento de Rede IP Multisserviços abrangendo os Municípios de Minas Gerais - Lote 08.","Não",null,"2020-05-28","2025-05-27",null,"2025-05-28","2026-05-27",null,"05","2026",45408.26,544899.12,2724495.6,"I.GTC.ITS","Fabrine Juliana Fabrício Costa","Fabrine Juliana Fabricio Costa",null,"Iara Simões Xavier","Marcela Soares Ferreira"]
["9458.918/25",9458918,"2320.01.0016359/2023-45","Opus Magna Engenharia Ltda.","Prestação de Serviço de levantamento de documentação técnica para atendimento a duas demandas de regularização de imóveis referentes ao Hemocentro Regional de Pouso Alegre da Fundação Hemominas.","Não",null,"2025-03-28","2026-03-27","Não",null,null,"2026-03-27","03","2026",null,12250,12250,"I.GIF.AQE",null,"Eline Magalhães Leite","Flávia Tavares dos Santos Alves","Iara Simões Xavier","Kathryna Fontana Rodrigues"]
["9321.315/22",9321315,"2320.01.0016805/2021-37","Oracle do Brasil Sistemas Ltda","Prestação de serviço de atualização de licenças de software e suporte, no fornecimento de correções de erro, novas versões e releases de programa, bem como serviços no esclarecimento de dúvidas ao Contratante.","Não",null,"2022-03-23","2023-03-22","Sim","2026-03-23","2027-03-22","2027-03-22","03","2027",{"$f":"Tabela1[[#This Row],[VALOR TOTAL]]/12","v":6759.5358333333324},81114.429999999993,81114.429999999993,"I.GTC.ITS",null,"Fabrine Juliana Fabricio Costa","Daniel Eustáquio Coutinho","Kathryna Fontana Rodrigues","Iara Simões Xavier"]
["9293.815/21",9293815,"2320.01.0013582/2021-49","ORGANOTRAT CONTROLE DE VETORES E PRAGAS URBANAS EIRELI."," Prestação de Serviço de limpeza e tratamento de caixas de água e reservatórios (Lotes 01, 05 e 07)","Não",null,"2021-10-28","2022-10-27","Sim","2025-10-28","2026-10-27","2026-10-27","10","2026",356.60999999999996,4279.32,4279.32,"GAD.SJR.A.MPR         GAD.PNO.A.MPR    ALP.GAD",null,"Adauto Rocha dos Santos ; Marcelo Fabri Leandro; lucas.madri@hemominas.mg.gov.br","Tânia Mara da Silveira Santos;  Luciana Marinho Monteiro Cerqueira; Jaílton Fernandes Reis","Júlia Carolina Soares","Victor Adler Oliveira"]
["9402.698/23",9402698,"2320.01.0007185/2023-05","Otimisa Marketing e Eventos Ltda - EPP","Prestação de serviço de Locação de equipamentos de geração e distribuição de Energia.","Não",null,"2023-12-14","2024-12-13","Sim","2025-12-14","2026-12-13","2027-12-13","12","2026",5904.84,70858.13,70858.13,"DGI.ENC",null,"Renata Samantha Martins Blasco","Adilson Meireles Pacheco","Victor Adler Oliveira","Júlia Carolina Soares"]
["9468.230/25",9468230,"2320.01.0001849/2024-29","P&L Publicidade e Propaganda","Prestação de serviços de Publicidade, Propaganda e Comunicação Social.","Não",null,"2025-05-14","2026-05-13","Sim","2026-05-14","2027-05-13","2035-05-13","05","2026",83333.33,1000000,10000000,"PRE.ACS",null,"Luciene Aparecida Nogueira Queiroz","Monique Abud Xavier de Pinho","Iara Simões Xavier","Marcela Soares Ferreira"]
["9482.080/25",9482080,"2320.01.0005424/2025-16","Padaria e Confeitaria da Praça Ltda","Prestação de serviços de fornecimento de lanches preparados por terceiros.","Não",null,"2025-11-10","09/11/2035 (Lote 01). 09/02/2026 (Lotes 02 e 03)","Sim          (Lote 01)    Não             (Lotes 02 E 03)",null,null,"09/11/2035       (Lote 01). 09/02/2026     (Loes 02 E 03)","11","2026",null,0,168042,"MÇU.GAD",null,"Maria José Moreira","Gulliver Fabrício Vieira Rocha","Júlia Carolina Soares","Victor Adler Oliveira"]
["9479.357/25",9479357,"2320.01.0006980/2025-05","Panificação Betel Ltda","Prestação de serviços de fornecimento de lanche para os doadores de sangue do Hemocentro Regional de Governador Valadares (Lote 01).","Não",null,"2025-10-03","2026-10-02","Sim",null,null,"2035-10-02","10","2026",9000,108000,1080000,"GOV.GAD",null,"Bruno Sousa Macedo","Deivandro Lessa","Iara Simões Xavier","Marcela Soares Ferreira"]
["9340.438/22",9340438,"2320.01.0013088/2021-98","Paula & Marques Ltda - ME","Prestação de serviço de implantação de software de gestão laboratorial, com suporte e manutenção corretiva e evolutiva.","Sim",null,"2022-06-16","2023-06-15","Sim","2025-06-16","2026-06-15","2027-06-15","06","2026",20500,246000,246000,"TEC /I.GTC.ADS",null,"Felipe Carlos Brito de Souza","Milena Batista de Oliveira","Kathryna Fontana Rodrigues","Iara Simões Xavier"]
["9452.481/25",9452481,"2320.01.0011882/2024-59","Perim Imóveis Ltda - ME","Locação do imóvel situado à Rua Barão do Rio Branco, nº 707, Centro, Governador Valadares/MG, com área total aproximada de 628,26 m².","Não",null,"2025-03-01","2026-02-28","Sim","2026-03-01","2027-02-28","2035-02-28","02","2027",{"$f":"Tabela1[[#This Row],[VALOR ANUAL]]/12","v":19713.8},236565.6,236565.6,"GOV.GAD",null,"Bruno Sousa Macedo","Deivandro Lessa","Júlia Carolina Soares","Victor Adler Oliveira"]
["9488.036/25",9488036,"2320.01.0003458/2025-39","Pharmacia Artesanal Ltda.","Aquisição de solução crioprotetora -Hidroxietilamido 6g 20%.","Não",null,"2025-12-09","2026-12-08","Sim",null,null,"2035-12-08","12","2026",{"$f":"Tabela1[[#This Row],[VALOR TOTAL]]/12","v":15437.5},185250,185250,"CETEBIO",null,"Maria Lúcia Soares de Moura","Maurício Colombini Martins","Kathryna Fontana Rodrigues","Iara Simões Xavier"]
["9484.351/25",9484351,"2320.01.0007390/2025-90","Popular Center Ltda.","Prestação de serviçoss de lanche para os doadores de sangue do Hemonúcleo de Ponte Nova (Lotes 01, 02 e 03).","Não",null,"2025-11-21","20/02/2026 (Lotes  02 E 03)      20/11/2026  (Lote 01)","Sim",null,null," 20/02/2026  (LOTES 02 E 03) 20/11/2035         (LOTE 01)","11","2026",null,0,88308.1,"PNO.GAD",null,"Marcelo Fabri Leandro","Luciana Marinho Monteiro Cerqueira","Júlia Carolina Soares","Victor Adler Oliveira"]
["9408.815/24",9408815,"2320.01.0018036/2023-65","Positivo Tecnologia S.A.","Contratação de serviço de suporte técnico aos usuários de microinformática, impressão, telefonia e rede local, por meio de Central de Serviços (Service Desk).","Não","Sim","2024-02-10","2026-08-09","Sim",null,null,"2029-02-09","08","2026",26408.87,316906.43,758905.68,"I.GTC.ITS",null,"Fabrine Juliana Fabricio Costa","Daniel Eustáquio Coutinho","Victor Adler Oliveira","Júlia Carolina Soares"]
["9456.369/25",9456369,"2320.01.0009407/2024-51","Posto Petrolucks Santa Cruz de Minas Ltda.","Prestação de serviços  de lavagem de veículos leves para o Hemocentro de São João Del-Rei.","Não",null,"2025-03-14","2026-03-13","Sim","2026-03-14","2027-03-13","2035-03-13","03","2027",null,3996,3996,"SJR.GAD     SJR.A.COM",null,"Adauto Rocha dos Santos","Tânia Mara da Silveira Santos","Iara Simões Xavier","Kathryna Fontana Rodrigues"]
["9342.910/22",9342910,"2320.01.0000621/2022-17","Prime Consultoria e Assessoria Empresarial Ltda.","Contratação de serviços de gestão de abastecimento em veículos e equipamentos através de sistema informatizado com cartão ou tag.","Sim",null,"2022-07-14","2024-07-13","Sim","2024-07-14","2026-07-13","2027-07-13","07","2026",{"$f":"R269/12","v":48267.680833333339},579212.17000000004,579212.17000000004,"G.GLQ.PRT.TRANSPORTE",null,"Pablo Ruas dos Santos","Célia Maria Silva Souza","Iara Simões Xavier","Kathryna Fontana Rodrigues"]
["9409.714/24 9401.699/23    (n° válido no SEI)","9409714             9401699        (n° válido no SEI)","2320.01.0004803/2023-08","Procedata Informática Ltda.","Prestação de serviço de extensão da garantia e suporte técnico atual dos equipamentos da Fundação Hemominas.","Não",null,"2023-11-29","2024-11-28","Sim","2025-11-29","2026-11-28","2028-11-28","11","2026",7687.82,92253.8,461269.2,"I.GTC.ITS",null,"Fabrine Juliana Fabricio Costa","Daniel Eustáquio Coutinho","Iara Simões Xavier","Marcela Soares Ferreira"]
["9433.797/24",9433797,"2320.01.0007283/2024-72"," PRODEMGE- INF.4876.00"," Hospedagem em Infraestrutura Virtualizada: O serviço contempla a disponibilização de infraestrutura de TIC como serviço, a partir da tecnologia de virtualização de recursos computacionais, utilizando as instalações do Data Center da CONTRATADA.","Não",null,"2024-08-07","2025-08-06","Sim","2025-08-07","2026-08-06","2034-08-06","08","2026",64309.56,771714.76,533093.29,"I.GTC",null,"     Adriana Lúcia dos Santos","Fabrícia Helena de Souza Machado Marques","Victor Adler Oliveira","Júlia Carolina Soares"]
["9317.893/21",9317893,"2320.01.0015253/2021-37","PRODEMGE - INF. 4410.00","Prestação de serviços de Informática: Disponibilização da solução DAE Web (aplicativo e infraestrutura de hardware/software) para a geração de Documento de Arrecadação Estadual - DAE, via internet.","Não",null,"2022-01-15","2023-01-14","Sim","2026-01-15","2027-01-14","2027-01-14","01","2027",605,7260,7260,"I.GTC",null,"Mariana Cristina Santos","Fabrine Juliana Fabricio Costa","Júlia Carolina Soares","Victor Adler Oliveira"]
["9322.305/22",9322305,"2320.01.0015254/2021-10","PRODEMGE - INF. 4426.00","Prestação de serviços de Informática: Acesso a Solução de Business Intelligence e Capacitação em Solução de Business Intelligence.","Não",null,"2022-02-16","2023-02-15","Sim","2026-02-16","2027-02-15","2027-02-15","02","2027",12079.33,144952,144952,"I.GTC",null,"Mariana Cristina Santos","Fabrine Juliana Fabricio Costa","Victor Adler Oliveira","Júlia Carolina Soares"]
["9340.410/22",9340410,"2320.01.0004889/2022-17","PRODEMGE - INF. 4531.00","Prestação de serviços de informática: Hospedagem de Sistemas em Ambiente Dedicado - Baixa Plataforma.","Não",null,"2022-07-02","2023-07-01","Sim","2025-07-02","2026-07-01","2027-07-01","07","2026",45753.31,549039.72,549039.72,"I.GTC",null,"Adriana Lúcia dos Santos","Fabrine Juliana Fabricio Costa","Iara Simões Xavier","Kathryna Fontana Rodrigues"]
["9379.416/23",9379416,"2320.01.0003448/2023-24","PRODEMGE - INF.4645.00","Prestação de serviços de informática:  Serviço de Hospedagem em Infraestrutura Virtualizada.","Não",null,"2023-04-04","2024-04-03","Sim","2026-04-04","03/04/202","2028-04-03","04","2027",{"$f":"R275/12","v":3883},46596,46596,"I.GTC         I.GTC.ADS",null,"Adriana Lúcia dos Santos","Juan Pablo Figueiredo Silva","Júlia Carolina Soares","Victor Adler Oliveira"]
["9434.210/24",9434210,"2320.01.0009364/2024-48","PRODEMGE - INF.4903.00","Prestação de serviço executar cópias de segurança de dados dos servidores localizados nas dependências do CONTRATANTE para o Data Center Prodemge, de forma remota. A operacionalização das rotinas de backup/restore é realizada conforme os padrões estabelecidos pela Prodemge, em sua infraestrutura, e utiliza-se da conexão de rede IP/Ethernet contratada pelo CONTRATANTE. ","Não",null,"2024-08-20","2025-08-19","Sim","2025-08-20","2026-08-19","2034-08-19","08","2026",{"$f":"R276/12","v":11250},135000,135000,"I.GTC",null,"Fabrine Juliana Fabricio Costa","Daniel Eustáquio Coutinho","Júlia Carolina Soares","Victor Adler Oliveira"]
["9459.790/25",9459790,"2320.01.0015521/2024-67","PRODEMGE - INF. 4954.00","Alocação de espaço e infraestrutura de alta disponibilidade no Data Center da Contratada para hospedagem de equipamentos de propriedade da Contratante.","Não",null,"2025-04-29","2026-04-28","Sim","2026-04-29","2027-04-28","2035-04-28","04","2027",null,1676469.36,1676469.36,"I.GTC",null,"Daniel Eustáquio Coutinho","Fabrine Juliana Fabricio Costa","Iara Simões Xavier","Kathryna Fontana Rodrigues"]
["9481.582/25",9481582,"2320.01.0013046/2025-56","PRODEMGE - INF. 5333.00","Prestação de serviços de informática que deve ser executado conforme condições insertas na proposta comercial e termo de referência que, independentemente de transcrição, integram este contrato.","Não",null,"2025-11-10","2026-11-09","Sim",null,null,"2035-11-09","11","2026",15861,190332,1903320,"I.GTC.ITS",null,"Daniel Eustáquio Coutinho","Mariana Cristina Santos","Iara Simões Xavier","Marcela Soares Ferreira"]
["9495.736/26",9495736,"2320.01.0018450/2025-36","PRODEMGE - INF. 5331.00","Prestação de serviços de tecnologia da informação que deve ser executado conforme condições insertas na proposta comercial e termo de referência que, independentemente de transcrição, integram este contrato.","Não",null,"2026-03-03","2027-03-02","Sim",null,null,"2036-03-02","03","2027",137468,1649616,1649616,"I.GTC.ITS",null,"Daniel Eustáquio Coutinho","Mariana Cristina Santos","Iara Simões Xavier","Kathryna Fontana Rodrigues"]
["9402.653/23",9402653,"2320.01.0009276/2023-02","Programa Nacional de Controle de Qualidade Ltda","Prestação de serviços de Programas de qualidade.","Não",null,"2023-12-08","2024-12-07","Sim","2025-12-08","2026-12-07","2028-12-07","12","2026",4540,54480,54480,"T.GLA / T.GLA.HLA",null,"Fernando Valadares Basques","Milena Batista de Oliveira","Victor Adler Oliveira","Júlia Carolina Soares"]
["9459.854/25",9459854,"2320.01.0015060/2025-95","Pulsar Brasil Telecomunicações S.A.","Contratação de serviços de telecomunicações necessários à implantação, operação, manutenção e gerenciamento de rede IP Multiserviços, de serviços de valor adicionado e de serviço de trânsito e acesso à internet, além de fornecimento de informações para a administração pública (lote 14), visando atender os Órgãos e Entidades Anuentes.","Não","Sim","2025-05-19","2030-05-18","Sim",null,null,"2035-05-18","05","2030",null,22245132,22245132,"I.GTC.ITS",null,"Daniel Eustáquio Coutinho","Fabrine Juliana Fabricio Costa / Emanuel Camilo de Oliveira","Iara Simões Xavier","Kathryna Fontana Rodrigues"]
["9474.052/25",9474052,"2320.01.0005748/2025-95","Puma Distribuidora Ltda.","Compra de ponteira para pipeta.","Não",null,"2025-08-09","2026-08-08","Não",null,null,"2026-08-08","08","2026",916.5,10998,10998,"G.GLQ.ADM",null,"João Paulo dos Santos Barbosa","Nilda Maria Campos Lucena","Iara Simões Xavier","Marcela Soares Ferreira"]
["9470..127/25",9470127,"2320.01.0008377/2025-19","Quartz Indústria e Comércio de Equipamentos para Laboratório Ltda EPP.","Compra de equipamentos técnicos (lotes 16 e 17).","Não",null,"2025-06-16","2026-06-15","Não",null,null,"2026-06-15","06","2026",2166.67,26000,26000,"DGI.ENC.CAT",null,"Asaph Calazans Mendes de Souza","Manoel Ricardo Caires Fernandes","Iara Simões Xavier","Marcela Soares Ferreira"]
["9493.209/2026",9493209,"2320.01.0015330/2025-80","Rafael Gomes dos Santos","Contratação de serviços de limpeza e higienização de carpetes e poltronas de auditório.","Não",null,"2026-01-30","2027-01-29","Sim",null,null,"2036-01-29","01","2027",452.5,5430,5430,"DGI.NZL",null,"Marcelo de Aguiar Gomes","Nilza de Melo Pereira","Iara Simões Xavier","Marcela Soares Ferreira"]
["9404.129/23",9404129,"2320.01.0017148/2023-82","Raony Amorim Coelho - ME","Prestação de Serviço de  Manutenção preventiva anual e corretiva das subestações de energia elétrica - Hemocentro Regional de Uberlândia LOTE 02.","Não",null,"2023-12-14","2024-12-13","Sim","2025-12-14","2026-12-13","2028-12-13","12","2026",4902.32,58827.8,294139.2,"I.GIF.MPR",null,"Forlan Bragança Lemos","Felipe Silva Teixeira","Iara Simões Xavier","Marcela Soares Ferreira"]
["9470.482/25",9470482,"2320.02.0008826/2025-21","Sabores de Origem Ltda.","Prestação de serviços de fornecimento de lanches/coffee break (Lote 01).","Não",null,"2025-06-20","2026-06-19","Sim",null,null,"2035-06-19","06","2026",4771.33,57256,57256,"G.GGP.TDE",null,"Manuela Mota Hauck","Andréa Maria Almeida Medrado","Victor Adler Oliveira","Júlia Carolina Soares"]
["9490.818/25",9490818,"2320.01.0001595/2025-94","Sameh Soluções Hospitalares Ltda","Aquisição de agulha múltipla para coleta à vácuo.","Não",null,"2025-12-18","2026-12-17","Sim",null,null,"2035-12-17","12","2026",{"$f":"Tabela1[[#This Row],[VALOR TOTAL]]/12","v":2812.5},33750,33750,"G.GLQ.ADM",null,"Anna Luiza Leandro Fernandes Moreira","Nilda Maria Campos Lucena","Kathryna Fontana Rodrigues","Iara Simões Xavier"]
["9346.729/22",9346729,"2320.01.0008812/2022-20","Sapra Landauer Serviço de Assessoria e Proteção Radiológica Ltda.","Prestação de serviço de monitoramento da radiação ionizante emitida no processo de irradiação de bolsas de sangue e hemocomponentes no contexto da segurança radiológica dos operadores e do quadro funcional do Hemocentro de Belo Horizonte da Fundação Hemominas.","Não",null,"2022-10-26","2023-10-25","Sim","2025-10-26","2026-10-25","2027-10-25","10","2026",219.52,2634.2400000000002,2634.24,"HBH.T.HMC",null,"Alessandro Moreira Ferreira","Larissa Inês Gomes Dau","Iara Simões Xavier","Kathryna Fontana Rodrigues"]
["9442.148/24",9442148,"2320.01.0009526/2024-39","Saraiva Corrêa Organizações Ltda.","Aquisição de lanche para o doador de sangue em complementação ao lanche seco (lote 01) e Aquisição de lanche para a Semana Nacional do Doador Voluntário de Sangue para o Hemonúcleo de Diamantina (Lote 02).","Não",null,"2024-11-14","2023-11-13","Sim","2025-11-14","2026-11-13","2034-11-13","11","2026",3353.7,40244.400000000001,40244.400000000001,"DIA.GAD",null,"Jacqueline Kelly Peixoto","Alessandra Cristina Menezes Frattezi Santos","Iara Simões Xavier","Marcela Soares Ferreira"]
["9501.592/2026",9501592,"2320.01.0014775/2024-33","Selbetti Tecnologia S.A","Prestação de serviços de impressão e reprografia, com assistência técnica e manutenção corretiva, preventiva e especializada, reposição de peças e insumos.","Não",null,"2026-04-28","2031-04-27","Sim",null,null,"2036-04-27","04","2031",1542.95,18515.400000000001,18515.400000000001,"I.GTC.ITS",null,"Ademar José Vieira","Daniel Eustáquio Coutinho","Júlia Carolina Soares","Victor Adler Oliveira"]
["9349.208/22",9349208,"2320.01.0008703/2022-53","Selecionata Indústria de Alimentos Ltda.","Prestação de serviço de fornecimento de sanduíches naturais, de sabores diversos, com o refrigerador em comodato.","Sim",null,"2022-11-12","2023-11-11","Sim","2025-11-12","2026-11-11","2027-11-11","11","2026",{"$f":"R291/12","v":27378},328536,328536,"HBH.A.SGS.COP",null,"Hamilton Silva","Paula Maria Leão Mendes Roenick","Iara Simões Xavier","Kathryna Fontana Rodrigues"]
["9483.074/25",9483074,"2320.01.0008329/2025-54","Selecionata Indústria de Alimentos Ltda.","Fornecimento de lanches prontos e preparados por terceiros, prestados por pessoa jurídica (Lote 01).","Não",null,"2025-11-19","2026-11-18","Sim",null,null,"2035-11-18","11","2026",20731.5,248778,248778,"DIA.GAD",null,"Nilba Valéria Pinheiro de Oliveira","Lidiane Barbosa Vilela","Victor Adler Oliveira","Júlia Carolina Soares"]
["9459.851/25",9459851,"2320.01.0015056/2025-09","Sempre Telecomunicações Ltda.","Contratação de serviços de telecomunicações necessários à implantação, operação, manutenção e gerenciamento de rede IP Multiserviços, de serviços de valor adicionado e de serviço de trânsito e acesso à internet, além de fornecimento de informações para a administração pública (lote 08 e 10), visando atender os Órgãos e Entidades Anuentes.","Não","Sim","2025-05-19","2030-05-18","Sim",null,null,"2035-05-18","05","2030",471000,5652000,56520000,"I.GTC.ITS",null,"Daniel Eustáquio Coutinho","Fabrine Juliana Fabricio Costa / Emanuel Camilo de Oliveira","Iara Simões Xavier","Marcela Soares Ferreira"]
["9286.809/21",9286809,"2320.01.0014750/2020-41","Sensorweb Serviços de Tecnologia da Informação S/A","Prestação de serviços especializados de monitoramento e registro automatizado de temperatura de equipamentos de refrigeração e de ambiente de temperatura controlada.","Sim",null,"2021-07-27","2022-07-26","Sim","2025-07-27","2026-07-26","2026-07-26","07","2026",194749.56000000003,2336994.7199999997,2336994.7200000002,"DGI.ENC","João Raimundo Venâncio"," Felipe Garabini Antunes","Marcelo Furtado dos Santos","Iara Simões Xavier","Kathryna Fontana Rodrigues"]
["9271.575/21",9271575,"2320.01.0014445/2020-31","Serquip Tratamento de Resíduos MG Ltda","Prestação de serviço de coleta, transporte externo, tratamento e disposição final dos resíduos de saúde.","Não",null,"2021-05-01","2022-04-30","Sim","2025-05-01","2026-04-30","2026-04-30","04","2026",91417.41,1097008.92,1097008.92,"DGI.NZL","Jéssica Rodrigues Barbosa","Marcelo de Aguiar Gomes","Nilza de melo Pereira","Júlia Carolina Soares","Victor Adler Oliveira"]
["9374.636/23",9374636,"2320.01.0015931/2021-64","Serquip Tratamento de Resíduos MG Ltda","Prestação de serviço de coleta, transporte, tratamento e disposição final ambientalmente correta dos resíduos resultantes de lâmpadas LED tubulares e de bulbo difusor, fluorescentes tubulares e compactas, com vapor de mercúrio e/ou demais componentes tóxicos, queimadas ou quebradas, e seus fragmentos de vidros, gerados pelas unidades da Fundação Hemominas.","Não",null,"2023-03-03","2024-03-02","Sim","2026-03-03","2027-03-02","2028-03-02","03","2027",9538.83,114466,114466,"I.GIF.AQE",null,"Maria Luíza Pinheiro Leite","Nilza de melo Pereira","Iara Simões Xavier","Marcela Soares Ferreira"]
["9502.679/26",9502679,"2320.01.0014317/2025=77","Serquip Tratamento de Resíduos MG Ltda","Prestação de serviços de recolhimento, transporte, tratamento e destinação final dos resíduos de serviço de saúde dos grupos A (biológicos), B (químicos) e E (perfurocortantes) gerados nas unidades da Fundação hemominas.","Não",null,"2026-04-28","2027-04-27","Sim",null,null,"2036-04-27","04","2027",94205.16,1130461.92,1130461.92,"DGI.NZL",null,"Nilza de Melo Pereira","Marcelo de Aguiar Gomes","Victor Adler Oliveira","Júlia Carolina Soares"]
["9433.853/24",9433853,"2320.01.0013038/2023-84","SIEMENS HEALTHCARE DIAGNÓSTICOS LTDA.","Aquisição de reagentes para testes de coagulação com sistema analítico em comodato.","Sim",null,"2024-07-24","2025-07-23","Sim","2025-07-24","2026-07-23","2034-07-23","07","2026",22822.139166666664,273865.68,273865.67,"HBH.T.LHEM",null,"João Henrique Fonseca de Moura","Beatriz Nogueira de Carvalho","Júlia Carolina Soares","Victor Adler Oliveira"]
["9417.866/24",9417866,"2320.01.0001379/2024-12","SIMPRESS COMERCIO LOCACAO E SERVICOS LTDA","contratação de serviços de outsourcing de impressão, sob demanda, futura e eventual, conforme especificações, exigências e quantidades estimadas.","Não","Sim","2024-04-13","2027-04-12","Sim",null,null,"2028-04-12","04","2027",{"$f":"Tabela1[[#This Row],[VALOR ANUAL]]/12","v":46375.275277777779},{"$f":"Tabela1[[#This Row],[VALOR TOTAL]]/3","v":556503.30333333334},1669509.91,"I.GTC.ITS",null," Ademar José Vieira","Fabrine Juliana Fabricio Costa","Kathryna Fontana Rodrigues","Iara Simões Xavier"]
["9459.852/25",9459852,"2320.01.0015057/2025-79","SITELBRA - Sistema de Telecomunicações do Brasil Ltda.","Contratação de serviços de telecomunicações necessários à implantação, operação, manutenção e gerenciamento de rede IP Multiserviços, de serviços de valor adicionado e de serviço de trânsito e acesso à internet, além de fornecimento de informações para a administração pública (lote 11), visando atender os Órgãos e Entidades Anuentes.","Não","Sim","2025-05-19","2030-05-18","Sim",null,null,"2035-05-18","05","2030",{"$f":"Tabela1[[#This Row],[VALOR ANUAL]]/12","v":34977.621999999996},{"$f":"Tabela1[[#This Row],[VALOR TOTAL]]/5","v":419731.46399999998},2098657.3199999998,"I.GTC.ITS",null,"Daniel Eustáquio Coutinho","Fabrine Juliana Fabricio Costa / Emanuel Camilo de Oliveira","Júlia Carolina Soares","Victor Adler Oliveira"]
["9400.372/23",9400372,"2320.01.0010892/2021-26","Sofis Informática Ltda","Prestação de serviço de implantação de Software de Gestão Laboratorial.","Não",null,"2023-11-22","2024-11-21","Sim","2025-11-22","2026-11-21","2028-11-21","11","2026",53697.46,644369.52,644369.52,"TEC                                  CETEBIO                        I.GTC / I.GTC.ADS",null,"Diogo Vidal Mota / Adriana Lucia dos Santos","Maurício Colombini Martins","Victor Adler Oliveira","Júlia Carolina Soares"]
["9470.672/25",9470672,"232001.0002815/2025-37","Sofis Informática Ltda","Prestação de serviço de manutenção e suporte dos sistemas de gerenciamento do ciclo do sangue, HEMOTE PLUS.","Não",null,"2025-06-25","2026-06-24","Sim",null,null,"2035-06-24","06","2026",218267,2619204,26192040,"I.GTC.ADS",null,"Carina Di Lorenzo Teixeira Bento / Fabrícia Helena de Souza Machado Marques","Flávia Naves Givisiez / Ana Maria Ferreira Bicalho","Iara Simões Xavier","Kathryna Fontana Rodrigues"]
["9505.699/26",9505699,"2320.01.0007246/2026-95","Softplace Comércio e Representações Eireli","Aquisição de mobiliário administrativo (lotes 03 e 04).","Não",null,"2026-05-11","2027-05-10","Não",null,null,"2027-05-10","05","2027",27638.38,331660.63,331660.63,"G.GLQ.PTM",null,"Vagner Luiz da Silva","Ricardo Rocha Moreira Júnior","Kathryna Fontana Rodrigues","Iara Simões Xavier"]
["9345.620/22",9345620,"2320.01.0008056/2019-71","Sompo Seguros S.A.","Prestação de seguro patrimonial.","Não","Sim","2022-09-09","2023-09-08","Sim","2025-09-09","2026-09-08","2027-09-08","09","2026",2350.6,28207.24,28207.24,"DGI.NZL",null,"Marcelo de Aguiar Gomes","Nilza de Melo Pereira","Victor Adler Oliveira","Júlia Carolina Soares"]
["9493.548/26",9493548,"2320.01.0001531/2026-73","Souza Tech Service Ltda.","Prestação de serviços manutenção preventiva e corretiva em sistema predial civil, elétrico, hidráulico, eletromecânico e de ar condicionado na Unidade de Juiz de fora.","Não","Não","2026-02-05","2027-02-04","Sim",null,null,"03/02/2036 (LOTE 01) 03/02/2027 (LOTE 02)","02","2027",3083.33,37000,37000,"JFO.GAD",null,"Victor Valente Campos","Márcia Cristina de Almeida","Victor Adler Oliveira","Júlia Carolina Soares"]
["9326.075/22","9326075      9325354","2320.01.0012700/2021-98","Spectrolab Tecnologia Científica Ltda.","Prestação de serviço de manutenção e reparos nos equipamentos Cryoextra e Cryoplus4.","Não",null,"2022-03-24","2023-03-23","Sim","2026-03-24","2027-03-23","2027-03-23","03","2027",{"$f":"R306/12","v":24237.609166666665},290851.31,290851.31,"CETEBIO",null,"Maria Lúcia Soares de Moura","Antônio Ferreira de Oliveira Filho","Iara Simões Xavier","Kathryna Fontana Rodrigues"]
["9408.851/24",9408851,"2320.01.0005830/2023-21","Spectrolab Tecnologia Científica Ltda.","Prestação de serviços de manutenção em freezers de congelamento e armazenamento de células.","Não",null,"2024-02-03","2025-02-02","Sim","2026-02-03","2027-02-02","2029-02-02","02","2027",26150.976666666666,313811.71999999997,313811.71999999997,"CETEBIO",null,"Maria Lúcia Soares de Moura","Antônio Ferreira de Oliveira Filho","Iara Simões Xavier","Kathryna Fontana Rodrigues"]
["9501.787/26",9501787,"2320.01.0003482/2026-67","Spectrolab Tecnologia Científica Ltda.","Prestação de serviços de manutenção preventiva e corretiva e de Testes de Segurança Elétrica (TSE) em equipamentos de refrigeração dda cadeia de frios da Fundação Hemominas, sem dedicação exclusiva de mão de obra, incluindo o fornecimento de mçao de obra, materiais e peças estritamente indispensáveis ao restabelecimento do funcionamento dos equipamentos, durante a vigência emergencial.","Não",null,"2026-04-10","2027-04-09","Não",null,null,"2027-04-09","04","2027",174769.13,2097229.6,2097229.6,"DGI.ENC",null,"Marcelo Furtado dos Santos","Felipe Garabini Antunes","Kathryna Fontana Rodrigues","Iara Simões Xavier"]
["9441.585/24",9441585,"2320.01.0005624/2024-51","Speedlabor Diagnósticos Ltda - EPP.","Aquisição de sistema analítico completo, com equipamento em comodato e reagentes para identificação e quantificação de hemoglobinas \"anormais\".","Sim",null,"2024-11-07","2025-11-06","Sim","2025-11-07","2026-11-06","2034-11-06","11","2026",{"$f":"Tabela1[[#This Row],[VALOR ANUAL]]/12","v":9698.3333333333339},116380,116380,"HBH.T.LHEM",null,"Beatriz Nogueira de Carvalho","João Henrique Fonseca de Moura","Júlia Carolina Soares","Victor Adler Oliveira"]
["9368.352/23",9368352,"2320.01.0004495/2022-82","Tecnogera - Locação e Transformação de Energia S/A","Locação de equipamentos de geração e distribuição de energia.","Não",null,"2023-01-07","2027-01-06","Não",null,null,"2027-01-06","01","2027",59277.71,711332.47,711332.47,"DGI.ENC",null,"Renata Samantha Martins Blasco","Adilson Meireles Pacheco","Victor Adler Oliveira","Júlia Carolina Soares"]
["9479.348/25",9479348,"2320.01.0011899/2025-82","Terumo BCT Tecnologia Médica Ltda","Locação de equipamentos para realização de procedimentos de coleta por Aférese de plaquetas e de hemácias.","Não",null,"2025-10-01","2026-09-30","Não",null,null,"2026-09-30","09","2026",null,335309.03999999998,335309.03999999998,"DGI.ENC",null,"Izabela Batista Neiva","Adilson Meireles Pacheco","Iara Simões Xavier","Kathryna Fontana Rodrigues"]
["9481.293/25",9481293,"2320.01.0001882/2025-08","Terumo BCT Tecnologia Médica Ltda","Locação de equipamentos e aquisição de kits para realização de Aférese Terapêutica -Plasmaférese Terapêutica e Leucoaférese Terapêutica.","Não",null,"2025-10-27","2026-10-26","Sim",null,null,"2035-10-26","10","2026",null,0,1326556.2,"T.AHH",null,"Karen de Lima Prata / Izabela Batista Neiva","Adilson Meireles Pacheco","Marcela Soares Ferreira","Iara Simões Xavier"]
["9497.323/26",9497323,"2320.01.0003555/2026-36","Terumo BCT Tecnologia Médica Ltda","Aquisição de kits para coleta de células por Aférese.","Não",null,"2026-03-09","2026-09-08","Não",null,null,"2026-09-08","09","2026",null,null,1658377.44,"T.AHH",null,"Fabiana Chagas Camargos Piassi",null,"Iara Simões Xavier","Kathryna Fontana Rodrigues"]
["9470.326/25",9470326,"2320.01.0007809/2024-32","Tesla Instalações Elétricas Ltda.","Prestação de serviços de reforma das instalações elétricas das Unidades de Uberaba e Juiz de Fora.","Não",null,"2025-06-13","12/0/2026","Não",null,null,"2026-06-12","06","2026",144493.28,1733919.4,1733919.4,"I.GIF.AQE",null,"Jéssica Rodrigues Barbosa","Leila Guedes Alvim","Iara Simões Xavier","Marcela Soares Ferreira"]
["9459.815/25",9459815,"2320.01.0006152/2024-54","Thiago Arouca Araújo","Prestação de serviços de instalação de  películas com fornecimento de material e mão de obra para o Hemocentro Regional de Montes Claros.","Não",null,"2025-04-14","2026-04-13","Não",null,null,"2026-04-13","04","2026",null,14416.24,14416.24,"MOC.GAD",null,"Daniel Nascimento Salgado","Nátaly Mariana Silva","Iara Simões Xavier","Kathryna Fontana Rodrigues"]
["9429.660/24",9429660,"2320.01.0012627/2023-26","Ticket Gestão em Manutenção EZC S/A.","Serviço de gestão e manutenção preventiva e corretiva da frota de veículos.","Não",null,"2024-11-15","2027-11-14","Sim",null,null,"2029-11-14","11","2027",11495.66,137947.9,689739.6,"G.GLQ.PRT.TRANSPORTE",null,"Pablo Ruas dos Santos","Anastas Falcão Quirino Chaves","Iara Simões Xavier","Marcela Soares Ferreira"]
["9456.372/25",9456372,"2320.01.0001113/2025-13","Tim S.A.","Serviço Móvel Pessoal (SMP), englobando tráfego de dados e acesso à Internet, serviços telefônicos Modalidade Locais, Modalidade Longa Distância Nacional, para ligações exclusivamente originadas dos terminais móveis di Plano Corporativo, e fornecimento dos equipamentos necessários.","Sim",null,"2025-03-27","2027-09-26","Sim",null,null,"2035-03-26","09","2027",42849.5,514194,257097,"I.GTC.ITS",null,"Renato Vianna do Valle Júnior","Daniel Eustáquio Coutinho","Victor Adler Oliveira","Júlia Carolina Soares"]
["9261.685/20",9261685,"2320.01.0013764/2020-85","Transat Telecomunicações Via Satélite Eireli","Contratação de serviços de telecomunicações necessários à implantação, operação, manutenção e gerenciamento de Rede IP Multisserviços abrangendo os Municípios do Estado de Minas Gerais, Lote 04.","Não",null,"2020-05-28","2021-05-27","Sim","2025-05-28","2026-05-27","2025-05-27","05","2026",{"$f":"Tabela1[[#This Row],[VALOR ANUAL]]/12","v":3223.4091666666664},{"$f":"Tabela1[[#This Row],[VALOR TOTAL]]/5","v":38680.909999999996},193404.55,"I.GTC.ITS","Fabrine Juliana Fabrício Costa","Fabrine Juliana Fabricio Costa",null,"Júlia Carolina Soares","Victor Adler Oliveira"]
["9447.336/25",9447336,"2320.01.0011124/2025-55","TSS Serviços Técnicos Ltda","Prestação de serviços técnicos de manutenção preventiva mensal e manutenção corretiva ilimitada, sob demanda, dos equipamentos de ar condicionado da Unidade de Coleta e Transfusão ESTAÇÃO BH.","Não",null,"2025-09-03","2026-09-02","Não",null,null,"2026-09-02","09","2026",3391.67,40700,40700,"DGI.ENC",null,"Thiago Euzébio dos Santos","Eduardo da Silva Oliveira","Victor Adler Oliveira","Júlia Carolina Soares"]
["9496.598/26",9496598,"2320.01.0011640/2025-91","UFFICIO Indústria e Comércio de Móveis Ltda.","Prestação de serviços de execução de mobiliários técnicos, destinados a atender as necessidades estruturais do Núcleo Regional de Ponte Nova.","Não",null,"2026-03-02","2027-03-01",null,null,null,null,"03","2027",null,null,249900,"I.GIF.AQE",null,"Adryele Lucena de Araújo","Renata Botrel de Paula","Júlia Carolina Soares","Victor Adler Oliveira"]
["9505.697/26",9505697,"2320.01.0007248/2026-41","UFFICIO Indústria e Comércio de Móveis Ltda.","Aquisição de mobiliário administrativo (lotes 01, 02, 05, 08, 11, 15).","Não",null,"2026-05-11","2027-05-10","Não",null,null,"2027-05-10","05","2027",51416.45,616997.49,616997.49,"G.GLQ.PTM",null,"Vagner Luiz da Silva","Ricardo Rocha Moreira Júnior","Iara Simões Xavier","Kathryna Fontana Rodrigues"]
["9493.101/26",9493101,"2320.01.0006918/2025-30","UL Química e Científica Ltda","Contratação de serviços técnicos de manutenção preventiva semestral, manutenção corretiva ilimitada, incluindo todo e qualquer tipo de mão de obra com o fornecimento de peças, necessários ao perfeito funcionamento e conservação de 01 (um) Analisador Automático de Células Sanguíneas, marca Sysmex XN 1000","Não",null,"2026-01-14","2027-01-13","Sim",null,null,"2036-01-13","01","2027",null,160091.66,160091.66,"CETEBIO",null,"Maria Lúcia Soares de Moura","Antônio Ferreira de Oliveira Filho","Iara Simões Xavier","Kathryna Fontana Rodrigues"]
["9508.295/26",9508295,"2320.01.0007161/2025-65","UL Química e Científica Ltda","Aquisição de Reagentes SYSMEX XN-1000: Diluente Cellpack (1434080), Sulfolyser (1434098), Lisante WNR (1434101), Corante WNR (1434128), Corante WDF (1434136).","Não",null,"2026-05-19","2027-05-18","Sim",null,null,"2036-05-18","05","2027",4397.5,52770,52770,"CETEBIO",null,"Diogo Vidal Mota","Maurício Colombini Martins","Kathryna Fontana Rodrigues","Iara Simões Xavier"]
["9437.154/25",9437154,"2320.01.0004077/2024-13","Veolia Water Technologies Brasil Ltda","Prestação de Serviço de locação de sistema de purificação de água","Não",null,"2024-09-12","2025-09-11","Sim","2025-09-12","2026-09-11","2034-09-11","09","2026",null,288045.48,288045.48,"DGI.ENC",null,"Izabela Batista Neiva","Felipe Garabini Antunes","Iara Simões Xavier","Kathryna Fontana Rodrigues"]
["9443.594/24",9443594,"2320.01.0013220/2024-17","Vibra Energia  S.A                                           ","Fornecimento de combustível (gasolina comum, óleo diesel subtipo S-10 e álcool automotivo/etanol hidratado) nos postos de abastecimento que compõem a rede de postos próprios do Estado de Minas Gerais.","Não",null,"2024-12-02","2025-12-02","Sim","2025-12-02","2026-12-02",null,"12","2026",21647.15,259765.80000000002,2597658,"G.GLQ.PRT.TRANSPORTE",null,"Pablo Ruas dos Santos","Anastas Falcão Quirino Chaves","Iara Simões Xavier","Marcela Soares Ferreira"]
["9445.722/24",9445722,"2320.01.0014970/2024-06","Voetur Turismo e Representações Ltda.","Compra de passagens aéreas e rodoviárias.","Não",null,"2024-12-16","2025-12-15","Sim","2025-12-16","2026-12-15","2034-12-15","12","2026",79505.58,954066.93,764719.73,"G.GLQ.PRT. PROTOCOLO",null,"Pablo Ruas dos Santos","Dorian Daisy Sislan dos Santos Coelho","Victor Adler Oliveira","Júlia Carolina Soares"]
["9459.848/25",9459848,"2320.01.0015052/2025-20","Vogel Soluções em Telecomunicações e Informática S.A","Contratação de serviços de telecomunicações necessários à implantação, operação, manutenção e gerenciamento de Rede IP Multiserviços, de serviços de valor adicionado e de serviço de trânsito e acesso à internet, além de fornecimento de informações para a administração pública (lote 06), visando atender os Órgãos e Entidades Anuentes.","Não","Sim","2025-05-19","2030-05-18","Sim",null,null,"2035-05-19","05","2030",null,5563620,5563620,"I.GTC.ITS",null,"Daniel Eustáquio Coutinho","Fabrine Juliana Fabricio Costa / Emanuel Camilo de Oliveira","Iara Simões Xavier","Kathryna Fontana Rodrigues"]
["9508.056/26",9508056,"2320.01.0014799/2025-61","Volta Industrial Agropecuária Ltda.","Aquisição de container para uso em laboratório.","Não",null,"2026-05-14","2026-11-13","Não",null,null,"2026-11-13","11","2026",null,68000,68000,"DGI.ENC.CAT",null,"Asaph Calazans Mendes de Souza","Wagner Felipe Patrício Maia","Kathryna Fontana Rodrigues","Iara Simões Xavier"]
["9472.311/25",9472311,"2320.01.0001050/2025-65","Vyttra Diagnósticos S.A","Aquisição de sistema analítico completo, com reagentes de hemograma e reticulócitos e equipamento em comodato","Sim",null,"2025-07-22","2026-07-21","Sim",null,null,"2035-07-21","07","2026",{"$f":"R329/12","v":13166.666666666666},158000.04,158000,"HBH.T.LHEM",null,"João Henrique Fonseca de Moura","João Paulo dos Santos Barbosa","Iara Simões Xavier","Kathryna Fontana Rodrigues"]
["9424.417/24",9424417,"2320.01.0010469/2023-92","WF Tecnologia CientÍfica Ltda"," Prestação de serviços de Manutenção Preventiva Mensal/corretivas necessárias para as 2(duas) Câmaras Frigoríficas +4C e -30°C","Não",null,"2024-05-03","2025-05-02","Sim","2026-05-03","2027-05-02","2034-05-02","05","2027",{"$f":"R330/12","v":15930.726666666667},191168.72,191168.72,"UDI.GAD                   DGI",null,"Márcia Regina Luis"," Renata Léa Silva Souza ","Júlia Carolina Soares","Victor Adler Oliveira"]
["9447.522/25",9447522,"2320.01.0001006/2024-92","WF Tecnologia CientÍfica Ltda","Prestação de serviço de manutenção preventiva e calibração semestral, corretivas ilimitadas em Aparelhos Doppler Transcraniano para diagnóstico médico.","Não",null,"2025-01-23","2026-01-22","Sim","23/01/2026","2027-01-22","2035-01-22","01","2027",11436.25,137235,137235,"DGI.ENC",null,"Felipe Garabini Antunes","Marcelo Furtado dos Santos","Victor Adler Oliveira","Júlia Carolina Soares"]
["9471.921/25",9471921,"2320.01.0015508/2024-30","WF Tecnologia CientÍfica Ltda","Prestação de serviços de manutenção preventiva semestral e manutenção corretiva ilimitada e reparo do vácuo, incluindo todo e qualquer tipo de mão de obra, com o fornecimento de peças, para o Tanque de Armazenamento de Nitrogênio Líquido, marca MVE, modelo Fusion 1526 (MVE)","NÃO",null,"2025-07-23","2026-07-22","Sim",null,null,"2035-07-22","07","2026",{"$f":"Tabela1[[#This Row],[VALOR TOTAL]]/12","v":10508.75},126105,126105,"CETEBIO  DGI.ENC",null,"Antônio Ferreira de Oliveira Filho","Maria Lúcia Soares de Moura","Kathryna Fontana Rodrigues","Iara Simões Xavier"]
["9480.536/25",948036,"22320.01.0014377/2025-09","WF Tecnologia CientÍfica Ltda","Contratação de prestação de serviços de manutenção e reparos em equipamentos e materiais de laboratório (lote 02, 03 e 04).","Não",null,"2025-10-14","2026-10-13","Sim",null,null,"2035-10-13","10","2026",null,2031872.97,2031872.97,"DGI.ENC",null,"Eduardo da Silva Oliveira","Marcelo Furtado dos Santos","Iara Simões Xavier","Kathryna Fontana Rodrigues"]
["9484.063/25",9484063,"2320.01.0016217/2025-90","WF Tecnologia CientÍfica Ltda","Prestação de serviços de manutenção e reparos em equipamentos e materiais de laboratório (Lote 01).","Não",null,"2025-11-17","2026-11-16","Sim",null,null,"2035-11-16","11","2026",{"$f":"Tabela1[[#This Row],[VALOR ANUAL]]/12","v":49185.124166666668},590221.49,590221.49,"DGI.ENC",null,"Eduardo da Silva Oliveira","Felipe Garabini Antunes","Júlia Carolina Soares","Victor Adler Oliveira"]
["9346.009/22",9346009,"2320.01.0008367/2022-07","White Martins Gases Industriais Ltda","Aquisição de nitrogênio medicinal liquefeito, com tanque em comodato para o CETEBIO da Fundação Hemominas","Sim",null,"2022-10-21","2023-10-20","Sim","2025-10-21","2026-10-20","2027-10-20","10","2026",18350,220200,1101000,"CETEBIO",null,"Maria Lúcia Soares de Moura","Luciana de Almeida Costa","Iara Simões Xavier","Marcela Soares Ferreira"]
["9412.818/24",9412818,"2320.01.0001243/2023-98","Xertica Brasil Ltda","Prestação de serviço especializado em desenvolvimento de sistemas de informação para viabilização de projeto de robô captador de doadores.","Não",null,"2024-02-29","2025-02-28","Sim","2026-03-01","2027-02-28","2028-02-28","02","2027",{"$f":"R336/12","v":42636.534999999996},511638.42,511638.42,"I.GTC",null,"André Luiz Pereira","Adriana Lúcia dos Santos","Júlia Carolina Soares","Victor Adler Oliveira"]
["9294.644/21",9294644,"2320.01.0013617/2021-74","ZAP MUSIC E DEDETIZADORA LTDA","Prestação de serviço de  limpeza e tratamento de caixas de água e reservatórios (Lotes 03 e 06).","Não",null,"2021-11-06","2022-11-05","Sim","2025-11-06","2026-11-05","2026-11-05","11","2026",450.8,5409.6,5409.6,"UDI.GAD      GAD.MÇU",null,"Márcia Regina Luis (Lote 03)                                Gulliver Fabrício Vieira Rocha (Lote 06)","Maria Cristina Gomes de Araújo Botelho               Maria José Moreira","Victor Adler Oliveira","Júlia Carolina Soares"]
["9337.915/22",9337915,"2320.01.0001782/2022-98","ZAP MUSIC E DEDETIZADORA LTDA","Prestação de serviço de limpeza e tratamento de caixas d’água e reservatórios, com periodicidade semestral, instalados no Hemocentro Regional de Montes Claros da Fundação Hemominas.","Não",null,"2022-06-04","2023-06-03","Sim","2025-06-04","2026-06-03","2027-06-03","06","2026",null,2195.8200000000002,2195.8200000000002,"GAD.MOC.A.COM",null,"Daniel Nascimento Salgado","Eliane Gonçalves David","Iara Simões Xavier","Kathryna Fontana Rodrigues"]
["9483.932/25",9483932,"2320.01.0016237/2025-35","ZAP MUSIC E DEDETIZADORA LTDA","Prestação de serviços de desinsetização e desratização (Lotes 01, 04, 05, 08, 09 e 12).","Não",null,"2025-11-17","2026-11-16","Sim",null,null,"2035-11-16","11","2026",{"$f":"Tabela1[[#This Row],[VALOR TOTAL]]/12","v":1474.2966666666669},17691.560000000001,17691.560000000001,"DGI.NZL",null,"Marcelo de Aguiar Gomes","Nilza de Melo Pereira Hamilton Silva    Dennis de Oliveira Sípoli                       Ana Lúcia Fernandes Miranda Cristina de Freitas Torres Maria Lúcia Soares de Moura Rosângela Freitas de Souza Bruno Sousa Macedo Maria Goreth Oliveira Sobreira              Daniel Nascimento Salgado              Heleno de Lima Marques","Kathryna Fontana Rodrigues","Iara Simões Xavier"]

{"sheet":"Plan1","index":1,"n_rows":30,"n_cols":8,"rows_kept":30,"cut":false,"hidden":false,"merged":[[29,1,29,2],[2,4,27,4],[22,1,22,3],[15,1,15,3],[9,1,9,3],[21,1,21,3],[16,1,16,3],[2,5,2,7],[0,1,0,7],[1,1,1,7],[2,1,2,3],[10,1,10,3]]}
[null,"Quantitativo de Contrato por Diretoria/Gerência"]
[]
[null,"ATE",null,null,null,"Unidades Regionais"]
[null,"ATE/GRH/GDT",1,402775,null,"ALP",2,49918.59]
[null,"GDI",1,368496.8,null,"BET",1,12958.7]
[null,"GFC",1,108800,null,"CET",11,953663.94]
[null,"GIF",17,898247.5,null,"DIV",6,175890.58]
[null,"GTC",24,17882757.219999999,null,"GOV",11,600794.82999999996]
[null,"Total",{"$f":"SUM(C4:C8)","v":44},{"$f":"SUM(D4:D8)","v":19661076.52},null,"HBH",17,2010237.16]
[null,null,null,null,null,"HJK",1,13990.08]
[null,"PGF",null,null,null,"ITU",3,69450.080000000002]
[null,"GLG",76,32834812.059999999,null,"JFO",9,568131.01]
[null,"GRH",11,2144089.66,null,"MCU",5,194502.13]
[null,"GSO",77,26398529.680000003,null,"MOC",17,616636.25]
[null,"Total",{"$f":"SUM(C12:C14)","v":164},{"$f":"SUM(D12:D14)","v":61377431.400000006},null,"PAL",4,151150.99]
[null,null,null,null,null,"PAS",4,121126.39999999999]
[null,"PRE",null,null,null,"PMI",4,33479.75]
[null,"ACS",3,1610117.6800000002,null,"PNO",7,131426]
[null,"ASQ",1,64795.03,null,"POC",2,52846.25]
[null,"PRO",1,520,null,"SJR",4,75323.600000000006]
[null,"Total",{"$f":"SUM(C18:C20)","v":5},{"$f":"SUM(D18:D20)","v":1675432.7100000002},null,"SLA",8,113310.9]
[null,null,null,null,null,"UDI",7,332046.03999999998]
[null,"TEC",null,null,null,"URA",9,212247.09]
[null,"GCQ",1,117883.92,null,"TOTAL",{"$f":"SUM(G4:G23)","v":132},{"$f":"SUM(H4:H23)","v":6489130.3700000001}]
[null,"GDT",2,1673968.56]
[null,"GLA",15,13413172.049999999]
[null,"GSA (CAT)",9,3223039.6199999996]
[null,"Total",{"$f":"SUM(C24:C27)","v":27},{"$f":"SUM(D24:D27)","v":18428064.149999999}]
[]
[null,"Fonte: FPOP.G.GPO.CCO 01 VERSÃO 04 - 12/07/2018"]